Workbook

Sheet SYNTHESE
K2: Mois de référence | N2: 2017-01-01
E3: BYMARO | K3: Monnaie locale | N3: Dirhams
D4: POINT 50% | K4: Taux de conversion | N4: 1 € = 10,85dh
K5: Date de l'OS | M5: 2015-10-12
E6: LES FAUBOURGS D'ANFA | K6: Délai TCE | N6: 26 mois
D7: 2017-03-06 | E7: CASABLANCA | K7: Surface de référence | N7: 4783m² SHO
K8: Douanes
E10: SYNTHESE BUDGETS & MARGE
G11: en dh
C12: DESCRIPTION | F12: OBJECTIF | H12: OBJECTIF CONFORME | J12: =D4 -> POINT 50% | M12: ECART
M13: Valeur | N13: %
C17: RECETTE / ACTIVITE FDC | F17: =RECETTES!F56 -> 303500010 | H17: =RECETTES!H56 -> 305565607 | J17: =RECETTES!J56 -> 305565607 | M17: =J17-H17 -> 0 | N17: =IF(H17=0,0,M17/H17) -> 0
C22: DIRECT DE PART PROPRE | F22: =DCH!F20 -> 86618187.12 | H22: =DCH!K20 -> 86618187.12 | J22: =DCH!M20 -> 169202507.8 | M22: =H22-J22 -> -82584320.72 | N22: =M22/H22 -> -0.953429337
C23: SOUS TRAITANT | F23: =DCH!F26 -> 129009357.7 | H23: =DCH!K26 -> 129009357.7 | J23: =DCH!M26 -> 82885598.88 | M23: 46123758.8 | N23: =M23/H23 -> 0.3575225831
C24: INDIRECT | F24: =DCH!F41 -> 51085587.61 | H24: =DCH!K41 -> 51129656.94 | J24: =DCH!M41 -> 218756287.1 | M24: -167626630.2 | N24: -3.27846186
C25: ALEAS - RISQUES IDENTIFIES | F25: =DCH!F46 -> 0 | H25: =DCH!K46 -> 0 | J25: =DCH!M46 -> 0 | M25: 0
C26: REVISION - ESCALATION | F26: =DCH!F47 -> 0 | H26: =DCH!K47 -> 0 | J26: =DCH!M47 -> 0 | M26: 0
C28: DEPENSES CHANTIER (révisé) | F28: =SUM(F22:F26) -> 266713132.4 | H28: =SUM(H22:H26) -> 266757201.7 | J28: =SUM(J22:J26) -> 470844393.8 | M28: -204087192.1 | N28: =IF(H28=0,0,M28/H28) -> -0.765067225
C30: Frais généraux | F30: 33293951.1 | H30: 33520547.09 | J30: 33520547.09 | M30: =J30-H30 -> 0 | N30: =M30/H30 -> 0
C31: Aléas | F31: 33293951.1 | H31: 33520547.09 | J31: 33520547.09 | M31: =J31-H31 -> 0 | N31: =M31/H31 -> 0
C32: Autres frais proportionnels | F32: 33293951.1 | H32: 33520547.09 | J32: 33520547.09 | M32: =J32-H32 -> 0 | N32: =M32/H32 -> 0
C33: CHAPEAU | F33: =SUM(F30:F32) -> 99881853.3 | G33: =F33/F17 -> 0.3291 | H33: =SUM(H30:H32) -> 100561641.3 | I33: =H33/H17 -> 0.3291 | J33: =SUM(J30:J32) -> 100561641.3 | K33: =J33/J17 -> 0.3291
C36: RESULTAT D'EXPLOITATION | F36: =F17-F33-F28 -> -63094975.71 | G36: =F36/F17 -> -0.2078911817 | H36: =H17-H33-H28 -> -61753236.01 | I36: =H36/H17 -> -0.2020948516 | J36: =J17-J33-J28 -> -265840428.1 | K36: =J36/J17 -> -0.8699946002 | M36: =J36-H36 -> -204087192.1 | N36: =M36/H36 -> 3.30488255
C39: RESULTAT FINANCIER | J39: 670850 | M39: =J39-H39 -> 670850
C40: PRODUITS OU CHARGES EXCEP.
C41: AUTRES PRODUITS D'EXPLOITATION
C43: RESULTAT COURANT | F43: =F36+F39+F40+F41 -> -63094975.71 | G43: =F43/F17 -> -0.2078911817 | H43: =H36+H39+H40+H41 -> -61753236.01 | I43: =H43/H17 -> -0.2020948516 | J43: =J36+J39+J40+J41 -> -265169578.1 | K43: =J43/J17 -> -0.8677991633 | M43: =J43-H43 -> -203416342.1 | N43: =M43/H43 -> 3.294019151
C46: IMPOT | M46: =J46-H46 -> 0 | N46: =IF(H46=0,0,M46/H46) -> 0
C48: RESULTAT NET | F48: =F43-F46 -> -63094975.71 | G48: =F48/F17 -> -0.2078911817 | H48: =H43-H46 -> -61753236.01 | I48: =H48/H17 -> -0.2020948516 | J48: =J43-J46 -> -265169578.1 | K48: =J48/J17 -> -0.8677991633 | M48: =J48-H48 -> -203416342.1 | N48: =M48/H48 -> 3.294019151
D51: Transfert | E51: Objectif | F51: Point 20% | G51: Point 50%
C54: C.A | D54: 303500000 | E54: 303500000 | F54: 305547666 | G54: 305547666
C55: Résultat courant | D55: 6087424 | E55: 83464.96266 | F55: 5716973.174 | G55: 5716973.174
C56: Résultat courant (%) | D56: 0.035 | E56: 0.04 | F56: 0.07 | G56: 0.07

Sheet RECETTES
I2: Mois de référence | L2: =SYNTHESE!N2 -> 2017-01-01
D3: BYMARO | I3: Monnaie locale | L3: =SYNTHESE!N3 -> Dirhams
C4: =SYNTHESE!D4 -> POINT 50% | I4: Taux de conversion | L4: =SYNTHESE!N4 -> 1 € = 10,85dh
I5: Date de l'OS | K5: =SYNTHESE!M5 -> 2015-10-12
D6: =SYNTHESE!E6 -> LES FAUBOURGS D'ANFA | I6: Délai TCE | L6: =SYNTHESE!N6 -> 26 mois
C7: =SYNTHESE!D7 -> 2017-03-06 | D7: =SYNTHESE!E7 -> CASABLANCA | I7: Surface de référence | L7: =SYNTHESE!N7 -> 4783m² SHO
I8: Douanes
B10: RECETTES
F11: en dh
B12: DECOMPOSITION DES RECETTES POSSIBLES
F14: inscrites au CONTRAT | H14: intégrées a l'Objectif | J14: =CONCATENATE("Au ", SYNTHESE!D4) -> Au POINT 50%
C19: MARCHE DE BASE TRANCHE 1 & 2 | F19: 303500000 | H19: =F19 -> 303500000 | J19: =H19 -> 303500000
C20: TRAVAUX SUP. REGULARISE | H20: 714643 | J20: =J44 -> 714643
C30: TOTAL | F30: =SUM(INDIRECT(ADDRESS(18,COLUMN(),)&":"&ADDRESS(ROW()-2,COLUMN(),))) -> 303500000 | H30: =SUM(INDIRECT(ADDRESS(18,COLUMN(),)&":"&ADDRESS(ROW()-2,COLUMN(),))) -> 304214643 | J30: =SUM(INDIRECT(ADDRESS(18,COLUMN(),)&":"&ADDRESS(ROW()-2,COLUMN(),))) -> 304214643
F33: DECOMPOSITION DE L'ACTIVITE
F35: CONTRAT | H35: OBJECTIF Conforme | J35: =SYNTHESE!D4 -> POINT 50%
C38: MARCHE DE BASE | F38: =F30 -> 303500000 | H38: =H30 -> 304214643 | J38: =J30 -> 304214643
C40: TS 1 : Parking et VRD | F40: 10 | H40: 367000 | J40: 367000
C41: TS 2 | H41: 316460 | J41: 316460
C42: TS 3 | H42: 31183 | J42: 31183
C43: TS 4
C44: TRAVAUX SUPPLEMENTAIRES ACQUIS | F44: =SUM(F39:INDIRECT(ADDRESS(ROW()-1,COLUMN(),))) -> 10 | H44: =SUM(H39:INDIRECT(ADDRESS(ROW()-1,COLUMN(),))) -> 714643 | J44: =SUM(J39:INDIRECT(ADDRESS(ROW()-1,COLUMN(),))) -> 714643
C46: REVALORISATION
C48: PRIX DE VENTE | F48: =F38+F44+F46 -> 303500010 | H48: =H38+H44+H46 -> 304929286 | J48: =J38+J44+J46 -> 304929286
C52: Recettes Diverses 1 | H52: 636321 | J52: =H52 -> 636321
C53: Recettes Diverses 2
C54: RECETTES DIVERSES HORS MARCHE | F54: =SUM(F52:INDIRECT(ADDRESS(ROW()-1,COLUMN(),))) -> 0 | H54: =SUM(H52:INDIRECT(ADDRESS(ROW()-1,COLUMN(),))) -> 636321 | J54: =SUM(J52:INDIRECT(ADDRESS(ROW()-1,COLUMN(),))) -> 636321
C56: TOTAL ACTIVITE CHANTIER | F56: =SUM(F48,F54) -> 303500010 | H56: =SUM(H48,H54) -> 305565607 | J56: =SUM(J48,J54) -> 305565607

Sheet DCH
M2: Mois de référence | Q2: =SYNTHESE!N2 -> 2017-01-01
E3: BYMARO | M3: Monnaie locale | Q3: =SYNTHESE!N3 -> Dirhams
C4: =SYNTHESE!D4 -> POINT 50% | M4: Taux de conversion | Q4: =SYNTHESE!N4 -> 1 € = 10,85dh
M5: Date de l'OS | Q5: =SYNTHESE!M5 -> 2015-10-12
C6: =SYNTHESE!D7 -> 2017-03-06 | E6: =SYNTHESE!E6 -> LES FAUBOURGS D'ANFA | M6: Délai TCE | Q6: =SYNTHESE!N6 -> 26 mois
E7: =SYNTHESE!E7 -> CASABLANCA | M7: Surface de référence | Q7: =SYNTHESE!N7 -> 4783m² SHO
M8: Douanes
E10: DEPENSES CHANTIER
H11: en dhs
F13: OBJECTIF | H13: OBJECTIF CONFORME | M13: =SYNTHESE!D4 -> POINT 50% | P13: ECART
F14: Transfert Initial | H14: Transferts de budget | I14: TS | J14: RD | K14: Objectif Conforme | M14: Objectif | P14: Valeur | Q14: %
B16: MAIN D'ŒUVRE DIRECTE | F16: 30028182.23 | H16: 0 | I16: 0 | K16: =F16+H16+I16+J16 -> 30028182.23 | M16: 28363010.76 | P16: =K16-M16 -> 1665171.465 | Q16: =IF(K16=0,0,P16/K16) -> 0.05545362195
B17: BETON | F17: 18719141.82 | H17: 0 | I17: 0 | K17: =F17+H17+I17+J17 -> 18719141.82 | M17: 99094896.48 | P17: =K17-M17 -> -80375754.67 | Q17: =IF(K17=0,0,P17/K17) -> -4.293773479
B18: ACIER | F18: 22502671.49 | H18: 0 | I18: 0 | K18: =F18+H18+I18+J18 -> 22502671.49 | M18: 28864707.79 | P18: =K18-M18 -> -6362036.297 | Q18: =IF(K18=0,0,P18/K18) -> -0.2827236001
B19: AUTRES MATERIAUX | F19: 15368191.59 | H19: -5208230.38 | I19: 5208230.38 | K19: =F19+H19+I19+J19 -> 15368191.59 | M19: 12879892.81 | P19: =K19-M19 -> 2488298.78 | Q19: =IF(K19=0,0,P19/K19) -> 0.1619122696
B20: DIRECT DE PART PROPRE (DPP) | F20: =SUM(F16:F19) -> 86618187.12 | H20: =SUM(H16:H19) -> -5208230.38 | I20: =SUM(I16:I19) -> 5208230.38 | J20: =SUM(J16:J19) -> 0 | K20: =F20+H20+I20+J20 -> 86618187.12 | M20: =SUM(M16:M19) -> 169202507.8 | P20: =K20-M20 -> -82584320.72 | Q20: =IF(K20=0,0,P20/K20) -> -0.953429337
B23: GROS ŒUVRES | F23: 9247357.68 | H23: 5982303.68 | I23: -5982303.68 | K23: =F23+H23+I23+J23 -> 9247357.68 | M23: 10595018.88 | P23: =K23-M23 -> -1347661.2 | Q23: =IF(K23=0,0,P23/K23) -> -0.1457347327
B24: CORPS D'ETAT ARCHITECTURAUX | F24: 84248000 | H24: 0 | I24: 0 | K24: 84248000 | M24: 16991000 | P24: =K24-M24 -> 67257000 | Q24: =IF(K24=0,0,P24/K24) -> 0.7983216219
B25: CORPS D'ETAT TECHNIQUES | F25: 35514000 | H25: 0 | I25: 0 | K25: 35514000 | M25: 55299580 | P25: =K25-M25 -> -19785580 | Q25: =IF(K25=0,0,P25/K25) -> -0.5571205722
B26: SOUS TRAITANTS (ST) | F26: =SUM(F23:F25) -> 129009357.7 | H26: =SUM(H23:H25) -> 5982303.68 | I26: =SUM(I23:I25) -> -5982303.68 | J26: =SUM(J23:J25) -> 0 | K26: =F26+H26+I26+J26 -> 129009357.7 | M26: =SUM(M23:M25) -> 82885598.88 | P26: =K26-M26 -> 46123758.8 | Q26: =IF(K26=0,0,P26/K26) -> 0.3575225831
B29: INSTALLATION DE CHANTIER | F29: 2377968 | H29: 0 | I29: 0 | J29: 0 | K29: =F29+H29+I29+J29 -> 2377968 | M29: 3922625.88 | P29: =K29-M29 -> -1544657.88 | Q29: =IF(K29=0,0,P29/K29) -> -0.6495705073
B30: LOCATION MATERIEL | F30: 4451136.27 | H30: 0 | I30: 0 | J30: 0 | K30: =F30+H30+I30+J30 -> 4451136.27 | M30: 62032331.36 | P30: =K30-M30 -> -57581195.09 | Q30: -12.93629123
B31: ACHATS | F31: 2553105 | H31: 0 | I31: 0 | J31: 0 | K31: 2553105 | M31: 115463214.7 | P31: -112910109.7 | Q31: -44.22462442
B32: MAIN D'OEUVRE INDIRECTE | F32: 4974500 | H32: 0 | I32: 0 | J32: 0 | K32: 4974500 | M32: 22811670.06 | P32: -17837170.06 | Q32: -3.58572119
B33: MAITRISE | F33: 3365795.5 | H33: 0 | I33: 0 | J33: 0 | K33: 3365795.5 | M33: 4529893.97 | P33: -1164098.47 | Q33: -0.3458613187
B34: FRAIS DE FONCTIONNEMENT | F34: 3876530 | H34: 0 | I34: 0 | J34: 0 | K34: 3876530 | M34: 5187719.43 | P34: -1311189.43 | Q34: -0.3382379164
B35: COFFRAGE | F35: 12964870.76 | H35: 0 | I35: 0 | J35: 0 | K35: 12964870.76 | M35: 1725854.84 | P35: 11239015.92 | Q35: 0.866882218
B36: ENCADREMENT | F36: 10126417.5 | H36: 0 | I36: 0 | J36: 0 | K36: 10126417.5 | M36: 1779297.62 | P36: 8347119.88 | Q36: 0.8242915009
B37: ETUDES | F37: 290000 | H37: 0 | I37: 0 | J37: 0 | K37: 290000 | M37: 524000 | P37: -234000 | Q37: -0.8068965517
B38: MISSION & HEBERGEMENT | F38: 762300 | H38: 0 | I38: 0 | J38: 0 | K38: 762300 | M38: 160554.12 | P38: 601745.88 | Q38: 0.7893819756
B39: DEPENSES ANNEXES | F39: 4956000 | H39: 0 | I39: 0 | J39: 0 | K39: =F39+H39+I39+J39 -> 4956000 | M39: 232160.51 | P39: =K39-M39 -> 4723839.49 | Q39: =IF(K39=0,0,P39/K39) -> 0.9531556679
B40: RECETTES DIVERSES | F40: 386964.58 | H40: 0 | I40: 0 | J40: 44069.33 | K40: =F40+H40+I40+J40 -> 431033.91 | M40: 386964.58 | P40: =K40-M40 -> 44069.33 | Q40: =IF(K40=0,0,P40/K40) -> 0.1022409815
B41: INDIRECT DE PART PROPRE | F41: =SUM(F$29:F40) -> 51085587.61 | H41: =SUM(H$29:H40) -> 0 | I41: =SUM(I$29:I40) -> 0 | J41: =SUM(J$29:J40) -> 44069.33 | K41: =SUM(K$29:K40) -> 51129656.94 | M41: =SUM(M$29:M40) -> 218756287.1 | P41: -167626630.2 | Q41: -3.27846186
B44: DEPENSES CHANTIER - non révisé | F44: =SUM(F26,F41,F20) -> 266713132.4 | H44: =SUM(H26,H41,H20) -> 774073.3 | I44: =SUM(I26,I41,I20) -> -774073.3 | J44: =SUM(J26,J41,J20) -> 44069.33 | K44: =SUM(K26,K41,K20) -> 266757201.7 | M44: =SUM(M26,M41,M20) -> 470844393.8 | P44: =K44-M44 -> -204087192.1 | Q44: =IF(K44=0,0,P44/K44) -> -0.765067225
B46: RISQUES TECHNIQUES IDENTIFIES | F46: 0 | H46: 0 | I46: 0 | K46: =F46+H46+I46+J46 -> 0 | M46: 0 | P46: =K46-M46 -> 0 | Q46: =IF(K46=0,0,P46/K46) -> 0
B47: REVISION | F47: 0 | H47: 0 | I47: 0 | K47: =F47+H47+I47+J47 -> 0 | M47: 0 | P47: =K47-M47 -> 0 | Q47: =IF(K47=0,0,P47/K47) -> 0
B49: DEPENSES CHANTIER (DCH) - révisé | F49: =F44+SUM(F46:F47) -> 266713132.4 | H49: =SUM(H44:H47) -> 774073.3 | I49: =I44+SUM(I46:I47) -> -774073.3 | J49: =J44+SUM(J46:J47) -> 44069.33 | K49: =F49+H49+I49+J49 -> 266757201.7 | M49: =M44+SUM(M46:M47) -> 470844393.8 | P49: =K49-M49 -> -204087192.1 | Q49: =IF(K49=0,0,P49/K49) -> -0.765067225

Sheet CHAPEAU
N2: Mois de référence | R2: =SYNTHESE!N2 -> 2017-01-01
F3: BYMARO | N3: Monnaie locale | R3: =SYNTHESE!N3 -> Dirhams
D4: =SYNTHESE!D4 -> POINT 50% | N4: Taux de conversion | R4: =SYNTHESE!N4 -> 1 € = 10,85dh
N5: Date de l'OS | R5: =SYNTHESE!M5 -> 2015-10-12
D6: =SYNTHESE!D7 -> 2017-03-06 | F6: =SYNTHESE!E6 -> LES FAUBOURGS D'ANFA | N6: Délai TCE | R6: =SYNTHESE!N6 -> 26 mois
F7: =SYNTHESE!E7 -> CASABLANCA | N7: Surface de référence | R7: =SYNTHESE!N7 -> 4783m² SHO
N8: Douanes
E10: FRAIS CHAPEAU
H11: en dh
B13: 1 | C13: RECETTES | H13: =RECETTES!F56 -> 303500010 | K13: =RECETTES!H56 -> 305565607 | N13: =RECETTES!J56 -> 305565607 | Q13: =N13-K13 -> 0 | R13: =IF(K13=0,0,Q13/K13) -> 0
B15: 1 | C15: DEPENSES CHANTIER - révisé | H15: =DCH!F44 -> 266713132.4 | K15: =DCH!K44 -> 266757201.7 | N15: =DCH!M44 -> 470844393.8 | Q15: =K15-N15 -> -204087192.1 | R15: =IF(K15=0,0,Q15/K15) -> -0.765067225
H17: OBJECTIF | K17: BUDGETS CONFORME | N17: =SYNTHESE!D4 -> POINT 50% | Q17: ECART
C20: DETAIL CHAPEAU | E20: TAUX | F20: ASSIETTE
C22: Frais généraux BOUYGUES | E22: 0.026 | F22: Total Activité | H22: =IF(E22=0,"",E22*$H$13) -> 7891000.26 | K22: =IF(E22=0,"",E22*$K$13) -> 7944705.782 | N22: =IF(E22=0,"",E22*$N$13) -> 7944705.782 | Q22: =IFERROR(K22-N22,"") -> 0 | R22: =IFERROR(IF(K22=0,"",Q22/K22),"") -> 0
C23: Frais généraux BYMARO | E23: 0.0575 | F23: Total Activité | H23: 17451250.57 | K23: 17570022.4 | N23: 17570022.4 | Q23: 0 | R23: 0
C24: Aléas Chantier | E24: 0.02 | F24: Total Activité | H24: 6070000.2 | K24: 6111312.14 | N24: 6111312.14 | Q24: 0 | R24: 0
C25: Assurance RC PRO | E25: 0.0025 | F25: Total Activité | H25: 758750.025 | K25: 763914.0175 | N25: 763914.0175 | Q25: 0 | R25: 0
C26: Assurance RC Bymaro | E26: 0.001 | F26: Total Activité | H26: 303500.01 | K26: 305565.607 | N26: 305565.607 | Q26: 0 | R26: 0
C27: BYMARO TOPO + CFI | E27: 0.0017 | F27: Total Activité | H27: 515950.017 | K27: 519461.5319 | N27: 519461.5319 | Q27: 0 | R27: 0
C28: Portail Achat | E28: 0.001 | F28: Total Activité | H28: =IF(E28=0,"",E28*$H$13) -> 303500.01 | K28: =IF(E28=0,"",E28*$K$13) -> 305565.607 | N28: =IF(E28=0,"",E28*$N$13) -> 305565.607 | Q28: =IFERROR(K28-N28,"") -> 0 | R28: =IFERROR(IF(K28=0,"",Q28/K28),"") -> 0
H29: =IF(E29=0,"",E29*$H$13) ->  | K29: =IF(E29=0,"",E29*$K$13) ->  | N29: =IF(E29=0,"",E29*$N$13) ->  | Q29: =IFERROR(K29-N29,"") ->  | R29: =IFERROR(IF(K29=0,"",Q29/K29),"") -> 
A31: 1
A32: 28 | B32: 2 | C32: CHAPEAU | H32: =SUM(INDIRECT(ADDRESS(22,COLUMN(),)&":"&ADDRESS(ROW()-2,COLUMN(),))) -> 33293951.1 | I32: =H32/H13 -> 0.1097 | K32: =SUM(INDIRECT(ADDRESS(22,COLUMN(),)&":"&ADDRESS(ROW()-2,COLUMN(),))) -> 33520547.09 | L32: =K32/K13 -> 0.1097 | N32: =SUM(INDIRECT(ADDRESS(22,COLUMN(),)&":"&ADDRESS(ROW()-2,COLUMN(),))) -> 33520547.09 | O32: =N32/N13 -> 0.1097 | Q32: =K32-N32 -> 0 | R32: =IF(K32=0,0,Q32/K32) -> 0
B34: 1 | C34: RESULTAT D'EXPLOITATION | H34: =H$13-INDIRECT(ADDRESS(ROW()-2,COLUMN(),))-H$15 -> 3492926.491 | I34: =H34/H13 -> 0.01150881837 | K34: =H$13-INDIRECT(ADDRESS(ROW()-2,COLUMN(),))-H$15 -> 3266330.5 | L34: =K34/K13 -> 0.01068945727 | N34: =H$13-INDIRECT(ADDRESS(ROW()-2,COLUMN(),))-H$15 -> 3266330.5 | O34: =N34/N13 -> 0.01068945727 | Q34: =N34-K34 -> 0 | R34: =IF(K34=0,0,Q34/K34) -> 0
I38: CONDITIONS FINANCIERES
D40: Acompte | G40: Montant HT : | H40: 29690000 | J40: soit | K40: 10% du marché
G41: Remboursement dans : | J41: soit
D43: Caution: | G43: 0.05 | H43: Cautionnable | J43: Libérable: | L43: à réception
L44: à 1 an
D46: Conditions de paiement: | G46: 45 | H46: jours | J46: Mode de paiement : | L46: Virement
J47: Echéancier : | L47: Non
D49: Garantie de paiement : | G49: non
D51: Pénalités: | E51: Non réspect du délai global L1 60000/jour L2 85000/Jour
E52: Non réspect du délai Partiel L1 33 000/jour L2 33000/Jour

Sheet TS
L2: Mois de référence | O2: =SYNTHESE!N2 -> 2017-01-01
D3: BYMARO | L3: Monnaie locale | O3: =SYNTHESE!N3 -> Dirhams
C4: =SYNTHESE!D4 -> POINT 50% | L4: Taux de conversion | O4: =SYNTHESE!N4 -> 1 € = 10,85dh
L5: Date de l'OS | O5: =SYNTHESE!M5 -> 2015-10-12
C6: =SYNTHESE!D7 -> 2017-03-06 | D6: =SYNTHESE!E6 -> LES FAUBOURGS D'ANFA | L6: Délai TCE | O6: =SYNTHESE!N6 -> 26 mois
D7: =SYNTHESE!E7 -> CASABLANCA | L7: Surface de référence | O7: =SYNTHESE!N7 -> 4783m² SHO
L8: Douanes
B10: =CONCATENATE("TRAVAUX SUPPLEMENTAIRES ACQUIS AU ",SYNTHESE!D4) -> TRAVAUX SUPPLEMENTAIRES ACQUIS AU POINT 50%
B11: en dh
E13: TS | G13: Avenant N°1 | H13: TS2 | I13: TS3 | J13: TS4 | K13: TS5 | L13: TS6 | M13: TS7 | N13: TS8 | O13: TS9
C14: NOM
C15: =SYNTHESE!D4 -> POINT 50% | E15: TOTAL | G15: 367000 | H15: 316460 | I15: 31183 | J15: 105657.51 | K15: 67222 | L15: 44807 | M15: 479015.52
C16: DATE DE PRISE EN COMPTE | G16: 2016-01-01 | H16: 2016-05-01
C17: RECETTES | E17: =SUM(G17:O17) -> 1411345.03 | G17: =+G15 -> 367000 | H17: =+H15 -> 316460 | I17: =+I15 -> 31183 | J17: =+J15 -> 105657.51 | K17: 67222 | L17: 44807 | M17: 479015.52
B20: MAIN D'ŒUVRE DIRECTE
B21: BETON | G21: 45944.32 | H21: 40797.42
B22: ACIER
B23: AUTRES MATERIAUX
B24: DIRECT DE PART PROPRE (DPP) | G24: =SUM(G20:G23) -> 45944.32 | H24: =SUM(H20:H23) -> 40797.42 | I24: =SUM(I20:I23) -> 0
B26: GROS ŒUVRE
B27: CORPS D'ETAT ARCHI. | G27: 48894.4 | H27: =263796.7+86422.61 -> 350219.31 | I27: 28386
B28: CORPS D'ETAT TECHNIQUES | G28: 239241.38 | H28: -102943.19
B29: SOUS TRAITANTS (ST) | G29: =SUM(G26:G28) -> 288135.78 | H29: =SUM(H26:H28) -> 247276.12 | I29: =SUM(I26:I28) -> 28386
B31: INSTALLATION DE CHANTIER
B32: LOCATION MATERIEL
B33: ACHATS
B34: MAIN D'OEUVRE INDIRECTE
B35: MAITRISE
B36: FRAIS DE FONCTIONNEMENT
B37: COFFRAGE
B38: ENCADREMENT
B39: ETUDES
B40: MISSION & HEBERGEMENT
B41: DEPENSES ANNEXES
B42: RECETTES DIVERSES
B43: INDIRECTS | G43: =SUM(INDIRECT(ADDRESS(31,COLUMN())):INDIRECT(ADDRESS(ROW()-1,COLUMN(),))) -> 0 | H43: =SUM(INDIRECT(ADDRESS(31,COLUMN())):INDIRECT(ADDRESS(ROW()-1,COLUMN(),))) -> 0 | I43: =SUM(INDIRECT(ADDRESS(31,COLUMN())):INDIRECT(ADDRESS(ROW()-1,COLUMN(),))) -> 0 | J43: =SUM(INDIRECT(ADDRESS(31,COLUMN())):INDIRECT(ADDRESS(ROW()-1,COLUMN(),))) -> 0 | K43: =SUM(INDIRECT(ADDRESS(31,COLUMN())):INDIRECT(ADDRESS(ROW()-1,COLUMN(),))) -> 0 | L43: =SUM(INDIRECT(ADDRESS(31,COLUMN())):INDIRECT(ADDRESS(ROW()-1,COLUMN(),))) -> 0 | M43: =SUM(INDIRECT(ADDRESS(31,COLUMN())):INDIRECT(ADDRESS(ROW()-1,COLUMN(),))) -> 0 | N43: =SUM(INDIRECT(ADDRESS(31,COLUMN())):INDIRECT(ADDRESS(ROW()-1,COLUMN(),))) -> 0 | O43: =SUM(INDIRECT(ADDRESS(31,COLUMN())):INDIRECT(ADDRESS(ROW()-1,COLUMN(),))) -> 0
B45: DEPENSES CHANTIER | G45: =G43+G29+G24 -> 334080.1 | H45: 288073.54 | I45: 28386 | J45: 0 | K45: 0 | L45: 0 | M45: 0 | N45: 0 | O45: 0
B47: FRAIS CHAPEAU | G47: =G17*SUM(CHAPEAU!$E$22:$E$27) -> 39892.9 | H47: =H17*SUM(CHAPEAU!$E$22:$E$27) -> 34399.202 | I47: =I17*SUM(CHAPEAU!$E$22:$E$27) -> 3389.5921 | J47: =J17*SUM(CHAPEAU!$E$22:$E$27) -> 11484.97134 | K47: =K17*SUM(CHAPEAU!$E$22:$E$27) -> 7307.0314 | L47: =L17*SUM(CHAPEAU!$E$22:$E$27) -> 4870.5209 | M47: =M17*SUM(CHAPEAU!$E$22:$E$27) -> 52068.98702 | N47: =N17*SUM(CHAPEAU!$E$22:$E$27) -> 0 | O47: =O17*SUM(CHAPEAU!$E$22:$E$27) -> 0
B49: Marge TS | E49: =SUM(G49:O49) -> 607392.1852 | G49: =G17-G45-G47 -> -6973 | H49: -6012.742 | I49: -592.5921 | J49: 94172.53866 | K49: 59914.9686 | L49: 39936.4791 | M49: 426946.533 | N49: 0 | O49: 0
B50: Marge en % sur TS | E50: =IF(E17=0,0,E49/E17) -> 0.4303640657 | G50: =IF(G17=0,0,G49/G17) -> -0.019 | H50: -0.01900000632 | I50: -0.01900369111 | J50: 0.8913 | K50: 0.8913 | L50: 0.8913 | M50: 0.8913 | N50: 0 | O50: 0
B51: Ecart sur Obj | E51: =SUM(G51:O51) -> 0 | G51: 0 | I51: 0 | J51: 0 | K51: 0 | L51: 0 | M51: 0 | N51: 0 | O51: 0

Sheet ECARTS
K2: Mois de référence | M2: =SYNTHESE!N2 -> 2017-01-01
D3: BYMARO | K3: Monnaie locale | M3: =SYNTHESE!N3 -> Dirhams
C4: =SYNTHESE!D4 -> POINT 50% | K4: Taux de conversion | M4: =SYNTHESE!N4 -> 1 € = 10,85dh
K5: Date de l'OS | M5: =SYNTHESE!M5 -> 2015-10-12
D6: =SYNTHESE!E6 -> LES FAUBOURGS D'ANFA | K6: Délai TCE | M6: =SYNTHESE!N6 -> 26 mois
C7: =SYNTHESE!D7 -> 2017-03-06 | D7: =SYNTHESE!E7 -> CASABLANCA | K7: Surface de référence | M7: =SYNTHESE!N7 -> 4783m² SHO
K8: Douanes
B10: SYNTHESE DES ECARTS
B11: en dh
B13: BUDGET CONCERNE | D13: ECART | E13: COMMENTAIRES GENERAUX (voir chap. 9 pour détails)
B16: MAIN D'ŒUVRE DIRECTE | D16: =DCH!P16 -> 1665171.465
B17: BETON | D17: =DCH!P17 -> -80375754.67
B18: ACIER | D18: =DCH!P18 -> -6362036.297
B19: AUTRES MATERIAUX | D19: =DCH!P19 -> 2488298.78
B20: DIRECT DE PART PROPRE (DPP) | D20: =SUM(D16:D19) -> -82584320.72
B23: GROS ŒUVRE | D23: =DCH!P23 -> -1347661.2 | E23: Gain sur prix unitaire des pieux
B24: CORPS D'ETAT ARCHITECTURAUX | D24: =DCH!P24 -> 67257000 | E24: Perte sur façades en quantité (claim déposée) et en prix unitaire
B25: CORPS D'ETAT TECHNIQUES | D25: =DCH!P25 -> -19785580 | E25: Rabais commercial important du sous-traitant
B26: SOUS TRAITANTS (ST) | D26: =SUM(D23:D25) -> 46123758.8
B29: INSTALLATION DE CHANTIER | D29: -1544657.88
B30: LOCATION MATERIEL | D30: -57581195.09
B31: ACHATS | D31: -112910109.7
B32: MAIN D'OEUVRE INDIRECTE | D32: -17837170.06
B33: MAITRISE | D33: -1164098.47
B34: FRAIS DE FONCTIONNEMENT | D34: -1311189.43
B35: COFFRAGE | D35: 11239015.92
B36: ENCADREMENT | D36: 8347119.88
B37: ETUDES | D37: -234000
B38: MISSION & HEBERGEMENT | D38: 601745.88
B39: DEPENSES ANNEXES | D39: 4723839.49
B40: RECETTES DIVERSES | D40: 44069.33
B41: INDIRECT DE PART PROPRE | D41: =SUM(D$29:D40) -> -167626630.2
B44: DEPENSES TCE non révisé | D44: =D20+D26+D41 -> -204087192.1
B46: =DCH!B46 -> RISQUES TECHNIQUES IDENTIFIES | D46: 0
B47: =DCH!B47 -> REVISION | D47: 0
B49: DEPENSES CHANTIER (DCH) révisé | D49: =D44+D46+D47 -> -204087192.1

Sheet Synthese DS
A1: BYMARO
A3: RECAP. DEBOURSES SECS | L3: =SYNTHESE!D4 -> POINT 50%
A6: Affaire N° | B6: 400223 | M6: Date : | N6: =SYNTHESE!D7 -> 2017-03-06
A7: Chantier | B7: =SYNTHESE!E6 -> LES FAUBOURGS D'ANFA | M7: Rédacteur : | N7: LBA/KHA
A8: Tx change obj. | B8: =SYNTHESE!N4 -> 1 € = 10,85dh
K9: POINT 50% | M9: ECARTS
C10: Objectif | E10: TRANSFERT | G10: T.S | I10: Obj.CONFORME
E11: +/- | G11: +/-
A12: DESIGNATIONS | B12: U | C12: Qté | D12: Montant | E12: QTE | F12: Montant | G12: QTE | H12: Montant | I12: Qté | J12: Montant | K12: Qté | L12: Montant | M12: Qté | N12: DH | O12: %
A14: MOD | B14: Hr | C14: =INDIRECT("'" & LEFT(INDIRECT("A" & ROW()),2) &" Qte'!" & "E11") -> 828935.8181 | D14: =INDIRECT("'" & LEFT(INDIRECT("A" & ROW()),2) &" Qte'!" & "E6") -> 30028182.23 | E14: =INDIRECT("'" & LEFT(INDIRECT("A" & ROW()),2) &" Qte'!" & "F11") -> 0 | F14: =INDIRECT("'" & LEFT(INDIRECT("A" & ROW()),2) &" Qte'!" & "F6") -> 0 | G14: =INDIRECT("'" & LEFT(INDIRECT("A" & ROW()),2) &" Qte'!" & "G11") -> 0 | H14: =INDIRECT("'" & LEFT(INDIRECT("A" & ROW()),2) &" Qte'!" & "G6") -> 0 | I14: =INDIRECT("'" & LEFT(INDIRECT("A" & ROW()),2) &" Qte'!" & "H11") -> 828935.8181 | J14: =INDIRECT("'" & LEFT(INDIRECT("A" & ROW()),2) &" Qte'!" & "H6") -> 30028182.23 | K14: =INDIRECT("'" & LEFT(INDIRECT("A" & ROW()),2) &" Qte'!" & "V11") -> 268808.7804 | L14: =INDIRECT("'" & LEFT(INDIRECT("A" & ROW()),2) &" Qte'!" & "V6") -> 28363010.76 | M14: =I14-K14 -> 560127.0377 | N14: =J14-L14 -> 1665171.465 | O14: =N14/J14 -> 0.05545362195
A16: BETON | B16: M3 | C16: =INDIRECT("'" & INDIRECT("A" & ROW()) &" Qte'!" & "E11") -> 13751.581 | D16: =INDIRECT("'" & INDIRECT("A" & ROW()) &" Qte'!" & "E6") -> 18719141.82 | E16: =INDIRECT("'" & INDIRECT("A" & ROW()) &" Qte'!" & "F11") -> 0 | F16: =INDIRECT("'" & INDIRECT("A" & ROW()) &" Qte'!" & "F6") -> 0 | G16: =INDIRECT("'" & INDIRECT("A" & ROW()) &" Qte'!" & "G11") -> 0 | H16: =INDIRECT("'" & INDIRECT("A" & ROW()) &" Qte'!" & "G6") -> 0 | I16: =INDIRECT("'" & INDIRECT("A" & ROW()) &" Qte'!" & "H11") -> 13751.581 | J16: =INDIRECT("'" & INDIRECT("A" & ROW()) &" Qte'!" & "H6") -> 18719141.82 | K16: =INDIRECT("'" & INDIRECT("A" & ROW()) &" Qte'!" & "V11") -> 13521.56178 | L16: =INDIRECT("'" & INDIRECT("A" & ROW()) &" Qte'!" & "V6") -> 99094896.48 | M16: =I16-K16 -> 230.0192248 | N16: =J16-L16 -> -80375754.67 | O16: =N16/J16 -> -4.293773479
A18: ACIER | B18: Kg | C18: =INDIRECT("'" & INDIRECT("A" & ROW()) &" Qte'!" & "E11") -> 1756.261149 | D18: =INDIRECT("'" & INDIRECT("A" & ROW()) &" Qte'!" & "E6") -> 22502671.49 | E18: =INDIRECT("'" & INDIRECT("A" & ROW()) &" Qte'!" & "F11") -> 0 | F18: =INDIRECT("'" & INDIRECT("A" & ROW()) &" Qte'!" & "F6") -> 0 | G18: =INDIRECT("'" & INDIRECT("A" & ROW()) &" Qte'!" & "G11") -> 0 | H18: =INDIRECT("'" & INDIRECT("A" & ROW()) &" Qte'!" & "G6") -> 0 | I18: =INDIRECT("'" & INDIRECT("A" & ROW()) &" Qte'!" & "H11") -> 1756.261149 | J18: =INDIRECT("'" & INDIRECT("A" & ROW()) &" Qte'!" & "H6") -> 22502671.49 | K18: =INDIRECT("'" & INDIRECT("A" & ROW()) &" Qte'!" & "V11") -> 1541.667042 | L18: =INDIRECT("'" & INDIRECT("A" & ROW()) &" Qte'!" & "V6") -> 28864707.79 | M18: =I18-K18 -> 214.594107 | N18: =J18-L18 -> -6362036.297 | O18: =N18/J18 -> -0.2827236001
A20: AUTRES MATERIAUX | B20: Ens | D20: =J20-H20-F20 -> 15368191.59 | F20: =INDIRECT("'DETAILS'!D8") -> -5208230.38 | H20: =INDIRECT("'DETAILS'!E8") -> 5208230.38 | J20: =INDIRECT("'DETAILS'!C8") -> 15368191.59 | L20: =OFFSET(INDIRECT("'DETAILS'!"&ADDRESS(8,MATCH(9^9,DETAILS!8:8))),,-1,,) -> 12580815.04 | N20: =J20-L20 -> 2787376.55 | O20: =N20/J20 -> 0.1813731
A38: TOTAL DS | D38: =SUM(INDIRECT(ADDRESS(13,COLUMN())):INDIRECT(ADDRESS(ROW()-1,COLUMN(),))) -> 86618187.12 | F38: =SUM(INDIRECT(ADDRESS(13,COLUMN())):INDIRECT(ADDRESS(ROW()-1,COLUMN(),))) -> -5208230.38 | H38: =SUM(INDIRECT(ADDRESS(13,COLUMN())):INDIRECT(ADDRESS(ROW()-1,COLUMN(),))) -> 5208230.38 | J38: =SUM(INDIRECT(ADDRESS(13,COLUMN())):INDIRECT(ADDRESS(ROW()-1,COLUMN(),))) -> 86618187.12 | L38: =SUM(INDIRECT(ADDRESS(13,COLUMN())):INDIRECT(ADDRESS(ROW()-1,COLUMN(),))) -> 168903430.1 | N38: =L38-J38 -> 82285242.95 | O38: =N38/J38 -> 0.9499765082

Sheet MO Qte
A3: BILAN MAIN D'ŒUVRE
B5: P.U. | E5: 21.5 | F5: 21.5 | G5: 21.5 | H5: 21.5 | J5: =H5 -> 21.5 | L5: =IFERROR(L6/(L11+L67+L119),"") -> 226.0445571 | M5: =IFERROR(J5-L5,"") -> -204.5445571 | O5: =H5 -> 21.5 | Q5: =IFERROR(Q6/(Q11+Q67+Q119),"") ->  | R5: =IFERROR(O5-Q5,"") ->  | T5: =H5 -> 21.5 | V5: =IFERROR(V6/(V11+V67+V119),"") -> 39.60967504 | W5: =IFERROR(H5-V5,"") -> -18.10967504 | AD5: 21.5 | AF5: 226.0445571 | AG5: -204.5445571
B6: MONTANT | E6: =IFERROR(E5*(E11+E67),"") -> 30028182.23 | F6: =IFERROR(F5*(F11+F67),"") -> 0 | G6: =IFERROR(G5*(G11+G67),"") -> 0 | H6: =IFERROR(H5*(H11+H67),"") -> 30028182.23 | J6: =IFERROR(J5*(J11+J67),"") -> 774205.8493 | L6: =IFERROR(Q6+AF6,"") -> 13960059.76 | M6: =IFERROR(J6-L6,"") -> -13185853.91 | O6: =IFERROR(O5*(O11+O67),"") -> 0 | R6: =IFERROR(O6-Q6,"") -> 0 | T6: =IFERROR(T5*(T11+T67),"") -> 14402951 | V6: =IFERROR(L6+T6,"") -> 28363010.76 | W6: =IFERROR(H6-V6,"") -> 1665171.465 | AD6: 774205.8493 | AF6: 13960059.76 | AG6: -13185853.91
J7: xxxxxxx | K7: xxxxxxx | P7: xxxxxxx | AD7: xxxxxxx | AE7: xxxxxxx
E8: BUDG. Réf. | F8: Trsf. +/- | G8: TS | H8: BUDG. Réf. | J8: CUMUL A FIN MARS-2017 | O8: MOIS DE MARS-2017 | T8: RAD | V8: CUMUL FDC | AD8: CUMUL A FIN FÉVRIER-2017
A9: Code OTP | B9: Description OTP | C9: . | D9: Unité | E9: Qté | F9: Qté | G9: Qté | H9: Qté | I9: . | J9: Budget Avancé | L9: Dépenses | M9: Ecart | N9: . | O9: Budget Avancé | Q9: Dépenses | R9: Ecart | S9: . | T9: Qtés | U9: . | V9: Dépenses | W9: Ecarts | AD9: Budget Avancé | AF9: Dépenses | AG9: Ecart
D10: Res. | J10: Qté | K10: % | L10: Qté | M10: Qté | O10: Qté | P10: % | Q10: Qté | R10: Qté | V10: Qté | W10: Qté | AD10: Qté | AE10: % | AF10: Qté | AG10: Qté
B11: PART PROPRE | D11: H | E11: =E12+E24+E35+E38+E41+E57 -> 828935.8181 | F11: =F12+F24+F35+F38+F41+F57 -> 0 | G11: =G12+G24+G35+G38+G41+G57 -> 0 | H11: =H12+H24+H35+H38+H41+H57 -> 828935.8181 | J11: =J12+J24+J35+J38+J41+J57 -> 6478.794888 | K11: =IFERROR(J11/H11,"") -> 0.007815797975 | L11: =L12+L24+L35+L38+L41+L57 -> 6927 | M11: =M12+M24+M35+M38+M41+M57 -> -448.205112 | O11: =O12+O24+O35+O38+O41+O57 -> 0 | P11: =IFERROR(O11/H11,"") -> 0 | Q11: =Q12+Q24+Q35+Q38+Q41+Q57 -> 0 | R11: =R12+R24+R35+R38+R41+R57 -> 0 | T11: =T12+T24+T35+T38+T41+T57 -> 261881.7804 | V11: =V12+V24+V35+V38+V41+V57 -> 268808.7804 | W11: =W12+W24+W35+W38+W41+W57 -> 560127.0377 | AD11: 6478.794888 | AE11: 0.01969622805 | AF11: 6927 | AG11: -448.205112
A12: MATX.400220.PP.DS.1.1 | B12: FONDATION - GH4 | D12: H | E12: =SUM(E13:E23) -> 508883.7827 | F12: =SUM(F13:F23) -> 0 | G12: =SUM(G13:G23) -> 0 | H12: =SUM(H13:H23) -> 508883.7827 | J12: =SUM(J13:J23) -> 5631.696538 | K12: =IFERROR(J12/H12,"") -> 0.01106676363 | L12: =SUM(L13:L23) -> 6081 | M12: =SUM(M13:M23) -> -449.303462 | O12: =SUM(O13:O23) -> 0 | P12: =IFERROR(O12/H12,"") -> 0 | Q12: =SUM(Q13:Q23) -> 0 | R12: =SUM(R13:R23) -> 0 | T12: =SUM(T13:T23) -> 0 | V12: =SUM(V13:V23) -> 6081 | W12: =SUM(W13:W23) -> 502802.7827 | AD12: 5631.696538 | AE12: 0.6339300192 | AF12: 6081 | AG12: -449.303462
B13: BETON DE PROPRETE | D13: H | E13: 410.8 | H13: =SUM(E13:G13) -> 410.8 | J13: =H13*K13/100 -> 291.668 | K13: ='BETON Qte'!K13 -> 71 | L13: =Q13+AF13 -> 375 | M13: =J13-L13 -> -83.332 | O13: =J13-AD13 -> 0 | P13: =IFERROR(O13/H13,0) -> 0 | R13: =O13-Q13 -> 0 | T13: 0 | V13: =L13+T13 -> 375 | W13: =H13-V13 -> 35.8 | AD13: 291.668 | AE13: 71 | AF13: 375 | AG13: -83.332
B14: GROS BETON | D14: H | E14: 304.2 | H14: =SUM(E14:G14) -> 304.2 | J14: =H14*K14/100 -> 203.814 | K14: ='BETON Qte'!K14 -> 67 | L14: =Q14+AF14 -> 1 | M14: =J14-L14 -> 202.814 | O14: =J14-AD14 -> 0 | P14: =IFERROR(O14/H14,0) -> 0 | R14: =O14-Q14 -> 0 | T14: 0 | V14: =L14+T14 -> 1 | W14: =H14-V14 -> 303.2 | AD14: 203.814 | AE14: 67 | AF14: 1 | AG14: 202.814
B15: BETON CYCLOPEEN POUR MARMITES | D15: H | E15: 500000 | H15: 500000 | J15: 0 | K15: ='BETON Qte'!K15 -> 0 | L15: 252 | M15: -252 | O15: 0 | P15: 0 | R15: 0 | T15: 0 | V15: 252 | W15: 499748 | AD15: 0 | AE15: 0 | AF15: 252 | AG15: -252
B16: SEMELLES ISOLEES | D16: H | E16: 674.18 | H16: 674.18 | J16: 330.3482 | K16: ='BETON Qte'!K16 -> 49 | L16: 54 | M16: 276.3482 | O16: 0 | P16: 0 | R16: 0 | T16: 0 | V16: 54 | W16: 620.18 | AD16: 330.3482 | AE16: 49 | AF16: 54 | AG16: 276.3482
B17: SEMELLES FILANTES | D17: H | E17: 2488.9332 | H17: 2488.9332 | J17: 1966.257228 | K17: ='BETON Qte'!K17 -> 79 | L17: 956 | M17: 1010.257228 | O17: 0 | P17: 0 | R17: 0 | T17: 0 | V17: 956 | W17: 1532.9332 | AD17: 1966.257228 | AE17: 79 | AF17: 956 | AG17: 1010.257228
B18: LONGRINES | D18: H | E18: 1389.96 | H18: 1389.96 | J18: 861.7752 | K18: ='BETON Qte'!K18 -> 62 | L18: 1307 | M18: -445.2248 | O18: 0 | P18: 0 | R18: 0 | T18: 0 | V18: 1307 | W18: 82.96 | AD18: 861.7752 | AE18: 62 | AF18: 1307 | AG18: -445.2248
B19: AMORCE DE POTEAUX | D19: H | E19: 480.48 | H19: 480.48 | J19: 384.384 | K19: ='BETON Qte'!K19 -> 80 | L19: 506 | M19: -121.616 | O19: 0 | P19: 0 | R19: 0 | T19: 0 | V19: 506 | W19: -25.52 | AD19: 384.384 | AE19: 80 | AF19: 506 | AG19: -121.616
B20: AMORCE DE VOILE | D20: H | E20: 2255.3895 | H20: 2255.3895 | J20: 1308.12591 | K20: ='BETON Qte'!K20 -> 58 | L20: 904 | M20: 404.12591 | O20: 0 | P20: 0 | R20: 0 | T20: 0 | V20: 904 | W20: 1351.3895 | AD20: 1308.12591 | AE20: 58 | AF20: 904 | AG20: 404.12591
B21: DALLAGE (ep 15cm 35kg/m3) | D21: H | E21: 764.4 | H21: 764.4 | J21: 198.744 | K21: ='BETON Qte'!K21 -> 26 | L21: 575 | M21: -376.256 | O21: 0 | P21: 0 | R21: 0 | T21: 0 | V21: 575 | W21: 189.4 | AD21: 198.744 | AE21: 26 | AF21: 575 | AG21: -376.256
B22: RADIER RAMPE | D22: H | E22: 115.44 | H22: 115.44 | J22: 86.58 | K22: ='BETON Qte'!K22 -> 75 | L22: 1151 | M22: -1064.42 | O22: 0 | P22: 0 | R22: 0 | T22: 0 | V22: 1151 | W22: -1035.56 | AD22: 86.58 | AE22: 75 | AF22: 1151 | AG22: -1064.42
B23: ACIER FONDATIONS ANNEXE 12 | D23: H | E23: 0 | H23: 0 | J23: 0 | K23: ='BETON Qte'!K23 -> 0 | L23: 0 | M23: 0 | O23: 0 | P23: 0 | R23: 0 | T23: 0 | V23: 0 | W23: 0 | AD23: 0 | AE23: 0 | AF23: 0 | AG23: 0
A24: MATX.400220.PP.DS.1.2 | B24: SUPERSTRUCTURE - GH4 | D24: H | E24: =SUM(E25:E34) -> 151912.917 | F24: =SUM(F25:F34) -> 0 | G24: =SUM(G25:G34) -> 0 | H24: =SUM(H25:H34) -> 151912.917 | J24: =SUM(J25:J34) -> 847.09835 | K24: =IFERROR(J24/H24,"") -> 0.005576210152 | L24: =SUM(L25:L34) -> 846 | M24: =SUM(M25:M34) -> 1.09835 | O24: =SUM(O25:O34) -> 0 | P24: =IFERROR(O24/H24,"") -> 0 | Q24: =SUM(Q25:Q34) -> 0 | R24: =SUM(R25:R34) -> 0 | T24: =SUM(T25:T34) -> 93742.662 | V24: =SUM(V25:V34) -> 94588.662 | W24: =SUM(W25:W34) -> 57324.255 | AD24: 847.09835 | AE24: 0.005576210152 | AF24: 846 | AG24: 1.09835
B25: POTEAUX | D25: H | E25: 6296.435 | H25: =SUM(E25:G25) -> 6296.435 | J25: =H25*K25/100 -> 62.96435 | K25: ='BETON Qte'!K25 -> 1 | L25: =Q25+AF25 -> 103 | M25: =J25-L25 -> -40.03565 | O25: =J25-AD25 -> 0 | P25: 0 | R25: =O25-Q25 -> 0 | T25: 0 | V25: =L25+T25 -> 103 | W25: =H25-V25 -> 6193.435 | AD25: 62.96435 | AE25: 1 | AF25: 103 | AG25: -40.03565
B26: VOILES | D26: H | E26: 26137.8 | H26: 26137.8 | J26: 784.134 | K26: ='BETON Qte'!K26 -> 3 | L26: 743 | M26: 41.134 | O26: 0 | P26: 0 | R26: 0 | T26: 0 | V26: 743 | W26: 25394.8 | AD26: 784.134 | AE26: 3 | AF26: 743 | AG26: 41.134
B27: ACROTETES ET RELEVES DE BALCONS EN BA | D27: H | E27: 12926.862 | H27: 12926.862 | J27: 0 | K27: ='BETON Qte'!K27 -> 0 | L27: 0 | M27: 0 | O27: 0 | P27: 0 | R27: 0 | T27: 12926.862 | V27: 12926.862 | W27: 0 | AD27: 0 | AE27: 0 | AF27: 0 | AG27: 0
B28: POUTRES | D28: H | E28: 63745.5 | H28: 63745.5 | J28: 0 | K28: ='BETON Qte'!K28 -> 0 | L28: 0 | M28: 0 | O28: 0 | P28: 0 | R28: 0 | T28: 63745.5 | V28: 63745.5 | W28: 0 | AD28: 0 | AE28: 0 | AF28: 0 | AG28: 0
B29: DALLES PLEINES | D29: H | E29: 17070.3 | H29: 17070.3 | J29: 0 | K29: ='BETON Qte'!K29 -> 0 | L29: 0 | M29: 0 | O29: 0 | P29: 0 | R29: 0 | T29: 17070.3 | V29: 17070.3 | W29: 0 | AD29: 0 | AE29: 0 | AF29: 0 | AG29: 0
B30: PLANCHERS POUTRELLES HOURDIS 15+5 | D30: H | E30: 11191.7 | H30: 11191.7 | J30: 0 | K30: ='BETON Qte'!K30 -> 0 | L30: 0 | M30: 0 | O30: 0 | P30: 0 | R30: 0 | V30: 0 | W30: 11191.7 | AD30: 0 | AE30: 0 | AF30: 0 | AG30: 0
B31: PLANCHERS POUTRELLES HOURDIS 20+5 | D31: H | E31: 6796.92 | H31: 6796.92 | J31: 0 | K31: ='BETON Qte'!K31 -> 0 | L31: 0 | M31: 0 | O31: 0 | P31: 0 | R31: 0 | V31: 0 | W31: 6796.92 | AD31: 0 | AE31: 0 | AF31: 0 | AG31: 0
B32: PLANCHERS POUTRELLES HOURDIS 25+5 | D32: H | E32: 7525.44 | H32: 7525.44 | J32: 0 | K32: ='BETON Qte'!K32 -> 0 | L32: 0 | M32: 0 | O32: 0 | P32: 0 | R32: 0 | V32: 0 | W32: 7525.44 | AD32: 0 | AE32: 0 | AF32: 0 | AG32: 0
B33: ARMATURES SUPER | D33: H | E33: 0 | H33: 0 | J33: 0 | K33: ='BETON Qte'!K33 -> 0 | L33: 0 | M33: 0 | O33: 0 | P33: 0 | R33: 0 | T33: 0 | V33: 0 | W33: 0 | AD33: 0 | AE33: 0 | AF33: 0 | AG33: 0
B34: INCIDENCE UTILISATION CP SUR LA STRUCTURE | D34: H | E34: 221.96 | H34: 221.96 | J34: 0 | K34: ='BETON Qte'!K34 -> 0 | L34: 0 | M34: 0 | O34: 0 | P34: 0 | R34: 0 | T34: 0 | V34: 0 | W34: 221.96 | AD34: 0 | AE34: 0 | AF34: 0 | AG34: 0
A35: MATX.400220.PP.DS.1.3 | B35: MACONNERIE & ENDUIT INFRA + SUPER - GH4 | D35: H | E35: =SUM(E36:E37) -> 8332.415 | F35: =SUM(F36:F37) -> 0 | G35: =SUM(G36:G37) -> 0 | H35: =SUM(H36:H37) -> 8332.415 | J35: =SUM(J36:J37) -> 0 | K35: =IFERROR(J35/H35,"") -> 0 | L35: =SUM(L36:L37) -> 0 | M35: =SUM(M36:M37) -> 0 | O35: =SUM(O36:O37) -> 0 | P35: =IFERROR(O35/H35,"") -> 0 | Q35: =SUM(Q36:Q37) -> 0 | R35: =SUM(R36:R37) -> 0 | T35: =SUM(T36:T37) -> 8332.415 | V35: =SUM(V36:V37) -> 8332.415 | W35: =SUM(W36:W37) -> 0 | AD35: 0 | AE35: 0 | AF35: 0 | AG35: 0
B36: RAIDISSEURS VERTICAUX DANS MACONNERIE | D36: H | E36: 6536.79 | H36: =SUM(E36:G36) -> 6536.79 | J36: =H36*K36/100 -> 0 | K36: ='BETON Qte'!K36 -> 0 | L36: =Q36+AF36 -> 0 | M36: =J36-L36 -> 0 | O36: =J36-AD36 -> 0 | P36: 0 | R36: =O36-Q36 -> 0 | T36: 6536.79 | V36: =L36+T36 -> 6536.79 | W36: =H36-V36 -> 0 | AD36: 0 | AE36: 0 | AF36: 0 | AG36: 0
B37: LINTEAUX BA & PV CAISSON VR | D37: H | E37: 1795.625 | H37: 1795.625 | J37: 0 | K37: ='BETON Qte'!K37 -> 0 | L37: 0 | M37: 0 | O37: 0 | P37: 0 | R37: 0 | T37: 1795.625 | V37: 1795.625 | W37: 0 | AD37: 0 | AE37: 0 | AF37: 0 | AG37: 0
A38: MATX.400220.PP.DS.1.4 | B38: ESCALIERS - GH4 | D38: H | E38: =SUM(E39:E40) -> 4361.825 | F38: =SUM(F39:F40) -> 0 | G38: =SUM(G39:G40) -> 0 | H38: =SUM(H39:H40) -> 4361.825 | J38: =SUM(J39:J40) -> 0 | K38: =IFERROR(J38/H38,"") -> 0 | L38: =SUM(L39:L40) -> 0 | M38: =SUM(M39:M40) -> 0 | O38: =SUM(O39:O40) -> 0 | P38: =IFERROR(O38/H38,"") -> 0 | Q38: =SUM(Q39:Q40) -> 0 | R38: =SUM(R39:R40) -> 0 | T38: =SUM(T39:T40) -> 4361.825 | V38: =SUM(V39:V40) -> 4361.825 | W38: =SUM(W39:W40) -> 0 | AD38: 0 | AE38: 0 | AF38: 0 | AG38: 0
B39: ESCALIER 1/2 TOURNANT | D39: H | E39: 2142.725 | H39: =SUM(E39:G39) -> 2142.725 | J39: =H39*K39/100 -> 0 | K39: ='BETON Qte'!K39 -> 0 | L39: =Q39+AF39 -> 0 | M39: =J39-L39 -> 0 | O39: =J39-AD39 -> 0 | P39: 0 | R39: =O39-Q39 -> 0 | T39: 2142.725 | V39: =L39+T39 -> 2142.725 | W39: =H39-V39 -> 0 | AD39: 0 | AE39: 0 | AF39: 0 | AG39: 0
B40: ESCALIER HELICOIDAL SECOURS | D40: H | E40: 2219.1 | H40: =SUM(E40:G40) -> 2219.1 | J40: =H40*K40/100 -> 0 | K40: ='BETON Qte'!K40 -> 0 | L40: =Q40+AF40 -> 0 | M40: =J40-L40 -> 0 | O40: =J40-AD40 -> 0 | P40: 0 | R40: =O40-Q40 -> 0 | T40: 2219.1 | V40: 2219.1 | W40: 0 | AD40: 0 | AE40: 0 | AF40: 0 | AG40: 0
A41: MATX.400220.PP.DS.1.5 | B41: OUVRAGES DIVERS - GH4 | D41: H | E41: =SUM(E42:E56) -> 28530.19 | F41: =SUM(F42:F56) -> 0 | G41: =SUM(G42:G56) -> 0 | H41: =SUM(H42:H56) -> 28530.19 | J41: =SUM(J42:J56) -> 0 | K41: =IFERROR(J41/H41,"") -> 0 | L41: =SUM(L42:L56) -> 0 | M41: =SUM(M42:M56) -> 0 | O41: =SUM(O42:O56) -> 0 | P41: =IFERROR(O41/H41,"") -> 0 | Q41: =SUM(Q42:Q56) -> 0 | R41: =SUM(R42:R56) -> 0 | T41: =SUM(T42:T56) -> 28530.19 | V41: =SUM(V42:V56) -> 28530.19 | W41: =SUM(W42:W56) -> 0 | AD41: 0 | AE41: 0 | AF41: 0 | AG41: 0
B42: APPUIS DE FENETRES | D42: H | E42: 1790.75 | H42: =SUM(E42:G42) -> 1790.75 | J42: =H42*K42/100 -> 0 | K42: ='BETON Qte'!K42 -> 0 | L42: =Q42+AF42 -> 0 | M42: =J42-L42 -> 0 | O42: =J42-AD42 -> 0 | P42: 0 | R42: =O42-Q42 -> 0 | T42: 1790.75 | V42: =L42+T42 -> 1790.75 | W42: =H42-V42 -> 0 | AD42: 0 | AE42: 0 | AF42: 0 | AG42: 0
B43: POSE ET SCELLEMENT DE CADRES ET FX CADRES | D43: H | E43: 989.3 | H43: 989.3 | J43: 0 | K43: ='BETON Qte'!K43 -> 0 | L43: 0 | M43: 0 | O43: 0 | P43: 0 | R43: 0 | T43: 989.3 | V43: 989.3 | W43: 0 | AD43: 0 | AE43: 0 | AF43: 0 | AG43: 0
B44: POSE ET SCELLEMENT DE GC | D44: H | E44: 4927 | H44: 4927 | J44: 0 | K44: ='BETON Qte'!K44 -> 0 | L44: 0 | M44: 0 | O44: 0 | P44: 0 | R44: 0 | T44: 4927 | V44: 4927 | W44: 0 | AD44: 0 | AE44: 0 | AF44: 0 | AG44: 0
B45: POSE ET SCELLEMENT DE PRECADRES / MENUISERIE | D45: H | E45: 2234.05 | H45: 2234.05 | J45: 0 | K45: ='BETON Qte'!K45 -> 0 | L45: 0 | M45: 0 | O45: 0 | P45: 0 | R45: 0 | T45: 2234.05 | V45: 2234.05 | W45: 0 | AD45: 0 | AE45: 0 | AF45: 0 | AG45: 0
B46: SCELLEMENT RECEVEURS DE DOUCHE | D46: H | E46: 1248 | H46: 1248 | J46: 0 | K46: ='BETON Qte'!K46 -> 0 | L46: 0 | M46: 0 | O46: 0 | P46: 0 | R46: 0 | T46: 1248 | V46: 1248 | W46: 0 | AD46: 0 | AE46: 0 | AF46: 0 | AG46: 0
B47: SOCLE PARABOLE | D47: H | E47: 78 | H47: 78 | J47: 0 | K47: ='BETON Qte'!K47 -> 0 | L47: 0 | M47: 0 | O47: 0 | P47: 0 | R47: 0 | T47: 78 | V47: 78 | W47: 0 | AD47: 0 | AE47: 0 | AF47: 0 | AG47: 0
B48: SOCLE TERRASSE | D48: H | E48: 1842.75 | H48: 1842.75 | J48: 0 | K48: ='BETON Qte'!K48 -> 0 | L48: 0 | M48: 0 | O48: 0 | P48: 0 | R48: 0 | T48: 1842.75 | V48: 1842.75 | W48: 0 | AD48: 0 | AE48: 0 | AF48: 0 | AG48: 0
B49: SOUCHES TERRASSES | D49: H | E49: 858 | H49: 858 | J49: 0 | K49: ='BETON Qte'!K49 -> 0 | L49: 0 | M49: 0 | O49: 0 | P49: 0 | R49: 0 | T49: 858 | V49: 858 | W49: 0 | AD49: 0 | AE49: 0 | AF49: 0 | AG49: 0
B50: TRAITEMENT DES JD | D50: H | E50: 393.9 | H50: 393.9 | J50: 0 | K50: ='BETON Qte'!K50 -> 0 | L50: 0 | M50: 0 | O50: 0 | P50: 0 | R50: 0 | T50: 393.9 | V50: 393.9 | W50: 0 | AD50: 0 | AE50: 0 | AF50: 0 | AG50: 0
B51: PEMPLISSAGE JD PAR POLYSTYRENNE | D51: H | E51: 80.6 | H51: 80.6 | J51: 0 | K51: ='BETON Qte'!K51 -> 0 | L51: 0 | M51: 0 | O51: 0 | P51: 0 | R51: 0 | T51: 80.6 | V51: 80.6 | W51: 0 | AD51: 0 | AE51: 0 | AF51: 0 | AG51: 0
B52: DALETTES EN BETON | D52: H | E52: 1052.48 | H52: 1052.48 | J52: 0 | K52: ='BETON Qte'!K52 -> 0 | L52: 0 | M52: 0 | O52: 0 | P52: 0 | R52: 0 | T52: 1052.48 | V52: 1052.48 | W52: 0 | AD52: 0 | AE52: 0 | AF52: 0 | AG52: 0
B53: TROUS DE SCELLEMENT & CALFEUTREMENT | D53: H | E53: 11769.16 | H53: 11769.16 | J53: 0 | K53: ='BETON Qte'!K53 -> 0 | L53: 0 | M53: 0 | O53: 0 | P53: 0 | R53: 0 | T53: 11769.16 | V53: 11769.16 | W53: 0 | AD53: 0 | AE53: 0 | AF53: 0 | AG53: 0
B54: AMENAGEMENT DES LOCAUX TECHNIQUES | D54: H | E54: 265.2 | H54: 265.2 | J54: 0 | K54: ='BETON Qte'!K54 -> 0 | L54: 0 | M54: 0 | O54: 0 | P54: 0 | R54: 0 | T54: 265.2 | V54: 265.2 | W54: 0 | AD54: 0 | AE54: 0 | AF54: 0 | AG54: 0
B55: COURS ANGLAISES VENTILLATION PARKING | D55: H | E55: 994.5 | H55: 994.5 | J55: 0 | K55: ='BETON Qte'!K55 -> 0 | L55: 0 | M55: 0 | O55: 0 | P55: 0 | R55: 0 | T55: 994.5 | V55: 994.5 | W55: 0 | AD55: 0 | AE55: 0 | AF55: 0 | AG55: 0
B56: BAC A SABLE | D56: H | E56: 6.5 | H56: 6.5 | J56: 0 | K56: ='BETON Qte'!K56 -> 0 | L56: 0 | M56: 0 | O56: 0 | P56: 0 | R56: 0 | T56: 6.5 | V56: 6.5 | W56: 0 | AD56: 0 | AE56: 0 | AF56: 0 | AG56: 0
A57: MATX.400220.PP.DS.1.6 | B57: MACONNERIE & ENDUIT TERRASSE - GH4 | D57: H | E57: =SUM(E58:E60) -> 126914.6884 | F57: =SUM(F58:F60) -> 0 | G57: =SUM(G58:G60) -> 0 | H57: =SUM(H58:H60) -> 126914.6884 | J57: =SUM(J58:J60) -> 0 | K57: =IFERROR(J57/H57,"") -> 0 | L57: =SUM(L58:L60) -> 0 | M57: =SUM(M58:M60) -> 0 | O57: =SUM(O58:O60) -> 0 | P57: =IFERROR(O57/H57,"") -> 0 | Q57: =SUM(Q58:Q60) -> 0 | R57: =SUM(R58:R60) -> 0 | T57: =SUM(T58:T60) -> 126914.6884 | V57: =SUM(V58:V60) -> 126914.6884 | W57: =SUM(W58:W60) -> 0 | AD57: 0 | AE57: 0 | AF57: 0 | AG57: 0
B58: AJUSTEMENT MAIN D'ŒUVRE | D58: H | E58: 72961.2 | H58: =SUM(E58:G58) -> 72961.2 | J58: =H58*K58/100 -> 0 | K58: ='BETON Qte'!K58 -> 0 | L58: =Q58+AF58 -> 0 | M58: =J58-L58 -> 0 | O58: =J58-AD58 -> 0 | P58: 0 | R58: =O58-Q58 -> 0 | T58: 72961.2 | V58: =L58+T58 -> 72961.2 | W58: =H58-V58 -> 0 | AD58: 0 | AE58: 0 | AF58: 0 | AG58: 0
B59: AJUSTEMENT MAIN D'ŒUVRE | D59: H | E59: 53953.48837 | H59: =SUM(E59:G59) -> 53953.48837 | J59: =H59*K59/100 -> 0 | K59: ='BETON Qte'!K59 -> 0 | L59: =Q59+AF59 -> 0 | M59: =J59-L59 -> 0 | O59: =J59-AD59 -> 0 | P59: 0 | R59: =O59-Q59 -> 0 | T59: 53953.48837 | V59: 53953.48837 | W59: 0 | AD59: 0 | AE59: 0 | AF59: 0 | AG59: 0
B60: AJOUT ACIER CONSOLE | D60: H | E60: 0 | H60: 0 | J60: 0 | K60: ='BETON Qte'!K60 -> 0 | L60: 0 | M60: 0 | O60: 0 | P60: 0 | R60: 0 | T60: 0 | V60: 0 | W60: 0 | AD60: 0 | AE60: 0 | AF60: 0 | AG60: 0
J66: xxxxxxx | K66: xxxxxxx | P66: xxxxxxx | AD66: xxxxxxx | AE66: xxxxxxx
B67: PART PROPRE | D67: H | E67: =E68+E79+E87+E90+E93+E109 -> 567723.8203 | F67: =F68+F79+F87+F90+F93+F109 -> 0 | G67: =G68+G79+G87+G90+G93+G109 -> 0 | H67: =H68+H79+H87+H90+H93+H109 -> 567723.8203 | J67: =J68+J79+J87+J90+J93+J109 -> 29530.7795 | K67: =IFERROR(J67/H67,"") -> 0.05201610086 | L67: =L68+L79+L87+L90+L93+L109 -> 39231 | M67: =M68+M79+M87+M90+M93+M109 -> -9700.2205 | O67: =O68+O79+O87+O90+O93+O109 -> 0 | P67: =IFERROR(O67/H67,"") -> 0 | Q67: =Q68+Q79+Q87+Q90+Q93+Q109 -> 0 | R67: =R68+R79+R87+R90+R93+R109 -> 0 | T67: =T68+T79+T87+T90+T93+T109 -> 408022.9173 | V67: =V68+V79+V87+V90+V93+V109 -> 447253.9173 | W67: =W68+W79+W87+W90+W93+W109 -> 120469.903 | AD67: 29530.7795 | AE67: 0.05201610086 | AF67: 39231 | AG67: -9700.2205
A68: MATX.400220.PP.DS.2.1 | B68: FONDATION - GH5 | D68: H | E68: =SUM(E69:E78) -> 18519.618 | F68: =SUM(F69:F78) -> 0 | G68: =SUM(G69:G78) -> 0 | H68: =SUM(H69:H78) -> 18519.618 | J68: =SUM(J69:J78) -> 17399.6433 | K68: =IFERROR(J68/H68,"") -> 0.9395249567 | L68: =SUM(L69:L78) -> 19904 | M68: =SUM(M69:M78) -> -2504.3567 | O68: =SUM(O69:O78) -> 0 | P68: =IFERROR(O68/H68,"") -> 0 | Q68: =SUM(Q69:Q78) -> 0 | R68: =SUM(R69:R78) -> 0 | T68: =SUM(T69:T78) -> 0 | V68: =SUM(V69:V78) -> 19904 | W68: =SUM(W69:W78) -> -1384.382 | AD68: 17399.6433 | AE68: 0.9395249567 | AF68: 19904 | AG68: -2504.3567
B69: BETON DE PROPRETE | D69: H | E69: 884 | H69: =SUM(E69:G69) -> 884 | J69: =H69*K69/100 -> 857.48 | K69: ='BETON Qte'!K69 -> 97 | L69: =Q69+AF69 -> 1328 | M69: =J69-L69 -> -470.52 | O69: =J69-AD69 -> 0 | P69: =IFERROR(O69/H69,0) -> 0 | R69: =O69-Q69 -> 0 | T69: 0 | V69: =L69+T69 -> 1328 | W69: =H69-V69 -> -444 | AD69: 857.48 | AE69: 97 | AF69: 1328 | AG69: -470.52
B70: GROS BETON | D70: H | E70: 35.568 | H70: =SUM(E70:G70) -> 35.568 | J70: =H70*K70/100 -> 35.568 | K70: ='BETON Qte'!K70 -> 100 | L70: =Q70+AF70 -> 133 | M70: =J70-L70 -> -97.432 | O70: =J70-AD70 -> 0 | P70: 0 | R70: =O70-Q70 -> 0 | T70: 0 | V70: =L70+T70 -> 133 | W70: =H70-V70 -> -97.432 | AD70: 35.568 | AE70: 100 | AF70: 133 | AG70: -97.432
B71: BETON CYCLOPEEN POUR MARMITES | D71: H | H71: 0 | J71: 0 | K71: ='BETON Qte'!K71 -> 0 | L71: 7773 | M71: -7773 | O71: 0 | P71: 0 | R71: 0 | T71: 0 | V71: 7773 | W71: -7773 | AD71: 0 | AE71: 0 | AF71: 7773 | AG71: -7773
B72: SEMELLES ISOLEES | D72: H | E72: 972.4 | H72: 972.4 | J72: 875.16 | K72: ='BETON Qte'!K72 -> 90 | L72: 292 | M72: 583.16 | O72: 0 | P72: 0 | R72: 0 | T72: 0 | V72: 292 | W72: 680.4 | AD72: 875.16 | AE72: 90 | AF72: 292 | AG72: 583.16
B73: SEMELLES FILANTES | D73: H | E73: 3692.52 | H73: 3692.52 | J73: 3581.7444 | K73: ='BETON Qte'!K73 -> 97 | L73: 3194 | M73: 387.7444 | O73: 0 | P73: 0 | R73: 0 | T73: 0 | V73: 3194 | W73: 498.52 | AD73: 3581.7444 | AE73: 97 | AF73: 3194 | AG73: 387.7444
B74: LONGRINES | D74: H | E74: 6628.44 | H74: 6628.44 | J74: 6495.8712 | K74: ='BETON Qte'!K74 -> 98 | L74: 3591 | M74: 2904.8712 | O74: 0 | P74: 0 | R74: 0 | T74: 0 | V74: 3591 | W74: 3037.44 | AD74: 6495.8712 | AE74: 98 | AF74: 3591 | AG74: 2904.8712
B75: AMORCE DE POTEAUX | D75: H | E75: 1115.4 | H75: 1115.4 | J75: 892.32 | K75: ='BETON Qte'!K75 -> 80 | L75: 620 | M75: 272.32 | O75: 0 | P75: 0 | R75: 0 | T75: 0 | V75: 620 | W75: 495.4 | AD75: 892.32 | AE75: 80 | AF75: 620 | AG75: 272.32
B76: AMORCE DE VOILE | D76: H | E76: 3276.65 | H76: 3276.65 | J76: 2785.1525 | K76: ='BETON Qte'!K76 -> 85 | L76: 1155 | M76: 1630.1525 | O76: 0 | P76: 0 | R76: 0 | T76: 0 | V76: 1155 | W76: 2121.65 | AD76: 2785.1525 | AE76: 85 | AF76: 1155 | AG76: 1630.1525
B77: DALLAGE (ep 15cm 35kg/m3) | D77: H | E77: 1914.64 | H77: 1914.64 | J77: 1876.3472 | K77: ='BETON Qte'!K77 -> 98 | L77: 1621 | M77: 255.3472 | O77: 0 | P77: 0 | R77: 0 | T77: 0 | V77: 1621 | W77: 293.64 | AD77: 1876.3472 | AE77: 98 | AF77: 1621 | AG77: 255.3472
B78: ACIER FONDATIONS ANNEXE 12 | D78: H | E78: 0 | H78: 0 | J78: 0 | K78: ='BETON Qte'!K78 -> 100 | L78: 197 | M78: -197 | O78: 0 | P78: 0 | R78: 0 | T78: 0 | V78: 197 | W78: -197 | AD78: 0 | AE78: 100 | AF78: 197 | AG78: -197
A79: MATX.400220.PP.DS.2.2 | B79: SUPERSTRUCTURE - GH5 | D79: H | E79: =SUM(E80:E86) -> 228225.085 | F79: =SUM(F80:F86) -> 0 | G79: =SUM(G80:G86) -> 0 | H79: =SUM(H80:H86) -> 228225.085 | J79: =SUM(J80:J86) -> 12131.1362 | K79: =IFERROR(J79/H79,"") -> 0.05315426304 | L79: =SUM(L80:L86) -> 19156 | M79: =SUM(M80:M86) -> -7024.8638 | O79: =SUM(O80:O86) -> 0 | P79: =IFERROR(O79/H79,"") -> 0 | Q79: =SUM(Q80:Q86) -> 0 | R79: =SUM(R80:R86) -> 0 | T79: =SUM(T80:T86) -> 87178.8 | V79: =SUM(V80:V86) -> 106334.8 | W79: =SUM(W80:W86) -> 121890.285 | AD79: 12131.1362 | AE79: 0.05315426304 | AF79: 19156 | AG79: -7024.8638
B80: POTEAUX | D80: H | E80: 2976.385 | H80: =SUM(E80:G80) -> 2976.385 | J80: =H80*K80/100 -> 357.1662 | K80: ='BETON Qte'!K80 -> 12 | L80: =Q80+AF80 -> 1676 | M80: =J80-L80 -> -1318.8338 | O80: =J80-AD80 -> 0 | P80: =IFERROR(O80/H80,0) -> 0 | R80: =O80-Q80 -> 0 | T80: 0 | V80: =L80+T80 -> 1676 | W80: =H80-V80 -> 1300.385 | AD80: 357.1662 | AE80: 12 | AF80: 1676 | AG80: -1318.8338
B81: VOILES | D81: H | E81: 27285.7 | H81: 27285.7 | J81: 4911.426 | K81: ='BETON Qte'!K81 -> 18 | L81: 6808 | M81: -1896.574 | O81: 0 | P81: 0 | R81: 0 | T81: 0 | V81: 6808 | W81: 20477.7 | AD81: 4911.426 | AE81: 18 | AF81: 6808 | AG81: -1896.574
B82: ACROTETES ET RELEVES DE BALCONS EN BA | D82: H | E82: 14206.4 | H82: 14206.4 | J82: 0 | K82: ='BETON Qte'!K82 -> 0 | L82: 0 | M82: 0 | O82: 0 | P82: 0 | R82: 0 | T82: 14206.4 | V82: 14206.4 | W82: 0 | AD82: 0 | AE82: 0 | AF82: 0 | AG82: 0
B83: POUTRES | D83: H | E83: 73278.4 | H83: 73278.4 | J83: 0 | K83: ='BETON Qte'!K83 -> 0 | L83: 406 | M83: -406 | O83: 0 | P83: 0 | R83: 0 | T83: 72972.4 | V83: 73378.4 | W83: -100 | AD83: 0 | AE83: 0 | AF83: 406 | AG83: -406
B84: DALLES PLEINES | D84: H | E84: 85781.8 | H84: 85781.8 | J84: 6862.544 | K84: ='BETON Qte'!K84 -> 8 | L84: 10266 | M84: -3403.456 | O84: 0 | P84: 0 | R84: 0 | T84: 0 | V84: 10266 | W84: 75515.8 | AD84: 6862.544 | AE84: 8 | AF84: 10266 | AG84: -3403.456
B85: PLANCHERS POUTRELLES HOURDIS | D85: H | E85: 24428.56 | H85: 24428.56 | J85: 0 | K85: ='BETON Qte'!K85 -> 0 | L85: 0 | M85: 0 | O85: 0 | P85: 0 | R85: 0 | T85: 0 | V85: 0 | W85: 24428.56 | AD85: 0 | AE85: 0 | AF85: 0 | AG85: 0
B86: INCIDENCE UTILISATION CP SUR LA STRUCTURE | D86: H | E86: 267.84 | H86: 267.84 | J86: 0 | K86: ='BETON Qte'!K86 -> 0 | L86: 0 | M86: 0 | O86: 0 | P86: 0 | R86: 0 | T86: 0 | V86: 0 | W86: 267.84 | AD86: 0 | AE86: 0 | AF86: 0 | AG86: 0
A87: MATX.400220.PP.DS.2.3 | B87: MACONNERIE & ENDUIT INFRA + SUPER - GH5 | D87: H | E87: =SUM(E88:E89) -> 9863.88 | F87: =SUM(F88:F89) -> 0 | G87: =SUM(G88:G89) -> 0 | H87: =SUM(H88:H89) -> 9863.88 | J87: =SUM(J88:J89) -> 0 | K87: =IFERROR(J87/H87,"") -> 0 | L87: =SUM(L88:L89) -> 0 | M87: =SUM(M88:M89) -> 0 | O87: =SUM(O88:O89) -> 0 | P87: =IFERROR(O87/H87,"") -> 0 | Q87: =SUM(Q88:Q89) -> 0 | R87: =SUM(R88:R89) -> 0 | T87: =SUM(T88:T89) -> 9863.88 | V87: =SUM(V88:V89) -> 9863.88 | W87: =SUM(W88:W89) -> 0 | AD87: 0 | AE87: 0 | AF87: 0 | AG87: 0
B88: RAIDISSEURS VERTICAUX DANS MACONNERIE | D88: H | E88: 7738.38 | H88: =SUM(E88:G88) -> 7738.38 | J88: =H88*K88/100 -> 0 | K88: ='BETON Qte'!K88 -> 0 | L88: =Q88+AF88 -> 0 | M88: =J88-L88 -> 0 | O88: =J88-AD88 -> 0 | P88: =IFERROR(O88/H88,0) -> 0 | R88: =O88-Q88 -> 0 | T88: 7738.38 | V88: =L88+T88 -> 7738.38 | W88: =H88-V88 -> 0 | AD88: 0 | AE88: 0 | AF88: 0 | AG88: 0
B89: LINTEAUX BA & PV CAISSON VR | D89: H | E89: 2125.5 | H89: 2125.5 | J89: 0 | K89: ='BETON Qte'!K89 -> 0 | L89: 0 | M89: 0 | O89: 0 | P89: 0 | R89: 0 | T89: 2125.5 | V89: 2125.5 | W89: 0 | AD89: 0 | AE89: 0 | AF89: 0 | AG89: 0
A90: MATX.400220.PP.DS.2.4 | B90: ESCALIERS - GH5 | D90: H | E90: =SUM(E91:E92) -> 5810.025 | F90: =SUM(F91:F92) -> 0 | G90: =SUM(G91:G92) -> 0 | H90: =SUM(H91:H92) -> 5810.025 | J90: =SUM(J91:J92) -> 0 | K90: =IFERROR(J90/H90,"") -> 0 | L90: =SUM(L91:L92) -> 171 | M90: =SUM(M91:M92) -> -171 | O90: =SUM(O91:O92) -> 0 | P90: =IFERROR(O90/H90,"") -> 0 | Q90: =SUM(Q91:Q92) -> 0 | R90: =SUM(R91:R92) -> 0 | T90: =SUM(T91:T92) -> 5675.025 | V90: =SUM(V91:V92) -> 5846.025 | W90: =SUM(W91:W92) -> -36 | AD90: 0 | AE90: 0 | AF90: 171 | AG90: -171
B91: ESCALIER 1/2 TOURNANT | D91: H | E91: 2848.625 | H91: =SUM(E91:G91) -> 2848.625 | J91: =H91*K91/100 -> 0 | K91: ='BETON Qte'!K91 -> 0 | L91: =Q91+AF91 -> 171 | M91: =J91-L91 -> -171 | O91: =J91-AD91 -> 0 | P91: =IFERROR(O91/H91,0) -> 0 | R91: =O91-Q91 -> 0 | T91: 2713.625 | V91: =L91+T91 -> 2884.625 | W91: =H91-V91 -> -36 | AD91: 0 | AE91: 0 | AF91: 171 | AG91: -171
B92: ESCALIER HELICOIDAL SECOURS | D92: H | E92: 2961.4 | H92: =SUM(E92:G92) -> 2961.4 | J92: =H92*K92/100 -> 0 | K92: ='BETON Qte'!K92 -> 0 | L92: =Q92+AF92 -> 0 | M92: =J92-L92 -> 0 | O92: =J92-AD92 -> 0 | P92: 0 | R92: =O92-Q92 -> 0 | T92: 2961.4 | V92: 2961.4 | W92: 0 | AD92: 0 | AE92: 0 | AF92: 0 | AG92: 0
A93: MATX.400220.PP.DS.2.5 | B93: OUVRAGES DIVERS - GH5 | D93: H | E93: =SUM(E94:E108) -> 38421.11 | F93: =SUM(F94:F108) -> 0 | G93: =SUM(G94:G108) -> 0 | H93: =SUM(H94:H108) -> 38421.11 | J93: =SUM(J94:J108) -> 0 | K93: =IFERROR(J93/H93,"") -> 0 | L93: =SUM(L94:L108) -> 0 | M93: =SUM(M94:M108) -> 0 | O93: =SUM(O94:O108) -> 0 | P93: =IFERROR(O93/H93,"") -> 0 | Q93: =SUM(Q94:Q108) -> 0 | R93: =SUM(R94:R108) -> 0 | T93: =SUM(T94:T108) -> 38421.11 | V93: =SUM(V94:V108) -> 38421.11 | W93: =SUM(W94:W108) -> 0 | AD93: 0 | AE93: 0 | AF93: 0 | AG93: 0
B94: APPUIS DE FENETRES | D94: H | E94: 2216.5 | H94: =SUM(E94:G94) -> 2216.5 | J94: =H94*K94/100 -> 0 | K94: ='BETON Qte'!K94 -> 0 | L94: =Q94+AF94 -> 0 | M94: =J94-L94 -> 0 | O94: =J94-AD94 -> 0 | P94: =IFERROR(O94/H94,0) -> 0 | R94: =O94-Q94 -> 0 | T94: 2216.5 | V94: =L94+T94 -> 2216.5 | W94: =H94-V94 -> 0 | AD94: 0 | AE94: 0 | AF94: 0 | AG94: 0
B95: POSE ET SCELLEMENT DE CADRES ET FX CADRES | D95: H | E95: 1569.1 | H95: 1569.1 | J95: 0 | K95: ='BETON Qte'!K95 -> 0 | L95: 0 | M95: 0 | O95: 0 | P95: 0 | R95: 0 | T95: 1569.1 | V95: 1569.1 | W95: 0 | AD95: 0 | AE95: 0 | AF95: 0 | AG95: 0
B96: POSE ET SCELLEMENT DE GC | D96: H | E96: 9295 | H96: 9295 | J96: 0 | K96: ='BETON Qte'!K96 -> 0 | L96: 0 | M96: 0 | O96: 0 | P96: 0 | R96: 0 | T96: 9295 | V96: 9295 | W96: 0 | AD96: 0 | AE96: 0 | AF96: 0 | AG96: 0
B97: POSE ET SCELLEMENT DE PRECADRES / MENUISERIE | D97: H | E97: 2318.55 | H97: 2318.55 | J97: 0 | K97: ='BETON Qte'!K97 -> 0 | L97: 0 | M97: 0 | O97: 0 | P97: 0 | R97: 0 | T97: 2318.55 | V97: 2318.55 | W97: 0 | AD97: 0 | AE97: 0 | AF97: 0 | AG97: 0
B98: SCELLEMENT RECEVEURS DE DOUCHE | D98: H | E98: 1417 | H98: 1417 | J98: 0 | K98: ='BETON Qte'!K98 -> 0 | L98: 0 | M98: 0 | O98: 0 | P98: 0 | R98: 0 | T98: 1417 | V98: 1417 | W98: 0 | AD98: 0 | AE98: 0 | AF98: 0 | AG98: 0
B99: SOCLE PARABOLE | D99: H | E99: 104 | H99: 104 | J99: 0 | K99: ='BETON Qte'!K99 -> 0 | L99: 0 | M99: 0 | O99: 0 | P99: 0 | R99: 0 | T99: 104 | V99: 104 | W99: 0 | AD99: 0 | AE99: 0 | AF99: 0 | AG99: 0
B100: SOCLE TERRASSE | D100: H | E100: 2293.2 | H100: 2293.2 | J100: 0 | K100: ='BETON Qte'!K100 -> 0 | L100: 0 | M100: 0 | O100: 0 | P100: 0 | R100: 0 | T100: 2293.2 | V100: 2293.2 | W100: 0 | AD100: 0 | AE100: 0 | AF100: 0 | AG100: 0
B101: SOUCHES TERRASSES | D101: H | E101: 811.2 | H101: 811.2 | J101: 0 | K101: ='BETON Qte'!K101 -> 0 | L101: 0 | M101: 0 | O101: 0 | P101: 0 | R101: 0 | T101: 811.2 | V101: 811.2 | W101: 0 | AD101: 0 | AE101: 0 | AF101: 0 | AG101: 0
B102: TRAITEMENT DES JD | D102: H | E102: 393.9 | H102: 393.9 | J102: 0 | K102: ='BETON Qte'!K102 -> 0 | L102: 0 | M102: 0 | O102: 0 | P102: 0 | R102: 0 | T102: 393.9 | V102: 393.9 | W102: 0 | AD102: 0 | AE102: 0 | AF102: 0 | AG102: 0
B103: PEMPLISSAGE JD PAR POLYSTYRENNE | D103: H | E103: 100.1 | H103: 100.1 | J103: 0 | K103: ='BETON Qte'!K103 -> 0 | L103: 0 | M103: 0 | O103: 0 | P103: 0 | R103: 0 | T103: 100.1 | V103: 100.1 | W103: 0 | AD103: 0 | AE103: 0 | AF103: 0 | AG103: 0
B104: DALETTES EN BETON | D104: H | E104: 1309.88 | H104: 1309.88 | J104: 0 | K104: ='BETON Qte'!K104 -> 0 | L104: 0 | M104: 0 | O104: 0 | P104: 0 | R104: 0 | T104: 1309.88 | V104: 1309.88 | W104: 0 | AD104: 0 | AE104: 0 | AF104: 0 | AG104: 0
B105: TROUS DE SCELLEMENT & CALFEUTREMENT | D105: H | E105: 15022.28 | H105: 15022.28 | J105: 0 | K105: ='BETON Qte'!K105 -> 0 | L105: 0 | M105: 0 | O105: 0 | P105: 0 | R105: 0 | T105: 15022.28 | V105: 15022.28 | W105: 0 | AD105: 0 | AE105: 0 | AF105: 0 | AG105: 0
B106: AMENAGEMENT DES LOCAUX TECHNIQUES | D106: H | E106: 335.4 | H106: 335.4 | J106: 0 | K106: ='BETON Qte'!K106 -> 0 | L106: 0 | M106: 0 | O106: 0 | P106: 0 | R106: 0 | T106: 335.4 | V106: 335.4 | W106: 0 | AD106: 0 | AE106: 0 | AF106: 0 | AG106: 0
B107: COURS ANGLAISES VENTILLATION PARKING | D107: H | E107: 1228.5 | H107: 1228.5 | J107: 0 | K107: ='BETON Qte'!K107 -> 0 | L107: 0 | M107: 0 | O107: 0 | P107: 0 | R107: 0 | T107: 1228.5 | V107: 1228.5 | W107: 0 | AD107: 0 | AE107: 0 | AF107: 0 | AG107: 0
B108: BAC A SABLE | D108: H | E108: 6.5 | H108: 6.5 | J108: 0 | K108: ='BETON Qte'!K108 -> 0 | L108: 0 | M108: 0 | O108: 0 | P108: 0 | R108: 0 | T108: 6.5 | V108: 6.5 | W108: 0 | AD108: 0 | AE108: 0 | AF108: 0 | AG108: 0
A109: MATX.400220.PP.DS.2.6 | B109: MACONNERIE & ENDUIT TERRASSE - GH5 | D109: H | E109: =SUM(E110:E112) -> 266884.1023 | F109: =SUM(F110:F112) -> 0 | G109: =SUM(G110:G112) -> 0 | H109: =SUM(H110:H112) -> 266884.1023 | J109: =SUM(J110:J112) -> 0 | K109: =IFERROR(J109/H109,"") -> 0 | L109: =SUM(L110:L112) -> 0 | M109: =SUM(M110:M112) -> 0 | O109: =SUM(O110:O112) -> 0 | P109: =IFERROR(O109/H109,"") -> 0 | Q109: =SUM(Q110:Q112) -> 0 | R109: =SUM(R110:R112) -> 0 | T109: =SUM(T110:T112) -> 266884.1023 | V109: =SUM(V110:V112) -> 266884.1023 | W109: =SUM(W110:W112) -> 0 | AD109: 0 | AE109: 0 | AF109: 0 | AG109: 0
B110: AJUSTEMENT MAIN D'ŒUVRE | D110: H | E110: 199674.8 | H110: =SUM(E110:G110) -> 199674.8 | J110: =H110*K110/100 -> 0 | K110: ='BETON Qte'!K110 -> 0 | L110: =Q110+AF110 -> 0 | M110: =J110-L110 -> 0 | O110: =J110-AD110 -> 0 | P110: =IFERROR(O110/H110,0) -> 0 | R110: =O110-Q110 -> 0 | T110: 199674.8 | V110: =L110+T110 -> 199674.8 | W110: =H110-V110 -> 0 | AD110: 0 | AE110: 0 | AF110: 0 | AG110: 0
B111: AJUSTEMENT MAIN D'ŒUVRE | D111: H | E111: 67209.30233 | H111: =SUM(E111:G111) -> 67209.30233 | J111: =H111*K111/100 -> 0 | K111: ='BETON Qte'!K111 -> 0 | L111: =Q111+AF111 -> 0 | M111: =J111-L111 -> 0 | O111: =J111-AD111 -> 0 | P111: 0 | R111: =O111-Q111 -> 0 | T111: 67209.30233 | V111: 67209.30233 | W111: 0 | AD111: 0 | AE111: 0 | AF111: 0 | AG111: 0
B112: AJOUT ACIER CONSOLE | D112: H | E112: 0 | H112: 0 | J112: 0 | K112: ='BETON Qte'!K112 -> 0 | L112: 0 | M112: 0 | O112: 0 | P112: 0 | R112: 0 | T112: 0 | V112: 0 | W112: 0 | AD112: 0 | AE112: 0 | AF112: 0 | AG112: 0
A119: Code OTP | B119: MOI | D119: H | E119: =SUM(E120:E154) -> 249174.9 | F119: =SUM(F120:F154) -> 0 | G119: =SUM(G120:G154) -> 0 | H119: =SUM(H120:H154) -> 249174.9 | J119: =SUM(J120:J154) -> 249174.9 | K119: =IFERROR(J119/H119,"") -> 1 | L119: =SUM(L120:L154) -> 15600 | M119: 233574.9 | O119: =SUM(O120:O154) -> 0 | P119: =IFERROR(O119/H119,"") -> 0 | Q119: =SUM(Q120:Q154) -> 0 | R119: =SUM(R120:R154) -> 0 | T119: =SUM(T120:T154) -> 0 | V119: =SUM(V120:V154) -> 0 | W119: =SUM(W120:W154) -> 0 | AD119: 249174.9 | AE119: 1 | AF119: 15600 | AG119: 233574.9
A120: MATX.400220.IN.MI.01 | B120: GRUTIER G12 | D120: H | E120: 3510 | H120: =SUM(E120:G120) -> 3510 | J120: =H120*K120/100 -> 3510 | K120: 100 | L120: =Q120+AF120 -> 0 | M120: =J120-L120 -> 3510 | O120: =J120-AD120 -> 0 | P120: =IFERROR(O120/H120,"") -> 0 | R120: =O120-Q120 -> 0 | AD120: 3510 | AE120: 100 | AF120: 0 | AG120: 3510
A121: MATX.400220.IN.MI.02 | B121: GRUTIER G13 | D121: H | E121: 3510 | H121: 3510 | J121: 3510 | K121: 100 | L121: 0 | M121: 3510 | O121: 0 | P121: 0 | R121: 0 | AD121: 3510 | AE121: 100 | AF121: 0 | AG121: 3510
A122: MATX.400220.IN.MI.03 | B122: GRUTIER GTMR | D122: H | E122: 1170 | H122: 1170 | J122: 1170 | K122: 100 | L122: 0 | M122: 1170 | O122: 0 | P122: 0 | R122: 0 | AD122: 1170 | AE122: 100 | AF122: 0 | AG122: 1170
A123: MATX.400220.IN.MI.04 | B123: GRUTIER G14 | D123: H | E123: 3510 | H123: 3510 | J123: 3510 | K123: 100 | L123: 0 | M123: 3510 | O123: 0 | P123: 0 | R123: 0 | AD123: 3510 | AE123: 100 | AF123: 0 | AG123: 3510
A124: MATX.400220.IN.MI.05 | B124: GRUTIER G15 | D124: H | E124: 3510 | H124: 3510 | J124: 3510 | K124: 100 | L124: 0 | M124: 3510 | O124: 0 | P124: 0 | R124: 0 | AD124: 3510 | AE124: 100 | AF124: 0 | AG124: 3510
A125: MATX.400220.IN.MI.06 | B125: REMPLACANT GRUTIERS | D125: H | E125: 3744 | H125: 3744 | J125: 3744 | K125: 100 | L125: 0 | M125: 3744 | O125: 0 | P125: 0 | R125: 0 | AD125: 3744 | AE125: 100 | AF125: 0 | AG125: 3744
A126: MATX.400220.IN.MI.07 | B126: AIDE IMPLANTATION | D126: H | E126: 936 | H126: 936 | J126: 936 | K126: 100 | L126: 721 | M126: 215 | O126: 0 | P126: 0 | R126: 0 | AD126: 936 | AE126: 100 | AF126: 721 | AG126: 215
A127: MATX.400220.IN.MI.08 | B127: AIDE TRAÇAGE | D127: H | E127: 15912 | H127: 15912 | J127: 15912 | K127: 100 | L127: 126 | M127: 15786 | O127: 0 | P127: 0 | R127: 0 | AD127: 15912 | AE127: 100 | AF127: 126 | AG127: 15786
A128: MATX.400220.IN.MI.09 | B128: NETTOYAGE EN COURS DE CHANTIER | D128: H | E128: 14040 | H128: 14040 | J128: 14040 | K128: 100 | L128: 1469 | M128: 12571 | O128: 0 | P128: 0 | R128: 0 | AD128: 14040 | AE128: 100 | AF128: 1469 | AG128: 12571
A129: MATX.400220.IN.MI.10 | B129: NETTOYAGE DURANT CES | D129: H | E129: 43290 | H129: 43290 | J129: 43290 | K129: 100 | L129: 0 | M129: 43290 | O129: 0 | P129: 0 | R129: 0 | AD129: 43290 | AE129: 100 | AF129: 0 | AG129: 43290
A130: MATX.400220.IN.MI.11 | B130: NETTOYAGE FIN DE CHANTIER | D130: H | E130: 58500 | H130: 58500 | J130: 58500 | K130: 100 | L130: 0 | M130: 58500 | O130: 0 | P130: 0 | R130: 0 | AD130: 58500 | AE130: 100 | AF130: 0 | AG130: 58500
A131: MATX.400220.IN.MI.12 | B131: AIDE SECURITE | D131: H | E131: 15912 | H131: 15912 | J131: 15912 | K131: 100 | L131: 736 | M131: 15176 | O131: 0 | P131: 0 | R131: 0 | AD131: 15912 | AE131: 100 | AF131: 736 | AG131: 15176
A132: MATX.400220.IN.MI.13 | B132: MO DECHARGEMENT | D132: H | E132: 9360 | H132: 9360 | J132: 9360 | K132: 100 | L132: 825 | M132: 8535 | O132: 0 | P132: 0 | R132: 0 | AD132: 9360 | AE132: 100 | AF132: 825 | AG132: 8535
A133: MATX.400220.IN.MI.14 | B133: POINTEAU | D133: H | E133: 2295.54 | H133: 2295.54 | J133: 2295.54 | K133: 100 | L133: 0 | M133: 2295.54 | O133: 0 | P133: 0 | R133: 0 | AD133: 2295.54 | AE133: 100 | AF133: 0 | AG133: 2295.54
A134: MATX.400220.IN.MI.15 | B134: SOUDEUR | D134: H | E134: 2295.54 | H134: 2295.54 | J134: 2295.54 | K134: 100 | L134: 56 | M134: 2239.54 | O134: 0 | P134: 0 | R134: 0 | AD134: 2295.54 | AE134: 100 | AF134: 56 | AG134: 2239.54
A135: MATX.400220.IN.MI.16 | B135: CONDUCT CHARIOT ELEV. | D135: H | E135: 5850 | H135: 5850 | J135: 5850 | K135: 100 | L135: 0 | M135: 5850 | O135: 0 | P135: 0 | R135: 0 | AD135: 5850 | AE135: 100 | AF135: 0 | AG135: 5850
A136: MATX.400220.IN.MI.17 | B136: CHAUFFEUR CAMIONNETTE | D136: H | E136: 2237.04 | H136: 2237.04 | J136: 2237.04 | K136: 100 | L136: 0 | M136: 2237.04 | O136: 0 | P136: 0 | R136: 0 | AD136: 2237.04 | AE136: 100 | AF136: 0 | AG136: 2237.04
A137: MATX.400220.IN.MI.18 | B137: MAGASINIER | D137: H | E137: 2295.54 | H137: 2295.54 | J137: 2295.54 | K137: 100 | L137: 0 | M137: 2295.54 | O137: 0 | P137: 0 | R137: 0 | AD137: 2295.54 | AE137: 100 | AF137: 0 | AG137: 2295.54
A138: MATX.400220.IN.MI.19 | B138: AIDE MAGASINIER | D138: H | E138: 5850 | H138: 5850 | J138: 5850 | K138: 100 | L138: 0 | M138: 5850 | O138: 0 | P138: 0 | R138: 0 | AD138: 5850 | AE138: 100 | AF138: 0 | AG138: 5850
A139: MATX.400220.IN.MI.20 | B139: CONDUCTEUR DUMPER | D139: H | E139: 2295.54 | H139: 2295.54 | J139: 2295.54 | K139: 100 | L139: 400 | M139: 1895.54 | O139: 0 | P139: 0 | R139: 0 | AD139: 2295.54 | AE139: 100 | AF139: 400 | AG139: 1895.54
A140: MATX.400220.IN.MI.21 | B140: MENUISIER | D140: H | E140: 4680 | H140: 4680 | J140: 4680 | K140: 100 | L140: 0 | M140: 4680 | O140: 0 | P140: 0 | R140: 0 | AD140: 4680 | AE140: 100 | AF140: 0 | AG140: 4680
A141: MATX.400220.IN.MI.22 | B141: AIDE MENUISIER | D141: H | E141: 3744 | H141: 3744 | J141: 3744 | K141: 100 | L141: 0 | M141: 3744 | O141: 0 | P141: 0 | R141: 0 | AD141: 3744 | AE141: 100 | AF141: 0 | AG141: 3744
A142: MATX.400220.IN.MI.23 | B142: M.O ENTRETIEN BUREAU | D142: H | E142: 2646.54 | H142: 2646.54 | J142: 2646.54 | K142: 100 | L142: 0 | M142: 2646.54 | O142: 0 | P142: 0 | R142: 0 | AD142: 2646.54 | AE142: 100 | AF142: 0 | AG142: 2646.54
A143: MATX.400220.IN.MI.24 | B143: M.O ENTRETIEN VESTIAIRE - SANITAIRE | D143: H | E143: 2295.54 | H143: 2295.54 | J143: 2295.54 | K143: 100 | L143: 0 | M143: 2295.54 | O143: 0 | P143: 0 | R143: 0 | AD143: 2295.54 | AE143: 100 | AF143: 0 | AG143: 2295.54
A144: MATX.400220.IN.MI.25 | B144: INFIRMIER | D144: H | E144: 2295.54 | H144: 2295.54 | J144: 2295.54 | K144: 100 | L144: 0 | M144: 2295.54 | O144: 0 | P144: 0 | R144: 0 | AD144: 2295.54 | AE144: 100 | AF144: 0 | AG144: 2295.54
A145: MATX.400220.IN.MI.26 | B145: PLOMBIER | D145: H | E145: 2808 | H145: 2808 | J145: 2808 | K145: 100 | L145: 0 | M145: 2808 | O145: 0 | P145: 0 | R145: 0 | AD145: 2808 | AE145: 100 | AF145: 0 | AG145: 2808
A146: MATX.400220.IN.MI.27 | B146: ELECTRICIEN | D146: H | E146: 2295.54 | H146: 2295.54 | J146: 2295.54 | K146: 100 | L146: 0 | M146: 2295.54 | O146: 0 | P146: 0 | R146: 0 | AD146: 2295.54 | AE146: 100 | AF146: 0 | AG146: 2295.54
A147: MATX.400220.IN.MI.28 | B147: CHANTIER : Gardien Jour/Nuit | D147: H | E147: 25740 | H147: 25740 | J147: 25740 | K147: 100 | L147: 315 | M147: 25425 | O147: 0 | P147: 0 | R147: 0 | AD147: 25740 | AE147: 100 | AF147: 315 | AG147: 25425
A148: MATX.400220.IN.MI.29 | B148: GARDIEN IMMEUBLE ASOMOVIT | D148: H | E148: 2646.54 | H148: 2646.54 | J148: 2646.54 | K148: 100 | L148: 0 | M148: 2646.54 | O148: 0 | P148: 0 | R148: 0 | AD148: 2646.54 | AE148: 100 | AF148: 0 | AG148: 2646.54
A149: MATX.400220.IN.IC.02 | B149: INSTALLATION CHANTIER | D149: H | E149: 0 | H149: 0 | J149: 0 | K149: 100 | L149: 1780 | M149: -1780 | O149: 0 | R149: 0 | AD149: 0 | AE149: 100 | AF149: 1780 | AG149: -1780
A150: MATX.400220.IN.IC.01 | B150: MONTAGE DE GRUES | D150: H | E150: 0 | H150: 0 | J150: 0 | K150: 100 | L150: 0 | M150: 0 | O150: 0 | R150: 0 | AD150: 0 | AE150: 100 | AF150: 0 | AG150: 0
A151: MATX.400220.IN.IC.02 | B151: POSE DES CHAISES | D151: H | E151: 0 | H151: =SUM(E151:G151) -> 0 | J151: 0 | K151: 100 | L151: 269 | M151: -269 | O151: 0 | R151: 0 | AD151: 0 | AE151: 100 | AF151: 269 | AG151: -269
A152: MATX.400220.PP.AM.25 | B152: RESEAUX SOUS DALLAGE | D152: H | E152: 0 | H152: 0 | J152: 0 | K152: 100 | L152: 2362 | M152: -2362 | O152: 0 | R152: 0 | AD152: 0 | AE152: 100 | AF152: 2362 | AG152: -2362
A153: MATX.400220.PP.AM.26 | B153: TERRASSEMENT COMPLEMENTAIRE | D153: H | E153: 0 | H153: 0 | J153: 0 | K153: 100 | L153: 6054 | M153: -6054 | O153: 0 | R153: 0 | AD153: 0 | AE153: 100 | AF153: 6054 | AG153: -6054
A154: MATX.400220.IN.FF.11 | B154: CALE A BETON | D154: H | E154: 0 | H154: 0 | J154: 0 | K154: 100 | L154: 487 | M154: -487 | O154: 0 | R154: 0 | AD154: 0 | AE154: 100 | AF154: 487 | AG154: -487

Sheet BETON Qte
A3: BILAN BETON
B5: P.U. | E5: 695 | F5: 695 | G5: 695 | H5: 695 | J5: =H5 -> 695 | L5: =IFERROR(L6/(L11+L67+L119),"") -> 9368.957748 | M5: =IFERROR(J5-L5,"") -> -8673.957748 | O5: =H5 -> 695 | Q5: =IFERROR(Q6/(Q11+Q67+Q119),"") ->  | R5: =IFERROR(O5-Q5,"") ->  | T5: =H5 -> 695 | V5: =IFERROR(V6/(V11+V67+V119),"") -> 2908.550463 | W5: =IFERROR(H5-V5,"") -> -2213.550463 | AD5: 695 | AF5: 9368.957748 | AG5: -8673.957748
B6: MONTANT | E6: =IFERROR(E5*(E11+E67),"") -> 18719141.82 | F6: =IFERROR(F5*(F11+F67),"") -> 0 | G6: =IFERROR(G5*(G11+G67),"") -> 0 | H6: =IFERROR(H5*(H11+H67),"") -> 18719141.82 | J6: =IFERROR(J5*(J11+J67),"") -> 3912070.349 | L6: =IFERROR(Q6+AF6,"") -> 81383517.06 | M6: =IFERROR(J6-L6,"") -> -77471446.71 | O6: =IFERROR(O5*(O11+O67),"") -> 0 | R6: =IFERROR(O6-Q6,"") -> 0 | T6: =IFERROR(T5*(T11+T67),"") -> 17711379.42 | V6: =IFERROR(L6+T6,"") -> 99094896.48 | W6: =IFERROR(H6-V6,"") -> -80375754.67 | AD6: 3912070.349 | AF6: 81383517.06 | AG6: -77471446.71
J7: xxxxxxx | AD7: xxxxxxx
E8: BUDG. Réf. | F8: Trsf. +/- | G8: TS | H8: Total | J8: CUMUL A FIN MARS-2017 | O8: MOIS DE MARS-2017 | T8: RAD | V8: CUMUL FDC | AD8: CUMUL A FIN FÉVRIER-2017
A9: Code OTP | B9: Description OTP | C9: . | D9: Unité | E9: Qté | F9: Qté | G9: Qté | H9: Qté | I9: . | J9: Budget Avancé | L9: Dépenses | M9: Ecart | N9: . | O9: Budget Avancé | Q9: Dépenses | R9: Ecart | S9: . | T9: Qtés | U9: . | V9: Dépenses | W9: Ecarts | AD9: Budget Avancé | AF9: Dépenses | AG9: Ecart
D10: Res. | J10: Qté | K10: % | L10: Qté | M10: Qté | O10: Qté | P10: % | Q10: Qté | R10: Qté | V10: Qté | W10: Qté | AD10: Qté | AE10: % | AF10: Qté | AG10: Qté
B11: PART PROPRE | D11: M3 | E11: =E12+E24+E35+E38+E41+E57 -> 13751.581 | F11: =F12+F24+F35+F38+F41+F57 -> 0 | G11: =G12+G24+G35+G38+G41+G57 -> 0 | H11: =H12+H24+H35+H38+H41+H57 -> 13751.581 | J11: =J12+J24+J35+J38+J41+J57 -> 1627.4422 | K11: =IFERROR(J11/H11,"") -> 0.1183458251 | L11: =L12+L24+L35+L38+L41+L57 -> 1825.913 | M11: =M12+M24+M35+M38+M41+M57 -> -198.4708 | O11: =O12+O24+O35+O38+O41+O57 -> 0 | P11: =IFERROR(O11/H11,"") -> 0 | Q11: =Q12+Q24+Q35+Q38+Q41+Q57 -> 0 | R11: =R12+R24+R35+R38+R41+R57 -> 0 | T11: =T12+T24+T35+T38+T41+T57 -> 11695.64878 | V11: =V12+V24+V35+V38+V41+V57 -> 13521.56178 | W11: =W12+W24+W35+W38+W41+W57 -> 230.0192248 | AD11: 1627.4422 | AE11: 0.1513677105 | AF11: 1825.913 | AG11: -198.4708
A12: MATX.400220.PP.DS.1.1 | B12: FONDATION - GH4 | D12: M3 | E12: =SUM(E13:E23) -> 5344.6 | F12: =SUM(F13:F23) -> 0 | G12: =SUM(G13:G23) -> 0 | H12: =SUM(H13:H23) -> 5344.6 | J12: =SUM(J13:J23) -> 1558.2107 | K12: =IFERROR(J12/H12,"") -> 0.2915486098 | L12: =SUM(L13:L23) -> 1737.913 | M12: =SUM(M13:M23) -> -179.7023 | O12: =SUM(O13:O23) -> 0 | P12: =IFERROR(O12/H12,"") -> 0 | Q12: =SUM(Q13:Q23) -> 0 | R12: =SUM(R13:R23) -> 0 | T12: =SUM(T13:T23) -> 1057.630682 | V12: =SUM(V13:V23) -> 2795.543682 | W12: =SUM(W13:W23) -> 2549.056318 | AD12: 1558.2107 | AE12: 0.6645955387 | AF12: 1737.913 | AG12: -179.7023
B13: BETON DE PROPRETE | D13: M3 | E13: 158 | H13: =SUM(E13:G13) -> 158 | J13: =H13*K13/100 -> 112.18 | K13: 71 | L13: =Q13+AF13 -> 161.57 | M13: =J13-L13 -> -49.39 | O13: =J13-AD13 -> 0 | P13: 0 | R13: =O13-Q13 -> 0 | T13: 65.62265 | V13: =+L13+T13 -> 227.19265 | W13: =H13-V13 -> -69.19265 | AD13: 112.18 | AE13: 71 | AF13: 161.57 | AG13: -49.39
B14: GROS BETON | D14: M3 | E14: 390 | H14: =SUM(E14:G14) -> 390 | J14: =H14*K14/100 -> 261.3 | K14: 67 | L14: =Q14+AF14 -> 1.5 | M14: =J14-L14 -> 259.8 | O14: =J14-AD14 -> 0 | P14: 0 | R14: =O14-Q14 -> 0 | T14: 0.864 | V14: =+L14+T14 -> 2.364 | W14: =H14-V14 -> 387.636 | AD14: 261.3 | AE14: 67 | AF14: 1.5 | AG14: 259.8
B15: BETON CYCLOPEEN POUR MARMITES | D15: M3 | E15: 3000 | H15: 3000 | J15: 0 | K15: 0 | L15: 83 | M15: -83 | O15: 0 | P15: 0 | R15: 0 | T15: 0 | V15: 83 | W15: 2917 | AD15: 0 | AE15: 0 | AF15: 83 | AG15: -83
B16: SEMELLES ISOLEES | D16: M3 | E16: 203 | H16: 203 | J16: 99.47 | K16: 49 | L16: 20.5 | M16: 78.97 | O16: 0 | P16: 0 | R16: 0 | T16: 21.7196 | V16: 42.2196 | W16: 160.7804 | AD16: 99.47 | AE16: 49 | AF16: 20.5 | AG16: 78.97
B17: SEMELLES FILANTES | D17: M3 | E17: 1063.47 | H17: 1063.47 | J17: 840.1413 | K17: 79 | L17: 284.23 | M17: 555.9113 | O17: 0 | P17: 0 | R17: 0 | T17: 78.9375 | V17: 363.1675 | W17: 700.3025 | AD17: 840.1413 | AE17: 79 | AF17: 284.23 | AG17: 555.9113
B18: LONGRINES | D18: M3 | E18: 81 | H18: 81 | J18: 50.22 | K18: 62 | L18: 98.713 | M18: -48.493 | O18: 0 | P18: 0 | R18: 0 | T18: 175.374 | V18: 274.087 | W18: -193.087 | AD18: 50.22 | AE18: 62 | AF18: 98.713 | AG18: -48.493
B19: AMORCE DE POTEAUX | D19: M3 | E19: 11.2 | H19: 11.2 | J19: 8.96 | K19: 80 | L19: 5.92 | M19: 3.04 | O19: 0 | P19: 0 | R19: 0 | T19: 6.312503033 | V19: 12.23250303 | W19: -1.032503033 | AD19: 8.96 | AE19: 80 | AF19: 5.92 | AG19: 3.04
B20: AMORCE DE VOILE | D20: M3 | E20: 111.93 | H20: 111.93 | J20: 64.9194 | K20: 58 | L20: 63 | M20: 1.9194 | O20: 0 | P20: 0 | R20: 0 | T20: 46.030075 | V20: 109.030075 | W20: 2.899925 | AD20: 64.9194 | AE20: 58 | AF20: 63 | AG20: 1.9194
B21: DALLAGE (ep 15cm 35kg/m3) | D21: M3 | E21: 252 | H21: =SUM(E21:G21) -> 252 | J21: =H21*K21/100 -> 65.52 | K21: 26 | L21: =Q21+AF21 -> 97.5 | M21: =J21-L21 -> -31.98 | O21: =J21-AD21 -> 0 | P21: 0 | R21: =O21-Q21 -> 0 | T21: 360.0643543 | V21: =+L21+T21 -> 457.5643543 | W21: =H21-V21 -> -205.5643543 | AD21: 65.52 | AE21: 26 | AF21: 97.5 | AG21: -31.98
B22: RADIER RAMPE | D22: M3 | E22: 74 | H22: =SUM(E22:G22) -> 74 | J22: =H22*K22/100 -> 55.5 | K22: 75 | L22: =Q22+AF22 -> 921.98 | M22: =J22-L22 -> -866.48 | O22: =J22-AD22 -> 0 | P22: 0 | R22: =O22-Q22 -> 0 | T22: 302.706 | V22: =+L22+T22 -> 1224.686 | W22: =H22-V22 -> -1150.686 | AD22: 55.5 | AE22: 75 | AF22: 921.98 | AG22: -866.48
B23: ACIER FONDATIONS ANNEXE 12 | D23: M3 | E23: 0 | H23: =SUM(E23:G23) -> 0 | J23: =H23*K23/100 -> 0 | K23: 0 | L23: =Q23+AF23 -> 0 | M23: =J23-L23 -> 0 | O23: =J23-AD23 -> 0 | R23: =O23-Q23 -> 0 | T23: 0 | V23: =+L23+T23 -> 0 | W23: =H23-V23 -> 0 | AD23: 0 | AE23: 0 | AF23: 0 | AG23: 0
A24: MATX.400220.PP.DS.1.2 | B24: SUPERSTRUCTURE - GH4 | D24: M3 | E24: =SUM(E25:E34) -> 7949.091 | F24: =SUM(F25:F34) -> 0 | G24: =SUM(G25:G34) -> 0 | H24: =SUM(H25:H34) -> 7949.091 | J24: =SUM(J25:J34) -> 69.2315 | K24: =IFERROR(J24/H24,"") -> 0.008709360605 | L24: =SUM(L25:L34) -> 88 | M24: =SUM(M25:M34) -> -18.7685 | O24: =SUM(O25:O34) -> 0 | P24: 0 | Q24: =SUM(Q25:Q34) -> 0 | R24: =SUM(R25:R34) -> 0 | T24: =SUM(T25:T34) -> 10180.12809 | V24: =SUM(V25:V34) -> 10268.12809 | W24: =SUM(W25:W34) -> -2319.037093 | AD24: 69.2315 | AE24: 0.008709360605 | AF24: 88 | AG24: -18.7685
B25: POTEAUX | D25: M3 | E25: 395.15 | H25: =SUM(E25:G25) -> 395.15 | J25: =+H25*K25/100 -> 3.9515 | K25: 1 | L25: =Q25+AF25 -> 1.5 | M25: =J25-L25 -> 2.4515 | O25: =J25-AD25 -> 0 | P25: 0 | R25: =O25-Q25 -> 0 | T25: 339.9801329 | V25: =+L25+T25 -> 341.4801329 | W25: =H25-V25 -> 53.66986708 | AD25: 3.9515 | AE25: 1 | AF25: 1.5 | AG25: 2.4515
B26: VOILES | D26: M3 | E26: 2176 | H26: 2176 | J26: 65.28 | K26: 3 | L26: 86.5 | M26: -21.22 | O26: 0 | P26: 0 | R26: 0 | T26: 3071.22796 | V26: 3157.72796 | W26: -981.72796 | AD26: 65.28 | AE26: 3 | AF26: 86.5 | AG26: -21.22
B27: ACROTETES ET RELEVES DE BALCONS EN BA | D27: M3 | E27: 371.87 | H27: 371.87 | J27: 0 | K27: 0 | L27: 0 | M27: 0 | O27: 0 | P27: 0 | R27: 0 | T27: 371.87 | V27: 371.87 | W27: 0 | AD27: 0 | AE27: 0 | AF27: 0 | AG27: 0
B28: POUTRES | D28: M3 | E28: 1511 | H28: 1511 | J28: 0 | K28: 0 | L28: 0 | M28: 0 | O28: 0 | P28: 0 | R28: 0 | T28: 1511 | V28: 1511 | W28: 0 | AD28: 0 | AE28: 0 | AF28: 0 | AG28: 0
B29: DALLES PLEINES | D29: M3 | E29: 1354 | H29: 1354 | J29: 0 | K29: 0 | L29: =Q29+AF29 -> 0 | M29: =J29-L29 -> 0 | O29: =J29-AD29 -> 0 | P29: 0 | R29: =O29-Q29 -> 0 | T29: 4716 | V29: =+L29+T29 -> 4716 | W29: =H29-V29 -> -3362 | AD29: 0 | AE29: 0 | AF29: 0 | AG29: 0
B30: PLANCHERS POUTRELLES HOURDIS 15+5 | D30: M3 | E30: 860.9 | H30: 860.9 | J30: 0 | K30: 0 | L30: 0 | M30: 0 | O30: 0 | P30: 0 | R30: 0 | T30: 0 | V30: 0 | W30: 860.9 | AD30: 0 | AE30: 0 | AF30: 0 | AG30: 0
B31: PLANCHERS POUTRELLES HOURDIS 20+5 | D31: M3 | E31: 579.481 | H31: 579.481 | J31: 0 | K31: 0 | L31: 0 | M31: 0 | O31: 0 | P31: 0 | R31: 0 | T31: 0 | V31: 0 | W31: 579.481 | AD31: 0 | AE31: 0 | AF31: 0 | AG31: 0
B32: PLANCHERS POUTRELLES HOURDIS 25+5 | D32: M3 | E32: 530.64 | H32: 530.64 | J32: 0 | K32: 0 | L32: 0 | M32: 0 | O32: 0 | P32: 0 | R32: 0 | T32: 0 | V32: 0 | W32: 530.64 | AD32: 0 | AE32: 0 | AF32: 0 | AG32: 0
B33: ARMATURES SUPER | D33: M3 | E33: 0 | H33: 0 | J33: 0 | K33: 0 | L33: 0 | M33: 0 | O33: 0 | R33: 0 | T33: 0 | V33: 0 | W33: 0 | AD33: 0 | AE33: 0 | AF33: 0 | AG33: 0
B34: INCIDENCE UTILISATION CP SUR LA STRUCTURE | D34: M3 | E34: 170.05 | H34: 170.05 | J34: 0 | K34: 0 | L34: 0 | M34: 0 | O34: 0 | P34: 0 | R34: 0 | T34: 170.05 | V34: 170.05 | W34: 0 | AD34: 0 | AE34: 0 | AF34: 0 | AG34: 0
A35: MATX.400220.PP.DS.1.3 | B35: MACONNERIE & ENDUIT INFRA + SUPER - GH4 | D35: M3 | E35: =SUM(E36:E37) -> 133.84 | F35: =SUM(F36:F37) -> 0 | G35: =SUM(G36:G37) -> 0 | H35: =SUM(H36:H37) -> 133.84 | J35: =SUM(J36:J37) -> 0 | K35: =IFERROR(J35/H35,"") -> 0 | L35: =SUM(L36:L37) -> 0 | M35: =SUM(M36:M37) -> 0 | O35: =SUM(O36:O37) -> 0 | P35: 0 | Q35: =SUM(Q36:Q37) -> 0 | R35: =SUM(R36:R37) -> 0 | T35: =SUM(T36:T37) -> 133.84 | V35: =SUM(V36:V37) -> 133.84 | W35: =SUM(W36:W37) -> 0 | AD35: 0 | AE35: 0 | AF35: 0 | AG35: 0
B36: RAIDISSEURS VERTICAUX DANS MACONNERIE | D36: M3 | E36: 111.74 | H36: =SUM(E36:G36) -> 111.74 | J36: =+H36*K36/100 -> 0 | K36: 0 | L36: =Q36+AF36 -> 0 | M36: =J36-L36 -> 0 | O36: =J36-AD36 -> 0 | P36: 0 | R36: =O36-Q36 -> 0 | T36: 111.74 | V36: =+L36+T36 -> 111.74 | W36: =H36-V36 -> 0 | AD36: 0 | AE36: 0 | AF36: 0 | AG36: 0
B37: LINTEAUX BA & PV CAISSON VR | D37: M3 | E37: 22.1 | H37: 22.1 | J37: 0 | K37: 0 | L37: 0 | M37: 0 | O37: 0 | P37: 0 | R37: 0 | T37: 22.1 | V37: 22.1 | W37: 0 | AD37: 0 | AE37: 0 | AF37: 0 | AG37: 0
A38: MATX.400220.PP.DS.1.4 | B38: ESCALIERS - GH4 | D38: M3 | E38: =SUM(E39:E40) -> 142 | F38: =SUM(F39:F40) -> 0 | G38: =SUM(G39:G40) -> 0 | H38: =SUM(H39:H40) -> 142 | J38: =SUM(J39:J40) -> 0 | K38: =IFERROR(J38/H38,"") -> 0 | L38: =SUM(L39:L40) -> 0 | M38: =SUM(M39:M40) -> 0 | O38: =SUM(O39:O40) -> 0 | P38: 0 | Q38: =SUM(Q39:Q40) -> 0 | R38: =SUM(R39:R40) -> 0 | T38: =SUM(T39:T40) -> 142 | V38: =SUM(V39:V40) -> 142 | W38: =SUM(W39:W40) -> 0 | AD38: 0 | AE38: 0 | AF38: 0 | AG38: 0
B39: ESCALIER 1/2 TOURNANT | D39: M3 | E39: 84 | H39: =SUM(E39:G39) -> 84 | J39: =+H39*K39/100 -> 0 | K39: 0 | L39: =Q39+AF39 -> 0 | M39: =J39-L39 -> 0 | O39: =J39-AD39 -> 0 | P39: 0 | R39: =O39-Q39 -> 0 | T39: 84 | V39: =+L39+T39 -> 84 | W39: =H39-V39 -> 0 | AD39: 0 | AE39: 0 | AF39: 0 | AG39: 0
B40: ESCALIER HELICOIDAL SECOURS | D40: M3 | E40: 58 | H40: =SUM(E40:G40) -> 58 | J40: =+H40*K40/100 -> 0 | K40: 0 | L40: =Q40+AF40 -> 0 | M40: =J40-L40 -> 0 | O40: =J40-AD40 -> 0 | P40: 0 | R40: =O40-Q40 -> 0 | T40: 58 | V40: =+L40+T40 -> 58 | W40: =H40-V40 -> 0 | AD40: 0 | AE40: 0 | AF40: 0 | AG40: 0
A41: MATX.400220.PP.DS.1.5 | B41: OUVRAGES DIVERS - GH4 | D41: M3 | E41: =SUM(E42:E56) -> 182.05 | F41: =SUM(F42:F56) -> 0 | G41: =SUM(G42:G56) -> 0 | H41: =SUM(H42:H56) -> 182.05 | J41: =SUM(J42:J56) -> 0 | K41: =IFERROR(J41/H41,"") -> 0 | L41: =SUM(L42:L56) -> 0 | M41: =SUM(M42:M56) -> 0 | O41: =SUM(O42:O56) -> 0 | P41: 0 | Q41: =SUM(Q42:Q56) -> 0 | R41: =SUM(R42:R56) -> 0 | T41: =SUM(T42:T56) -> 182.05 | V41: =SUM(V42:V56) -> 182.05 | W41: =SUM(W42:W62) -> 0 | AD41: 0 | AE41: 0 | AF41: 0 | AG41: 0
B42: APPUIS DE FENETRES | D42: M3 | E42: 22.04 | H42: =SUM(E42:G42) -> 22.04 | J42: =+H42*K42/100 -> 0 | K42: 0 | L42: =Q42+AF42 -> 0 | M42: =J42-L42 -> 0 | O42: =J42-AD42 -> 0 | P42: 0 | R42: =O42-Q42 -> 0 | T42: 22.04 | V42: =+L42+T42 -> 22.04 | W42: =H42-V42 -> 0 | AD42: 0 | AE42: 0 | AF42: 0 | AG42: 0
B43: POSE ET SCELLEMENT DE CADRES ET FX CADRES | D43: M3 | E43: 0 | H43: 0 | J43: =H43*K43/100 -> 0 | K43: 0 | L43: 0 | M43: 0 | O43: 0 | R43: 0 | T43: 0 | V43: 0 | W43: 0 | AD43: 0 | AE43: 0 | AF43: 0 | AG43: 0
B44: POSE ET SCELLEMENT DE GC | D44: M3 | E44: 0 | H44: 0 | J44: 0 | K44: 0 | L44: 0 | M44: 0 | O44: 0 | R44: 0 | T44: 0 | V44: 0 | W44: 0 | AD44: 0 | AE44: 0 | AF44: 0 | AG44: 0
B45: POSE ET SCELLEMENT DE PRECADRES / MENUISERIE | D45: M3 | E45: 0 | H45: 0 | J45: 0 | K45: 0 | L45: 0 | M45: 0 | O45: 0 | R45: 0 | T45: 0 | V45: 0 | W45: 0 | AD45: 0 | AE45: 0 | AF45: 0 | AG45: 0
B46: SCELLEMENT RECEVEURS DE DOUCHE | D46: M3 | E46: 0 | H46: 0 | J46: 0 | K46: 0 | L46: 0 | M46: 0 | O46: 0 | R46: 0 | T46: 0 | V46: 0 | W46: 0 | AD46: 0 | AE46: 0 | AF46: 0 | AG46: 0
B47: SOCLE PARABOLE | D47: M3 | E47: 2.4 | H47: 2.4 | J47: 0 | K47: 0 | L47: 0 | M47: 0 | O47: 0 | P47: 0 | R47: 0 | T47: 2.4 | V47: 2.4 | W47: 0 | AD47: 0 | AE47: 0 | AF47: 0 | AG47: 0
B48: SOCLE TERRASSE | D48: M3 | E48: 63 | H48: 63 | J48: 0 | K48: 0 | L48: 0 | M48: 0 | O48: 0 | P48: 0 | R48: 0 | T48: 63 | V48: 63 | W48: 0 | AD48: 0 | AE48: 0 | AF48: 0 | AG48: 0
B49: SOUCHES TERRASSES | D49: M3 | E49: 16.5 | H49: 16.5 | J49: 0 | K49: 0 | L49: 0 | M49: 0 | O49: 0 | P49: 0 | R49: 0 | T49: 16.5 | V49: 16.5 | W49: 0 | AD49: 0 | AE49: 0 | AF49: 0 | AG49: 0
B50: TRAITEMENT DES JD | D50: M3 | E50: 0 | H50: 0 | J50: 0 | K50: 0 | L50: 0 | M50: 0 | O50: 0 | R50: 0 | T50: 0 | V50: 0 | W50: 0 | AD50: 0 | AE50: 0 | AF50: 0 | AG50: 0
B51: PEMPLISSAGE JD PAR POLYSTYRENNE | D51: M3 | E51: 0 | H51: 0 | J51: 0 | K51: 0 | L51: 0 | M51: 0 | O51: 0 | R51: 0 | T51: 0 | V51: 0 | W51: 0 | AD51: 0 | AE51: 0 | AF51: 0 | AG51: 0
B52: DALETTES EN BETON | D52: M3 | E52: 36.8 | H52: 36.8 | J52: 0 | K52: 0 | L52: 0 | M52: 0 | O52: 0 | P52: 0 | R52: 0 | T52: 36.8 | V52: 36.8 | W52: 0 | AD52: 0 | AE52: 0 | AF52: 0 | AG52: 0
B53: TROUS DE SCELLEMENT & CALFEUTREMENT | D53: M3 | E53: 0 | H53: 0 | J53: 0 | K53: 0 | L53: 0 | M53: 0 | O53: 0 | R53: 0 | T53: 0 | V53: 0 | W53: 0 | AD53: 0 | AE53: 0 | AF53: 0 | AG53: 0
B54: AMENAGEMENT DES LOCAUX TECHNIQUES | D54: M3 | E54: 0 | H54: 0 | J54: 0 | K54: 0 | L54: 0 | M54: 0 | O54: 0 | R54: 0 | T54: 0 | V54: 0 | W54: 0 | AD54: 0 | AE54: 0 | AF54: 0 | AG54: 0
B55: COURS ANGLAISES VENTILLATION PARKING | D55: M3 | E55: 41.31 | H55: 41.31 | J55: 0 | K55: 0 | L55: 0 | M55: 0 | O55: 0 | P55: 0 | R55: 0 | T55: 41.31 | V55: 41.31 | W55: 0 | AD55: 0 | AE55: 0 | AF55: 0 | AG55: 0
B56: BAC A SABLE | D56: M3 | E56: 0 | H56: 0 | J56: 0 | K56: 0 | L56: 0 | M56: 0 | O56: 0 | R56: 0 | T56: 0 | V56: 0 | W56: 0 | AD56: 0 | AE56: 0 | AF56: 0 | AG56: 0
A57: MATX.400220.PP.DS.1.6 | B57: MACONNERIE & ENDUIT TERRASSE - GH4 | D57: M3 | E57: =SUM(E58:E60) -> 0 | F57: =SUM(F58:F60) -> 0 | G57: =SUM(G58:G60) -> 0 | H57: =SUM(H58:H60) -> 0 | J57: =SUM(J58:J60) -> 0 | K57: =IFERROR(J57/H57,"") ->  | L57: =SUM(L58:L60) -> 0 | M57: =SUM(M58:M60) -> 0 | O57: =SUM(O58:O60) -> 0 | Q57: =SUM(Q58:Q60) -> 0 | R57: =SUM(R58:R60) -> 0 | T57: =SUM(T58:T60) -> 0 | V57: =SUM(V58:V60) -> 0 | W57: =SUM(W58:W60) -> 0 | AD57: 0 | AF57: 0 | AG57: 0
B58: AJUSTEMENT MAIN D'ŒUVRE | D58: M3 | E58: 0 | H58: =SUM(E58:G58) -> 0 | J58: =+H58*K58/100 -> 0 | K58: 0 | L58: =Q58+AF58 -> 0 | M58: =J58-L58 -> 0 | O58: =J58-AD58 -> 0 | R58: =O58-Q58 -> 0 | T58: 0 | V58: =+L58+T58 -> 0 | W58: =H58-V58 -> 0 | AD58: 0 | AE58: 0 | AF58: 0 | AG58: 0
B59: AJUSTEMENT MAIN D'ŒUVRE | D59: M3 | E59: 0 | H59: =SUM(E59:G59) -> 0 | J59: 0 | K59: 0 | L59: =Q59+AF59 -> 0 | M59: =J59-L59 -> 0 | O59: =J59-AD59 -> 0 | R59: =O59-Q59 -> 0 | T59: 0 | V59: 0 | W59: =H59-V59 -> 0 | AD59: 0 | AE59: 0 | AF59: 0 | AG59: 0
B60: AJOUT ACIER CONSOLE | D60: M3 | E60: 0 | H60: =SUM(E60:G60) -> 0 | J60: 0 | K60: 0 | L60: =Q60+AF60 -> 0 | M60: =J60-L60 -> 0 | O60: =J60-AD60 -> 0 | R60: =O60-Q60 -> 0 | T60: 0 | V60: 0 | W60: =H60-V60 -> 0 | AD60: 0 | AE60: 0 | AF60: 0 | AG60: 0
B67: PART PROPRE | D67: M3 | E67: =E68+E79+E87+E90+E93+E109 -> 13182.436 | F67: =F68+F79+F87+F90+F93+F109 -> 0 | G67: =G68+G79+G87+G90+G93+G109 -> 0 | H67: =H68+H79+H87+H90+H93+H109 -> 13182.436 | J67: =J68+J79+J87+J90+J93+J109 -> 4001.436 | K67: =IFERROR(J67/H67,"") -> 0.303542987 | L67: =L68+L79+L87+L90+L93+L109 -> 6760.288 | M67: =M68+M79+M87+M90+M93+M109 -> -2758.852 | O67: =O68+O79+O87+O90+O93+O109 -> 0 | P67: =IFERROR(O67/H67,"") -> 0 | Q67: =Q68+Q79+Q87+Q90+Q93+Q109 -> 0 | R67: =R68+R79+R87+R90+R93+R109 -> 0 | T67: =T68+T79+T87+T90+T93+T109 -> 13788.35039 | V67: =V68+V79+V87+V90+V93+V109 -> 20548.63839 | W67: =W68+W79+W87+W90+W93+W109 -> -7366.202393 | AD67: 4001.436 | AE67: 0.303542987 | AF67: 6760.288 | AG67: -2758.852
A68: MATX.400220.PP.DS.2.1 | B68: FONDATION - GH5 | D68: M3 | E68: =SUM(E69:E78) -> 3506.8 | F68: =SUM(F69:F78) -> 0 | G68: =SUM(G69:G78) -> 0 | H68: =SUM(H69:H78) -> 3506.8 | J68: =SUM(J69:J78) -> 3367.356 | K68: =IFERROR(J68/H68,"") -> 0.9602361127 | L68: =SUM(L69:L78) -> 5634.868 | M68: =SUM(M69:M78) -> -2267.512 | O68: =SUM(O69:O78) -> 0 | P68: 0 | Q68: =SUM(Q69:Q78) -> 0 | R68: =SUM(R69:R78) -> 0 | T68: =SUM(T69:T78) -> 86.28 | V68: =SUM(V69:V78) -> 5721.148 | W68: =SUM(W69:W78) -> -2214.348 | AD68: 3367.356 | AE68: 0.9602361127 | AF68: 5634.868 | AG68: -2267.512
B69: BETON DE PROPRETE | D69: M3 | E69: 340 | H69: =SUM(E69:G69) -> 340 | J69: =H69*K69/100 -> 329.8 | K69: 97 | L69: =Q69+AF69 -> 331.003 | M69: =J69-L69 -> -1.203 | O69: =J69-AD69 -> 0 | P69: 0 | R69: =O69-Q69 -> 0 | T69: 8.97 | V69: =+L69+T69 -> 339.973 | W69: =H69-V69 -> 0.027 | AD69: 329.8 | AE69: 97 | AF69: 331.003 | AG69: -1.203
B70: GROS BETON | D70: M3 | E70: 45.6 | H70: =SUM(E70:G70) -> 45.6 | J70: =H70*K70/100 -> 45.6 | K70: 100 | L70: =Q70+AF70 -> 10.758 | M70: =J70-L70 -> 34.842 | O70: =J70-AD70 -> 0 | P70: 0 | R70: =O70-Q70 -> 0 | T70: 0 | V70: =+L70+T70 -> 10.758 | W70: =H70-V70 -> 34.842 | AD70: 45.6 | AE70: 100 | AF70: 10.758 | AG70: 34.842
B71: BETON CYCLOPEEN POUR MARMITES | D71: M3 | H71: 0 | J71: 0 | K71: 0 | L71: 2382.37 | M71: -2382.37 | O71: 0 | R71: 0 | T71: 0 | V71: 2382.37 | W71: -2382.37 | AD71: 0 | AE71: 0 | AF71: 2382.37 | AG71: -2382.37
B72: SEMELLES ISOLEES | D72: M3 | E72: 300 | H72: 300 | J72: 270 | K72: 90 | L72: 51.5 | M72: 218.5 | O72: 0 | P72: 0 | R72: 0 | T72: 5.6 | V72: 57.1 | W72: 242.9 | AD72: 270 | AE72: 90 | AF72: 51.5 | AG72: 218.5
B73: SEMELLES FILANTES | D73: M3 | E73: 1578 | H73: 1578 | J73: 1530.66 | K73: 97 | L73: 1579.857 | M73: -49.197 | O73: 0 | P73: 0 | R73: 0 | T73: 24.78 | V73: 1604.637 | W73: -26.637 | AD73: 1530.66 | AE73: 97 | AF73: 1579.857 | AG73: -49.197
B74: LONGRINES | D74: M3 | E74: 414 | H74: 414 | J74: 405.72 | K74: 98 | L74: 209.273 | M74: 196.447 | O74: 0 | P74: 0 | R74: 0 | T74: 4.14 | V74: 213.413 | W74: 200.587 | AD74: 405.72 | AE74: 98 | AF74: 209.273 | AG74: 196.447
B75: AMORCE DE POTEAUX | D75: M3 | E75: 26 | H75: 26 | J75: 20.8 | K75: 80 | L75: 25 | M75: -4.2 | O75: 0 | P75: 0 | R75: 0 | T75: 6.35 | V75: 31.35 | W75: -5.35 | AD75: 20.8 | AE75: 80 | AF75: 25 | AG75: -4.2
B76: AMORCE DE VOILE | D76: M3 | E76: 172 | H76: 172 | J76: 146.2 | K76: 85 | L76: 117.5 | M76: 28.7 | O76: 0 | P76: 0 | R76: 0 | T76: 20.74 | V76: 138.24 | W76: 33.76 | AD76: 146.2 | AE76: 85 | AF76: 117.5 | AG76: 28.7
B77: DALLAGE (ep 15cm 35kg/m3) | D77: M3 | E77: 631.2 | H77: =SUM(E77:G77) -> 631.2 | J77: =H77*K77/100 -> 618.576 | K77: 98 | L77: =Q77+AF77 -> 629.607 | M77: =J77-L77 -> -11.031 | O77: =J77-AD77 -> 0 | P77: 0 | R77: =O77-Q77 -> 0 | T77: 15.7 | V77: =+L77+T77 -> 645.307 | W77: =H77-V77 -> -14.107 | AD77: 618.576 | AE77: 98 | AF77: 629.607 | AG77: -11.031
B78: ACIER FONDATIONS ANNEXE 12 | D78: M3 | E78: 0 | H78: =SUM(E78:G78) -> 0 | J78: =H78*K78/100 -> 0 | K78: 100 | L78: =Q78+AF78 -> 298 | M78: =J78-L78 -> -298 | O78: =J78-AD78 -> 0 | R78: =O78-Q78 -> 0 | T78: 0 | V78: =+L78+T78 -> 298 | W78: =H78-V78 -> -298 | AD78: 0 | AE78: 100 | AF78: 298 | AG78: -298
A79: MATX.400220.PP.DS.2.2 | B79: SUPERSTRUCTURE - GH5 | D79: M3 | E79: =SUM(E80:E86) -> 9106.886 | F79: =SUM(F80:F86) -> 0 | G79: =SUM(G80:G86) -> 0 | H79: =SUM(H80:H86) -> 9106.886 | J79: =SUM(J80:J86) -> 634.08 | K79: =IFERROR(J79/H79,"") -> 0.06962643433 | L79: =SUM(L80:L86) -> 1125.42 | M79: =SUM(M80:M86) -> -491.34 | O79: =SUM(O80:O86) -> 0 | P79: 0 | Q79: =SUM(Q80:Q86) -> 0 | R79: =SUM(R80:R86) -> 0 | T79: =SUM(T80:T86) -> 13133.32039 | V79: =SUM(V80:V86) -> 14258.74039 | W79: =SUM(W80:W86) -> -5151.854393 | AD79: 634.08 | AE79: 0.06962643433 | AF79: 1125.42 | AG79: -491.34
B80: POTEAUX | D80: M3 | E80: 604 | H80: =SUM(E80:G80) -> 604 | J80: =+H80*K80/100 -> 72.48 | K80: 12 | L80: =Q80+AF80 -> 82.843 | M80: =J80-L80 -> -10.363 | O80: =J80-AD80 -> 0 | P80: 0 | R80: =O80-Q80 -> 0 | T80: 621.27 | V80: =+L80+T80 -> 704.113 | W80: =H80-V80 -> -100.113 | AD80: 72.48 | AE80: 12 | AF80: 82.843 | AG80: -10.363
B81: VOILES | D81: M3 | E81: 2240 | H81: 2240 | J81: 403.2 | K81: 18 | L81: 548.617 | M81: -145.417 | O81: 0 | P81: 0 | R81: 0 | T81: 2573.041456 | V81: 3121.658456 | W81: -881.658456 | AD81: 403.2 | AE81: 18 | AF81: 548.617 | AG81: -145.417
B82: ACROTETES ET RELEVES DE BALCONS EN BA | D82: M3 | E82: 476 | H82: 476 | J82: 0 | K82: 0 | L82: 0 | M82: 0 | O82: 0 | P82: 0 | R82: 0 | T82: 476 | V82: 476 | W82: 0 | AD82: 0 | AE82: 0 | AF82: 0 | AG82: 0
B83: POUTRES | D83: M3 | E83: 1654 | H83: 1654 | J83: 0 | K83: 0 | L83: 0 | M83: 0 | O83: 0 | P83: 0 | R83: 0 | T83: 1654 | V83: 1654 | W83: 0 | AD83: 0 | AE83: 0 | AF83: 0 | AG83: 0
B84: DALLES PLEINES | D84: M3 | E84: 1980 | H84: 1980 | J84: 158.4 | K84: 8 | L84: =Q84+AF84 -> 493.96 | M84: =J84-L84 -> -335.56 | O84: =J84-AD84 -> 0 | P84: 0 | R84: =O84-Q84 -> 0 | T84: 5656.122937 | V84: =+L84+T84 -> 6150.082937 | W84: =H84-V84 -> -4170.082937 | AD84: 158.4 | AE84: 8 | AF84: 493.96 | AG84: -335.56
B85: PLANCHERS POUTRELLES HOURDIS | D85: M3 | E85: 1947.686 | H85: 1947.686 | J85: 0 | K85: 0 | L85: =Q85+AF85 -> 0 | M85: =J85-L85 -> 0 | O85: =J85-AD85 -> 0 | P85: 0 | R85: =O85-Q85 -> 0 | T85: 1947.686 | V85: =+L85+T85 -> 1947.686 | W85: =H85-V85 -> 0 | AD85: 0 | AE85: 0 | AF85: 0 | AG85: 0
B86: INCIDENCE UTILISATION CP SUR LA STRUCTURE | D86: M3 | E86: 205.2 | H86: 205.2 | J86: 0 | K86: 0 | L86: 0 | M86: 0 | O86: 0 | P86: 0 | R86: 0 | T86: 205.2 | V86: 205.2 | W86: 0 | AD86: 0 | AE86: 0 | AF86: 0 | AG86: 0
A87: MATX.400220.PP.DS.2.3 | B87: MACONNERIE & ENDUIT INFRA + SUPER - GH5 | D87: M3 | E87: =SUM(E88:E89) -> 158.44 | F87: =SUM(F88:F89) -> 0 | G87: =SUM(G88:G89) -> 0 | H87: =SUM(H88:H89) -> 158.44 | J87: =SUM(J88:J89) -> 0 | K87: =IFERROR(J87/H87,"") -> 0 | L87: =SUM(L88:L89) -> 0 | M87: =SUM(M88:M89) -> 0 | O87: =SUM(O88:O89) -> 0 | P87: 0 | Q87: =SUM(Q88:Q89) -> 0 | R87: =SUM(R88:R89) -> 0 | T87: =SUM(T88:T89) -> 158.44 | V87: =SUM(V88:V89) -> 158.44 | W87: =SUM(W88:W89) -> 0 | AD87: 0 | AE87: 0 | AF87: 0 | AG87: 0
B88: RAIDISSEURS VERTICAUX DANS MACONNERIE | D88: M3 | E88: 132.28 | H88: =SUM(E88:G88) -> 132.28 | J88: =+H88*K88/100 -> 0 | K88: 0 | L88: =Q88+AF88 -> 0 | M88: =J88-L88 -> 0 | O88: =J88-AD88 -> 0 | P88: 0 | R88: =O88-Q88 -> 0 | T88: 132.28 | V88: =+L88+T88 -> 132.28 | W88: =H88-V88 -> 0 | AD88: 0 | AE88: 0 | AF88: 0 | AG88: 0
B89: LINTEAUX BA & PV CAISSON VR | D89: M3 | E89: 26.16 | H89: 26.16 | J89: 0 | K89: 0 | L89: 0 | M89: 0 | O89: 0 | P89: 0 | R89: 0 | T89: 26.16 | V89: 26.16 | W89: 0 | AD89: 0 | AE89: 0 | AF89: 0 | AG89: 0
A90: MATX.400220.PP.DS.2.4 | B90: ESCALIERS - GH5 | D90: M3 | E90: =SUM(E91:E92) -> 189 | F90: =SUM(F91:F92) -> 0 | G90: =SUM(G91:G92) -> 0 | H90: =SUM(H91:H92) -> 189 | J90: =SUM(J91:J92) -> 0 | K90: =IFERROR(J90/H90,"") -> 0 | L90: =SUM(L91:L92) -> 0 | M90: =SUM(M91:M92) -> 0 | O90: =SUM(O91:O92) -> 0 | P90: 0 | Q90: =SUM(Q91:Q92) -> 0 | R90: =SUM(R91:R92) -> 0 | T90: =SUM(T91:T92) -> 189 | V90: =SUM(V91:V92) -> 189 | W90: =SUM(W91:W92) -> 0 | AD90: 0 | AE90: 0 | AF90: 0 | AG90: 0
B91: ESCALIER 1/2 TOURNANT | D91: M3 | E91: 112 | H91: =SUM(E91:G91) -> 112 | J91: =+H91*K91/100 -> 0 | K91: 0 | L91: =Q91+AF91 -> 0 | M91: =J91-L91 -> 0 | O91: =J91-AD91 -> 0 | P91: 0 | R91: =O91-Q91 -> 0 | T91: 112 | V91: =+L91+T91 -> 112 | W91: =H91-V91 -> 0 | AD91: 0 | AE91: 0 | AF91: 0 | AG91: 0
B92: ESCALIER HELICOIDAL SECOURS | D92: M3 | E92: 77 | H92: =SUM(E92:G92) -> 77 | J92: =+H92*K92/100 -> 0 | K92: 0 | L92: =Q92+AF92 -> 0 | M92: =J92-L92 -> 0 | O92: =J92-AD92 -> 0 | P92: 0 | R92: =O92-Q92 -> 0 | T92: 77 | V92: =+L92+T92 -> 77 | W92: =H92-V92 -> 0 | AD92: 0 | AE92: 0 | AF92: 0 | AG92: 0
A93: MATX.400220.PP.DS.2.5 | B93: OUVRAGES DIVERS - GH5 | D93: M3 | E93: =SUM(E94:E108) -> 221.31 | F93: =SUM(F94:F108) -> 0 | G93: =SUM(G94:G108) -> 0 | H93: =SUM(H94:H108) -> 221.31 | J93: =SUM(J94:J108) -> 0 | K93: =IFERROR(J93/H93,"") -> 0 | L93: =SUM(L94:L108) -> 0 | M93: =SUM(M94:M108) -> 0 | O93: =SUM(O94:O108) -> 0 | P93: 0 | Q93: =SUM(Q94:Q108) -> 0 | R93: =SUM(R94:R108) -> 0 | T93: =SUM(T94:T108) -> 221.31 | V93: =SUM(V94:V108) -> 221.31 | W93: =SUM(W94:W118) -> 0 | AD93: 0 | AE93: 0 | AF93: 0 | AG93: 0
B94: APPUIS DE FENETRES | D94: M3 | E94: 27.28 | H94: =SUM(E94:G94) -> 27.28 | J94: =+H94*K94/100 -> 0 | K94: 0 | L94: =Q94+AF94 -> 0 | M94: =J94-L94 -> 0 | O94: =J94-AD94 -> 0 | P94: 0 | R94: =O94-Q94 -> 0 | T94: 27.28 | V94: =+L94+T94 -> 27.28 | W94: =H94-V94 -> 0 | AD94: 0 | AE94: 0 | AF94: 0 | AG94: 0
B95: POSE ET SCELLEMENT DE CADRES ET FX CADRES | D95: M3 | E95: 0 | H95: 0 | J95: =H95*K95/100 -> 0 | K95: 0 | L95: 0 | M95: 0 | O95: 0 | R95: 0 | T95: 0 | V95: 0 | W95: 0 | AD95: 0 | AE95: 0 | AF95: 0 | AG95: 0
B96: POSE ET SCELLEMENT DE GC | D96: M3 | E96: 0 | H96: 0 | J96: 0 | K96: 0 | L96: 0 | M96: 0 | O96: 0 | R96: 0 | T96: 0 | V96: 0 | W96: 0 | AD96: 0 | AE96: 0 | AF96: 0 | AG96: 0
B97: POSE ET SCELLEMENT DE PRECADRES / MENUISERIE | D97: M3 | E97: 0 | H97: 0 | J97: 0 | K97: 0 | L97: 0 | M97: 0 | O97: 0 | R97: 0 | T97: 0 | V97: 0 | W97: 0 | AD97: 0 | AE97: 0 | AF97: 0 | AG97: 0
B98: SCELLEMENT RECEVEURS DE DOUCHE | D98: M3 | E98: 0 | H98: 0 | J98: 0 | K98: 0 | L98: 0 | M98: 0 | O98: 0 | R98: 0 | T98: 0 | V98: 0 | W98: 0 | AD98: 0 | AE98: 0 | AF98: 0 | AG98: 0
B99: SOCLE PARABOLE | D99: M3 | E99: 3.2 | H99: 3.2 | J99: 0 | K99: 0 | L99: 0 | M99: 0 | O99: 0 | P99: 0 | R99: 0 | T99: 3.2 | V99: 3.2 | W99: 0 | AD99: 0 | AE99: 0 | AF99: 0 | AG99: 0
B100: SOCLE TERRASSE | D100: M3 | E100: 78.4 | H100: 78.4 | J100: 0 | K100: 0 | L100: 0 | M100: 0 | O100: 0 | P100: 0 | R100: 0 | T100: 78.4 | V100: 78.4 | W100: 0 | AD100: 0 | AE100: 0 | AF100: 0 | AG100: 0
B101: SOUCHES TERRASSES | D101: M3 | E101: 15.6 | H101: 15.6 | J101: 0 | K101: 0 | L101: 0 | M101: 0 | O101: 0 | P101: 0 | R101: 0 | T101: 15.6 | V101: 15.6 | W101: 0 | AD101: 0 | AE101: 0 | AF101: 0 | AG101: 0
B102: TRAITEMENT DES JD | D102: M3 | E102: 0 | H102: 0 | J102: 0 | K102: 0 | L102: 0 | M102: 0 | O102: 0 | R102: 0 | T102: 0 | V102: 0 | W102: 0 | AD102: 0 | AE102: 0 | AF102: 0 | AG102: 0
B103: PEMPLISSAGE JD PAR POLYSTYRENNE | D103: M3 | E103: 0 | H103: 0 | J103: =+H103*K103/100 -> 0 | K103: 0 | L103: 0 | M103: 0 | O103: 0 | R103: 0 | T103: 0 | V103: 0 | W103: 0 | AD103: 0 | AE103: 0 | AF103: 0 | AG103: 0
B104: DALETTES EN BETON | D104: M3 | E104: 45.8 | H104: 45.8 | J104: 0 | K104: 0 | L104: 0 | M104: 0 | O104: 0 | P104: 0 | R104: 0 | T104: 45.8 | V104: 45.8 | W104: 0 | AD104: 0 | AE104: 0 | AF104: 0 | AG104: 0
B105: TROUS DE SCELLEMENT & CALFEUTREMENT | D105: M3 | E105: 0 | H105: 0 | J105: 0 | K105: 0 | L105: 0 | M105: 0 | O105: 0 | R105: 0 | T105: 0 | V105: 0 | W105: 0 | AD105: 0 | AE105: 0 | AF105: 0 | AG105: 0
B106: AMENAGEMENT DES LOCAUX TECHNIQUES | D106: M3 | E106: 0 | H106: 0 | J106: 0 | K106: 0 | L106: 0 | M106: 0 | O106: 0 | R106: 0 | T106: 0 | V106: 0 | W106: 0 | AD106: 0 | AE106: 0 | AF106: 0 | AG106: 0
B107: COURS ANGLAISES VENTILLATION PARKING | D107: M3 | E107: 51.03 | H107: 51.03 | J107: 0 | K107: 0 | L107: 0 | M107: 0 | O107: 0 | P107: 0 | R107: 0 | T107: 51.03 | V107: 51.03 | W107: 0 | AD107: 0 | AE107: 0 | AF107: 0 | AG107: 0
B108: BAC A SABLE | D108: M3 | E108: 0 | H108: 0 | J108: 0 | K108: 0 | L108: 0 | M108: 0 | O108: 0 | R108: 0 | T108: 0 | V108: 0 | W108: 0 | AD108: 0 | AE108: 0 | AF108: 0 | AG108: 0
A109: MATX.400220.PP.DS.2.6 | B109: MACONNERIE & ENDUIT TERRASSE - GH5 | D109: M3 | E109: =SUM(E110:E112) -> 0 | F109: =SUM(F110:F112) -> 0 | G109: =SUM(G110:G112) -> 0 | H109: =SUM(H110:H112) -> 0 | J109: =SUM(J110:J112) -> 0 | K109: =IFERROR(J109/H109,"") ->  | L109: =SUM(L110:L112) -> 0 | M109: =SUM(M110:M112) -> 0 | O109: =SUM(O110:O112) -> 0 | Q109: =SUM(Q110:Q112) -> 0 | R109: =SUM(R110:R112) -> 0 | T109: =SUM(T110:T112) -> 0 | V109: =SUM(V110:V112) -> 0 | W109: =SUM(W110:W112) -> 0 | AD109: 0 | AF109: 0 | AG109: 0
B110: AJUSTEMENT MAIN D'ŒUVRE | D110: M3 | E110: 0 | H110: =SUM(E110:G110) -> 0 | J110: =+H110*K110/100 -> 0 | K110: 0 | L110: =Q110+AF110 -> 0 | M110: =J110-L110 -> 0 | O110: =J110-AD110 -> 0 | R110: =O110-Q110 -> 0 | T110: 0 | V110: =+L110+T110 -> 0 | W110: =H110-V110 -> 0 | AD110: 0 | AE110: 0 | AF110: 0 | AG110: 0
B111: AJUSTEMENT MAIN D'ŒUVRE | D111: M3 | E111: 0 | H111: =SUM(E111:G111) -> 0 | J111: 0 | K111: 0 | L111: =Q111+AF111 -> 0 | M111: =J111-L111 -> 0 | O111: =J111-AD111 -> 0 | R111: =O111-Q111 -> 0 | T111: 0 | V111: 0 | W111: =H111-V111 -> 0 | AD111: 0 | AE111: 0 | AF111: 0 | AG111: 0
B112: AJOUT ACIER CONSOLE | D112: M3 | E112: 0 | H112: =SUM(E112:G112) -> 0 | J112: 0 | K112: 0 | L112: =Q112+AF112 -> 0 | M112: =J112-L112 -> 0 | O112: =J112-AD112 -> 0 | R112: =O112-Q112 -> 0 | T112: 0 | V112: 0 | W112: =H112-V112 -> 0 | AD112: 0 | AE112: 0 | AF112: 0 | AG112: 0
A119: Code OTP | B119: INDIRECTS | D119: M3 | E119: =SUM(E120:E123) -> 0 | F119: =SUM(F120:F123) -> 0 | G119: 0 | H119: 0 | J119: 0 | K119: =IFERROR(J119/H119,"") ->  | L119: =SUM(L120:L123) -> 100.306 | M119: =SUM(M120:M123) -> -100.306 | O119: 0 | P119: =IFERROR(O119/H119,"") ->  | Q119: =SUM(Q120:Q123) -> 0 | R119: =SUM(R120:R123) -> 0 | T119: =SUM(T120:T124) -> 0 | V119: =SUM(V120:V123) -> 0 | W119: 0 | AD119: 0 | AF119: 100.306 | AG119: -100.306
A120: MATX.400220.IN.IC.02 | B120: INSTALLATION CHANTIER | D120: M3 | E120: 0 | H120: =SUM(E120:G120) -> 0 | J120: =H120*K120/100 -> 0 | K120: 0 | L120: =Q120+AF120 -> 23.88 | M120: =J120-L120 -> -23.88 | O120: =J120-AD120 -> 0 | R120: =O120-Q120 -> 0 | AD120: 0 | AE120: 0 | AF120: 23.88 | AG120: -23.88
A121: MATX.400220.IN.IC.01 | B121: MONTAGE DE GRUES | D121: M3 | E121: 0 | H121: 0 | J121: 0 | K121: 0 | L121: 0 | M121: 0 | O121: 0 | R121: 0 | AD121: 0 | AE121: 0 | AF121: 0 | AG121: 0
A122: MATX.400220.IN.IC.02 | B122: POSE DES CHAISES | D122: M3 | E122: 0 | H122: 0 | J122: 0 | K122: 0 | L122: 2 | M122: -2 | O122: 0 | R122: 0 | AD122: 0 | AE122: 0 | AF122: 2 | AG122: -2
A123: MATX.400220.PP.AM.25 | B123: RESEAUX SOUS DALLAGE | D123: M3 | E123: 0 | H123: 0 | J123: 0 | K123: 0 | L123: 74.426 | M123: -74.426 | O123: 0 | R123: 0 | AD123: 0 | AE123: 0 | AF123: 74.426 | AG123: -74.426

Sheet ACIER Qte
A3: BILAN ACIER
B5: P.U. | E5: 7150 | F5: 7150 | G5: 7150 | H5: 7150 | J5: =H5 -> 7150 | L5: =IFERROR(L6/(L11+L67),"") -> 22929.446 | M5: =IFERROR(J5-L5,"") -> -15779.446 | O5: =H5 -> 7150 | Q5: =IFERROR(Q6/(Q11+Q67),"") ->  | R5: =IFERROR(O5-Q5,"") ->  | T5: =H5 -> 7150 | V5: =IFERROR(V6/(V11+V67),"") -> 9674.822899 | W5: =IFERROR(H5-V5,"") -> -2524.822899 | AD5: 7150 | AF5: 22929.446 | AG5: -15779.446
B6: MONTANT | E6: =IFERROR(E5*(E11+E67),"") -> 22502671.49 | F6: =IFERROR(F5*(F11+F67),"") -> 0 | G6: =IFERROR(G5*(G11+G67),"") -> 0 | H6: =IFERROR(H5*(H11+H67),"") -> 22502671.49 | J6: =IFERROR(J5*(J11+J67),"") -> 3520734.932 | L6: =IFERROR(Q6+AF6,"") -> 10946036 | M6: =IFERROR(J6-L6,"") -> -7425301.068 | O6: =IFERROR(O5*(O11+O67),"") -> 0 | R6: =IFERROR(O6-Q6,"") -> 0 | T6: =IFERROR(T5*(T11+T67),"") -> 17918671.79 | V6: =IFERROR(L6+T6,"") -> 28864707.79 | W6: =IFERROR(H6-V6,"") -> -6362036.297 | AD6: 3520734.932 | AF6: 10946036 | AG6: -7425301.068
J7: xxxxxxx | K7: xxxxxxx | P7: xxxxxxx | AD7: xxxxxxx | AE7: xxxxxxx
E8: BUDG. Réf. | F8: Trsf. +/- | G8: TS | H8: BUDG. Réf. | J8: CUMUL A FIN MARS-2017 | O8: MOIS DE MARS-2017 | T8: RAD | V8: CUMUL FDC | AD8: CUMUL A FIN FÉVRIER-2017
A9: Code OTP | B9: Description OTP | C9: . | D9: Unité | E9: Qté | F9: Qté | G9: Qté | H9: Qté | I9: . | J9: Budget Avancé | L9: Dépenses | M9: Ecart | N9: . | O9: Budget Avancé | Q9: Dépenses | R9: Ecart | S9: . | T9: Qtés | U9: . | V9: Dépenses | W9: Ecarts | AD9: Budget Avancé | AF9: Dépenses | AG9: Ecart
D10: Res. | J10: Qté | K10: % | L10: Qté | M10: Qté | O10: Qté | P10: % | Q10: Qté | R10: Qté | V10: Qté | W10: Qté | AD10: Qté | AE10: % | AF10: Qté | AG10: Qté
B11: PART PROPRE | D11: T | E11: =E12+E24+E35+E38+E41+E57 -> 1756.261149 | F11: =F12+F24+F35+F38+F41+F57 -> 0 | G11: =G12+G24+G35+G38+G41+G57 -> 0 | H11: =H12+H24+H35+H38+H41+H57 -> 1756.261149 | J11: =J12+J24+J35+J38+J41+J57 -> 6.7332 | K11: =IFERROR(J11/H11,"") -> 0.003833826196 | L11: =L12+L24+L35+L38+L41+L57 -> 162.282 | M11: =M12+M24+M35+M38+M41+M57 -> -155.5488 | O11: =O12+O24+O35+O38+O41+O57 -> 0 | P11: =IFERROR(O11/H11,"") -> 0 | Q11: =Q12+Q24+Q35+Q38+Q41+Q57 -> 0 | R11: =R12+R24+R35+R38+R41+R57 -> 0 | T11: =T12+T24+T35+T38+T41+T57 -> 1379.385042 | V11: =V12+V24+V35+V38+V41+V57 -> 1541.667042 | W11: =W12+W24+W35+W38+W41+W57 -> 214.594107 | AD11: 6.7332 | AE11: 0.006813178893 | AF11: 162.282 | AG11: -155.5488
A12: MATX.400220.PP.DS.1.1 | B12: FONDATION - GH4 | D12: T | E12: =SUM(E13:E23) -> 943.0354 | F12: =SUM(F13:F23) -> 0 | G12: =SUM(G13:G23) -> 0 | H12: =SUM(H13:H23) -> 943.0354 | J12: =SUM(J13:J23) -> 6.7332 | K12: =IFERROR(J12/H12,"") -> 0.007139922849 | L12: =SUM(L13:L23) -> 151.938 | M12: =SUM(M13:M23) -> -145.2048 | O12: =SUM(O13:O23) -> 0 | P12: =IFERROR(O12/H12,"") -> 0 | Q12: =SUM(Q13:Q23) -> 0 | R12: =SUM(R13:R23) -> 0 | T12: =SUM(T13:T23) -> 87.29868005 | V12: =SUM(V13:V23) -> 239.23668 | W12: =SUM(W13:W23) -> 703.79872 | AD12: 6.7332 | AE12: 0.03846764712 | AF12: 151.938 | AG12: -145.2048
B13: BETON DE PROPRETE | D13: T | E13: 0 | H13: =SUM(E13:G13) -> 0 | J13: =H13*K13/100 -> 0 | K13: ='BETON Qte'!K13 -> 71 | L13: =Q13+AF13 -> 0 | M13: =J13-L13 -> 0 | O13: =J13-AD13 -> 0 | R13: =O13-Q13 -> 0 | T13: 0 | V13: =L13+T13 -> 0 | W13: =H13-V13 -> 0 | AD13: 0 | AE13: 71 | AF13: 0 | AG13: 0
B14: GROS BETON | D14: T | E14: 0 | H14: =SUM(E14:G14) -> 0 | J14: =H14*K14/100 -> 0 | K14: ='BETON Qte'!K14 -> 67 | L14: =Q14+AF14 -> 0 | M14: =J14-L14 -> 0 | O14: =J14-AD14 -> 0 | R14: =O14-Q14 -> 0 | T14: 0 | V14: =L14+T14 -> 0 | W14: =H14-V14 -> 0 | AD14: 0 | AE14: 67 | AF14: 0 | AG14: 0
B15: BETON CYCLOPEEN POUR MARMITES | D15: T | E15: 768 | H15: 768 | J15: 0 | K15: ='BETON Qte'!K15 -> 0 | L15: 0 | M15: 0 | O15: 0 | P15: 0 | R15: 0 | T15: 0 | V15: 0 | W15: 768 | AD15: 0 | AE15: 0 | AF15: 0 | AG15: 0
B16: SEMELLES ISOLEES | D16: T | E16: 0 | H16: 0 | J16: 0 | K16: ='BETON Qte'!K16 -> 49 | L16: 0.6 | M16: -0.6 | O16: 0 | R16: 0 | T16: 0.6298684 | V16: 1.2298684 | W16: -1.2298684 | AD16: 0 | AE16: 49 | AF16: 0.6 | AG16: -0.6
B17: SEMELLES FILANTES | D17: T | E17: 0 | H17: 0 | J17: 0 | K17: ='BETON Qte'!K17 -> 79 | L17: 12.343 | M17: -12.343 | O17: 0 | R17: 0 | T17: 3.7100625 | V17: 16.0530625 | W17: -16.0530625 | AD17: 0 | AE17: 79 | AF17: 12.343 | AG17: -12.343
B18: LONGRINES | D18: T | E18: 0 | H18: 0 | J18: 0 | K18: ='BETON Qte'!K18 -> 62 | L18: 28.322 | M18: -28.322 | O18: 0 | R18: 0 | T18: 18.41427 | V18: 46.73627 | W18: -46.73627 | AD18: 0 | AE18: 62 | AF18: 28.322 | AG18: -28.322
B19: AMORCE DE POTEAUX | D19: T | E19: 0 | H19: 0 | J19: 0 | K19: ='BETON Qte'!K19 -> 80 | L19: 13.9 | M19: -13.9 | O19: 0 | R19: 0 | T19: 4.324064578 | V19: 18.22406458 | W19: -18.22406458 | AD19: 0 | AE19: 80 | AF19: 13.9 | AG19: -13.9
B20: AMORCE DE VOILE | D20: T | E20: 0 | H20: 0 | J20: 0 | K20: ='BETON Qte'!K20 -> 58 | L20: 13.925 | M20: -13.925 | O20: 0 | R20: 0 | T20: 12.5201804 | V20: 26.4451804 | W20: -26.4451804 | AD20: 0 | AE20: 58 | AF20: 13.925 | AG20: -13.925
B21: DALLAGE (ep 15cm 35kg/m3) | D21: T | E21: 8.82 | H21: 8.82 | J21: 2.2932 | K21: ='BETON Qte'!K21 -> 26 | L21: 4.687 | M21: -2.3938 | O21: 0 | P21: 0 | R21: 0 | T21: 14.40257417 | V21: 19.08957417 | W21: -10.26957417 | AD21: 2.2932 | AE21: 26 | AF21: 4.687 | AG21: -2.3938
B22: RADIER RAMPE | D22: T | E22: 5.92 | H22: 5.92 | J22: 4.44 | K22: ='BETON Qte'!K22 -> 75 | L22: 78.161 | M22: -73.721 | O22: 0 | P22: 0 | R22: 0 | T22: 33.29766 | V22: 111.45866 | W22: -105.53866 | AD22: 4.44 | AE22: 75 | AF22: 78.161 | AG22: -73.721
B23: ACIER FONDATIONS ANNEXE 12 | D23: T | E23: 160.2954 | H23: 160.2954 | J23: 0 | K23: ='BETON Qte'!K23 -> 0 | L23: 0 | M23: 0 | O23: 0 | P23: 0 | R23: 0 | T23: 0 | V23: 0 | W23: 160.2954 | AD23: 0 | AE23: 0 | AF23: 0 | AG23: 0
A24: MATX.400220.PP.DS.1.2 | B24: SUPERSTRUCTURE - GH4 | D24: T | E24: =SUM(E25:E34) -> 762.78396 | F24: =SUM(F25:F34) -> 0 | G24: =SUM(G25:G34) -> 0 | H24: =SUM(H25:H34) -> 762.78396 | J24: =SUM(J25:J34) -> 0 | K24: =IFERROR(J24/H24,"") -> 0 | L24: =SUM(L25:L34) -> 10.344 | M24: =SUM(M25:M34) -> -10.344 | O24: =SUM(O25:O34) -> 0 | P24: 0 | Q24: =SUM(Q25:Q34) -> 0 | R24: =SUM(R25:R34) -> 0 | T24: =SUM(T25:T34) -> 1241.644573 | V24: =SUM(V25:V34) -> 1251.988573 | W24: =SUM(W25:W34) -> -489.204613 | AD24: 0 | AE24: 0 | AF24: 10.344 | AG24: -10.344
B25: POTEAUX | D25: T | E25: 0 | H25: =SUM(E25:G25) -> 0 | J25: =H25*K25/100 -> 0 | K25: ='BETON Qte'!K25 -> 1 | L25: =Q25+AF25 -> 0.2 | M25: =J25-L25 -> -0.2 | O25: =J25-AD25 -> 0 | R25: =O25-Q25 -> 0 | T25: 67.31606632 | V25: =L25+T25 -> 67.51606632 | W25: =H25-V25 -> -67.51606632 | AD25: 0 | AE25: 1 | AF25: 0.2 | AG25: -0.2
B26: VOILES | D26: T | E26: 0 | H26: 0 | J26: 0 | K26: ='BETON Qte'!K26 -> 3 | L26: 10.144 | M26: -10.144 | O26: 0 | R26: 0 | T26: 411.5445466 | V26: 421.6885466 | W26: -421.6885466 | AD26: 0 | AE26: 3 | AF26: 10.144 | AG26: -10.144
B27: ACROTETES ET RELEVES DE BALCONS EN BA | D27: T | E27: 0 | H27: 0 | J27: 0 | K27: ='BETON Qte'!K27 -> 0 | L27: 0 | M27: 0 | O27: 0 | R27: 0 | T27: 0 | V27: 0 | W27: 0 | AD27: 0 | AE27: 0 | AF27: 0 | AG27: 0
B28: POUTRES | D28: T | E28: 0 | H28: 0 | J28: 0 | K28: ='BETON Qte'!K28 -> 0 | L28: 0 | M28: 0 | O28: 0 | R28: 0 | T28: 0 | V28: 0 | W28: 0 | AD28: 0 | AE28: 0 | AF28: 0 | AG28: 0
B29: DALLES PLEINES | D29: T | E29: 731.85246 | H29: 731.85246 | J29: 0 | K29: ='BETON Qte'!K29 -> 0 | L29: 0 | M29: 0 | O29: 0 | P29: 0 | R29: 0 | T29: 731.85246 | V29: 731.85246 | W29: 0 | AD29: 0 | AE29: 0 | AF29: 0 | AG29: 0
B30: PLANCHERS POUTRELLES HOURDIS 15+5 | D30: T | E30: 6.45675 | H30: 6.45675 | J30: 0 | K30: ='BETON Qte'!K30 -> 0 | L30: 0 | M30: 0 | O30: 0 | P30: 0 | R30: 0 | T30: 6.45675 | V30: 6.45675 | W30: 0 | AD30: 0 | AE30: 0 | AF30: 0 | AG30: 0
B31: PLANCHERS POUTRELLES HOURDIS 20+5 | D31: T | E31: 3.26775 | H31: 3.26775 | J31: 0 | K31: ='BETON Qte'!K31 -> 0 | L31: 0 | M31: 0 | O31: 0 | P31: 0 | R31: 0 | T31: 3.26775 | V31: 3.26775 | W31: 0 | AD31: 0 | AE31: 0 | AF31: 0 | AG31: 0
B32: PLANCHERS POUTRELLES HOURDIS 25+5 | D32: T | E32: 2.412 | H32: 2.412 | J32: 0 | K32: ='BETON Qte'!K32 -> 0 | L32: 0 | M32: 0 | O32: 0 | P32: 0 | R32: 0 | T32: 2.412 | V32: 2.412 | W32: 0 | AD32: 0 | AE32: 0 | AF32: 0 | AG32: 0
B33: ARMATURES SUPER | D33: T | E33: 0 | H33: 0 | J33: 0 | K33: ='BETON Qte'!K33 -> 0 | L33: 0 | M33: 0 | O33: 0 | R33: 0 | T33: 0 | V33: 0 | W33: 0 | AD33: 0 | AE33: 0 | AF33: 0 | AG33: 0
B34: INCIDENCE UTILISATION CP SUR LA STRUCTURE | D34: T | E34: 18.795 | H34: 18.795 | J34: 0 | K34: ='BETON Qte'!K34 -> 0 | L34: 0 | M34: 0 | O34: 0 | P34: 0 | R34: 0 | T34: 18.795 | V34: 18.795 | W34: 0 | AD34: 0 | AE34: 0 | AF34: 0 | AG34: 0
A35: MATX.400220.PP.DS.1.3 | B35: MACONNERIE & ENDUIT INFRA + SUPER - GH4 | D35: T | E35: =SUM(E36:E37) -> 5.51016 | F35: =SUM(F36:F37) -> 0 | G35: =SUM(G36:G37) -> 0 | H35: =SUM(H36:H37) -> 5.51016 | J35: =SUM(J36:J37) -> 0 | K35: =IFERROR(J35/H35,"") -> 0 | L35: =SUM(L36:L37) -> 0 | M35: =SUM(M36:M37) -> 0 | O35: =SUM(O36:O37) -> 0 | P35: 0 | Q35: =SUM(Q36:Q37) -> 0 | R35: =SUM(R36:R37) -> 0 | T35: =SUM(T36:T37) -> 5.51016 | V35: =SUM(V36:V37) -> 5.51016 | W35: =SUM(W36:W37) -> 0 | AD35: 0 | AE35: 0 | AF35: 0 | AG35: 0
B36: RAIDISSEURS VERTICAUX DANS MACONNERIE | D36: T | E36: 4.63721 | H36: =SUM(E36:G36) -> 4.63721 | J36: =H36*K36/100 -> 0 | K36: ='BETON Qte'!K36 -> 0 | L36: =Q36+AF36 -> 0 | M36: =J36-L36 -> 0 | O36: =J36-AD36 -> 0 | P36: 0 | R36: =O36-Q36 -> 0 | T36: 4.63721 | V36: =L36+T36 -> 4.63721 | W36: =H36-V36 -> 0 | AD36: 0 | AE36: 0 | AF36: 0 | AG36: 0
B37: LINTEAUX BA & PV CAISSON VR | D37: T | E37: 0.87295 | H37: 0.87295 | J37: 0 | K37: ='BETON Qte'!K37 -> 0 | L37: 0 | M37: 0 | O37: 0 | P37: 0 | R37: 0 | T37: 0.87295 | V37: 0.87295 | W37: 0 | AD37: 0 | AE37: 0 | AF37: 0 | AG37: 0
A38: MATX.400220.PP.DS.1.4 | B38: ESCALIERS - GH4 | D38: T | E38: =SUM(E39:E40) -> 0 | F38: =SUM(F39:F40) -> 0 | G38: =SUM(G39:G40) -> 0 | H38: =SUM(H39:H40) -> 0 | J38: =SUM(J39:J40) -> 0 | K38: =IFERROR(J38/H38,"") ->  | L38: =SUM(L39:L40) -> 0 | M38: =SUM(M39:M40) -> 0 | O38: =SUM(O39:O40) -> 0 | Q38: =SUM(Q39:Q40) -> 0 | R38: =SUM(R39:R40) -> 0 | T38: =SUM(T39:T40) -> 0 | V38: =SUM(V39:V40) -> 0 | W38: =SUM(W39:W40) -> 0 | AD38: 0 | AF38: 0 | AG38: 0
B39: ESCALIER 1/2 TOURNANT | D39: T | E39: 0 | H39: =SUM(E39:G39) -> 0 | J39: =H39*K39/100 -> 0 | K39: ='BETON Qte'!K39 -> 0 | L39: =Q39+AF39 -> 0 | M39: =J39-L39 -> 0 | O39: =J39-AD39 -> 0 | R39: =O39-Q39 -> 0 | T39: 0 | V39: =L39+T39 -> 0 | W39: =H39-V39 -> 0 | AD39: 0 | AE39: 0 | AF39: 0 | AG39: 0
B40: ESCALIER HELICOIDAL SECOURS | D40: T | E40: 0 | H40: =SUM(E40:G40) -> 0 | J40: =H40*K40/100 -> 0 | K40: ='BETON Qte'!K40 -> 0 | L40: =Q40+AF40 -> 0 | M40: =J40-L40 -> 0 | O40: =J40-AD40 -> 0 | R40: =O40-Q40 -> 0 | T40: 0 | V40: 0 | W40: 0 | AD40: 0 | AE40: 0 | AF40: 0 | AG40: 0
A41: MATX.400220.PP.DS.1.5 | B41: OUVRAGES DIVERS - GH4 | D41: T | E41: =SUM(E42:E56) -> 10.6985 | F41: =SUM(F42:F56) -> 0 | G41: =SUM(G42:G56) -> 0 | H41: =SUM(H42:H56) -> 10.6985 | J41: =SUM(J42:J56) -> 0 | K41: =IFERROR(J41/H41,"") -> 0 | L41: =SUM(L42:L56) -> 0 | M41: =SUM(M42:M56) -> 0 | O41: =SUM(O42:O56) -> 0 | P41: 0 | Q41: =SUM(Q42:Q56) -> 0 | R41: =SUM(R42:R56) -> 0 | T41: =SUM(T42:T56) -> 10.6985 | V41: =SUM(V42:V56) -> 10.6985 | W41: =SUM(W42:W56) -> 0 | AD41: 0 | AE41: 0 | AF41: 0 | AG41: 0
B42: APPUIS DE FENETRES | D42: T | E42: 0.8265 | H42: =SUM(E42:G42) -> 0.8265 | J42: =H42*K42/100 -> 0 | K42: ='BETON Qte'!K42 -> 0 | L42: =Q42+AF42 -> 0 | M42: =J42-L42 -> 0 | O42: =J42-AD42 -> 0 | P42: 0 | R42: =O42-Q42 -> 0 | T42: 0.8265 | V42: =L42+T42 -> 0.8265 | W42: =H42-V42 -> 0 | AD42: 0 | AE42: 0 | AF42: 0 | AG42: 0
B43: POSE ET SCELLEMENT DE CADRES ET FX CADRES | D43: T | E43: 0 | H43: 0 | J43: 0 | K43: ='BETON Qte'!K43 -> 0 | L43: 0 | M43: 0 | O43: 0 | R43: 0 | T43: 0 | V43: 0 | W43: 0 | AD43: 0 | AE43: 0 | AF43: 0 | AG43: 0
B44: POSE ET SCELLEMENT DE GC | D44: T | E44: 0 | H44: 0 | J44: 0 | K44: ='BETON Qte'!K44 -> 0 | L44: 0 | M44: 0 | O44: 0 | R44: 0 | T44: 0 | V44: 0 | W44: 0 | AD44: 0 | AE44: 0 | AF44: 0 | AG44: 0
B45: POSE ET SCELLEMENT DE PRECADRES / MENUISERIE | D45: T | E45: 0 | H45: 0 | J45: 0 | K45: ='BETON Qte'!K45 -> 0 | L45: 0 | M45: 0 | O45: 0 | R45: 0 | T45: 0 | V45: 0 | W45: 0 | AD45: 0 | AE45: 0 | AF45: 0 | AG45: 0
B46: SCELLEMENT RECEVEURS DE DOUCHE | D46: T | E46: 0 | H46: 0 | J46: 0 | K46: ='BETON Qte'!K46 -> 0 | L46: 0 | M46: 0 | O46: 0 | R46: 0 | T46: 0 | V46: 0 | W46: 0 | AD46: 0 | AE46: 0 | AF46: 0 | AG46: 0
B47: SOCLE PARABOLE | D47: T | E47: 0.12 | H47: 0.12 | J47: 0 | K47: ='BETON Qte'!K47 -> 0 | L47: 0 | M47: 0 | O47: 0 | P47: 0 | R47: 0 | T47: 0.12 | V47: 0.12 | W47: 0 | AD47: 0 | AE47: 0 | AF47: 0 | AG47: 0
B48: SOCLE TERRASSE | D48: T | E48: 3.15 | H48: 3.15 | J48: 0 | K48: ='BETON Qte'!K48 -> 0 | L48: 0 | M48: 0 | O48: 0 | P48: 0 | R48: 0 | T48: 3.15 | V48: 3.15 | W48: 0 | AD48: 0 | AE48: 0 | AF48: 0 | AG48: 0
B49: SOUCHES TERRASSES | D49: T | E49: 0.825 | H49: 0.825 | J49: 0 | K49: ='BETON Qte'!K49 -> 0 | L49: 0 | M49: 0 | O49: 0 | P49: 0 | R49: 0 | T49: 0.825 | V49: 0.825 | W49: 0 | AD49: 0 | AE49: 0 | AF49: 0 | AG49: 0
B50: TRAITEMENT DES JD | D50: T | E50: 0 | H50: 0 | J50: 0 | K50: ='BETON Qte'!K50 -> 0 | L50: 0 | M50: 0 | O50: 0 | R50: 0 | T50: 0 | V50: 0 | W50: 0 | AD50: 0 | AE50: 0 | AF50: 0 | AG50: 0
B51: PEMPLISSAGE JD PAR POLYSTYRENNE | D51: T | E51: 0 | H51: 0 | J51: 0 | K51: ='BETON Qte'!K51 -> 0 | L51: 0 | M51: 0 | O51: 0 | R51: 0 | T51: 0 | V51: 0 | W51: 0 | AD51: 0 | AE51: 0 | AF51: 0 | AG51: 0
B52: DALETTES EN BETON | D52: T | E52: 3.312 | H52: 3.312 | J52: 0 | K52: ='BETON Qte'!K52 -> 0 | L52: 0 | M52: 0 | O52: 0 | P52: 0 | R52: 0 | T52: 3.312 | V52: 3.312 | W52: 0 | AD52: 0 | AE52: 0 | AF52: 0 | AG52: 0
B53: TROUS DE SCELLEMENT & CALFEUTREMENT | D53: T | E53: 0 | H53: 0 | J53: 0 | K53: ='BETON Qte'!K53 -> 0 | L53: 0 | M53: 0 | O53: 0 | R53: 0 | T53: 0 | V53: 0 | W53: 0 | AD53: 0 | AE53: 0 | AF53: 0 | AG53: 0
B54: AMENAGEMENT DES LOCAUX TECHNIQUES | D54: T | E54: 0 | H54: 0 | J54: 0 | K54: ='BETON Qte'!K54 -> 0 | L54: 0 | M54: 0 | O54: 0 | R54: 0 | T54: 0 | V54: 0 | W54: 0 | AD54: 0 | AE54: 0 | AF54: 0 | AG54: 0
B55: COURS ANGLAISES VENTILLATION PARKING | D55: T | E55: 2.465 | H55: 2.465 | J55: 0 | K55: ='BETON Qte'!K55 -> 0 | L55: 0 | M55: 0 | O55: 0 | P55: 0 | R55: 0 | T55: 2.465 | V55: 2.465 | W55: 0 | AD55: 0 | AE55: 0 | AF55: 0 | AG55: 0
B56: BAC A SABLE | D56: T | E56: 0 | H56: 0 | J56: 0 | K56: ='BETON Qte'!K56 -> 0 | L56: 0 | M56: 0 | O56: 0 | R56: 0 | T56: 0 | V56: 0 | W56: 0 | AD56: 0 | AE56: 0 | AF56: 0 | AG56: 0
A57: MATX.400220.PP.DS.1.6 | B57: MACONNERIE & ENDUIT TERRASSE - GH4 | D57: T | E57: =SUM(E58:E60) -> 34.23312883 | F57: =SUM(F58:F60) -> 0 | G57: =SUM(G58:G60) -> 0 | H57: =SUM(H58:H60) -> 34.23312883 | J57: =SUM(J58:J60) -> 0 | K57: =IFERROR(J57/H57,"") -> 0 | L57: =SUM(L58:L60) -> 0 | M57: =SUM(M58:M60) -> 0 | O57: =SUM(O58:O60) -> 0 | P57: 0 | Q57: =SUM(Q58:Q60) -> 0 | R57: =SUM(R58:R60) -> 0 | T57: =SUM(T58:T60) -> 34.23312883 | V57: =SUM(V58:V60) -> 34.23312883 | W57: =SUM(W58:W60) -> 0 | AD57: 0 | AE57: 0 | AF57: 0 | AG57: 0
B58: AJUSTEMENT MAIN D'ŒUVRE | D58: T | E58: 0 | H58: =SUM(E58:G58) -> 0 | J58: =H58*K58/100 -> 0 | K58: ='BETON Qte'!K58 -> 0 | L58: =Q58+AF58 -> 0 | M58: =J58-L58 -> 0 | O58: =J58-AD58 -> 0 | R58: =O58-Q58 -> 0 | T58: 0 | V58: =L58+T58 -> 0 | W58: =H58-V58 -> 0 | AD58: 0 | AE58: 0 | AF58: 0 | AG58: 0
B59: AJUSTEMENT MAIN D'ŒUVRE | D59: T | E59: 0 | H59: =SUM(E59:G59) -> 0 | J59: =H59*K59/100 -> 0 | K59: ='BETON Qte'!K59 -> 0 | L59: =Q59+AF59 -> 0 | M59: =J59-L59 -> 0 | O59: =J59-AD59 -> 0 | R59: =O59-Q59 -> 0 | T59: 0 | V59: 0 | W59: 0 | AD59: 0 | AE59: 0 | AF59: 0 | AG59: 0
B60: AJOUT ACIER CONSOLE | D60: T | E60: 34.23312883 | H60: 34.23312883 | J60: 0 | K60: ='BETON Qte'!K60 -> 0 | L60: 0 | M60: 0 | O60: 0 | P60: 0 | R60: 0 | T60: 34.23312883 | V60: 34.23312883 | W60: 0 | AD60: 0 | AE60: 0 | AF60: 0 | AG60: 0
J66: xxxxxxx | K66: xxxxxxx | P66: xxxxxxx | AD66: xxxxxxx | AE66: xxxxxxx
B67: PART PROPRE | D67: T | E67: =E68+E79+E87+E90+E93+E109 -> 1390.965633 | F67: =F68+F79+F87+F90+F93+F109 -> 0 | G67: =G68+G79+G87+G90+G93+G109 -> 0 | H67: =H68+H79+H87+H90+H93+H109 -> 1390.965633 | J67: =J68+J79+J87+J90+J93+J109 -> 485.67728 | K67: =IFERROR(J67/H67,"") -> 0.3491655497 | L67: =L68+L79+L87+L90+L93+L109 -> 315.097 | M67: =M68+M79+M87+M90+M93+M109 -> 170.58028 | O67: =O68+O79+O87+O90+O93+O109 -> 0 | P67: =IFERROR(O67/H67,"") -> 0 | Q67: =Q68+Q79+Q87+Q90+Q93+Q109 -> 0 | R67: =R68+R79+R87+R90+R93+R109 -> 0 | T67: =T68+T79+T87+T90+T93+T109 -> 1126.722901 | V67: =V68+V79+V87+V90+V93+V109 -> 1441.819901 | W67: =W68+W79+W87+W90+W93+W109 -> -50.85426743 | AD67: 485.67728 | AE67: 0.3491655497 | AF67: 315.097 | AG67: 170.58028
A68: MATX.400220.PP.DS.2.1 | B68: FONDATION - GH5 | D68: T | E68: =SUM(E69:E78) -> 415.832 | F68: =SUM(F69:F78) -> 0 | G68: =SUM(G69:G78) -> 0 | H68: =SUM(H69:H78) -> 415.832 | J68: =SUM(J69:J78) -> 415.39016 | K68: =IFERROR(J68/H68,"") -> 0.9989374555 | L68: =SUM(L69:L78) -> 191.465 | M68: =SUM(M69:M78) -> 223.92516 | O68: =SUM(O69:O78) -> 0 | P68: 0 | Q68: =SUM(Q69:Q78) -> 0 | R68: =SUM(R69:R78) -> 0 | T68: =SUM(T69:T78) -> 12.3788071 | V68: =SUM(V69:V78) -> 203.8438071 | W68: =SUM(W69:W78) -> 211.9881929 | AD68: 415.39016 | AE68: 0.9989374555 | AF68: 191.465 | AG68: 223.92516
B69: BETON DE PROPRETE | D69: T | E69: 0 | H69: =SUM(E69:G69) -> 0 | J69: =H69*K69/100 -> 0 | K69: ='BETON Qte'!K69 -> 97 | L69: =Q69+AF69 -> 0 | M69: =J69-L69 -> 0 | O69: =J69-AD69 -> 0 | R69: =O69-Q69 -> 0 | T69: 0 | V69: =L69+T69 -> 0 | W69: =H69-V69 -> 0 | AD69: 0 | AE69: 97 | AF69: 0 | AG69: 0
B70: GROS BETON | D70: T | E70: 0 | H70: =SUM(E70:G70) -> 0 | J70: =H70*K70/100 -> 0 | K70: ='BETON Qte'!K70 -> 100 | L70: =Q70+AF70 -> 0 | M70: =J70-L70 -> 0 | O70: =J70-AD70 -> 0 | R70: =O70-Q70 -> 0 | T70: 0 | V70: =L70+T70 -> 0 | W70: =H70-V70 -> 0 | AD70: 0 | AE70: 100 | AF70: 0 | AG70: 0
B71: BETON CYCLOPEEN POUR MARMITES | D71: T | H71: 0 | J71: 0 | K71: ='BETON Qte'!K71 -> 0 | L71: 0 | M71: 0 | O71: 0 | R71: 0 | T71: 0 | V71: 0 | W71: 0 | AD71: 0 | AE71: 0 | AF71: 0 | AG71: 0
B72: SEMELLES ISOLEES | D72: T | E72: 0 | H72: 0 | J72: 0 | K72: ='BETON Qte'!K72 -> 90 | L72: 0 | M72: 0 | O72: 0 | R72: 0 | T72: 0.1624 | V72: 0.1624 | W72: -0.1624 | AD72: 0 | AE72: 90 | AF72: 0 | AG72: 0
B73: SEMELLES FILANTES | D73: T | E73: 0 | H73: 0 | J73: 0 | K73: ='BETON Qte'!K73 -> 97 | L73: 42.684 | M73: -42.684 | O73: 0 | R73: 0 | T73: 1.16466 | V73: 43.84866 | W73: -43.84866 | AD73: 0 | AE73: 97 | AF73: 42.684 | AG73: -42.684
B74: LONGRINES | D74: T | E74: 0 | H74: 0 | J74: 0 | K74: ='BETON Qte'!K74 -> 98 | L74: 17.254 | M74: -17.254 | O74: 0 | R74: 0 | T74: 0.4346055 | V74: 17.6886055 | W74: -17.6886055 | AD74: 0 | AE74: 98 | AF74: 17.254 | AG74: -17.254
B75: AMORCE DE POTEAUX | D75: T | E75: 0 | H75: 0 | J75: 0 | K75: ='BETON Qte'!K75 -> 80 | L75: 16.486 | M75: -16.486 | O75: 0 | R75: 0 | T75: 4.347701233 | V75: 20.83370123 | W75: -20.83370123 | AD75: 0 | AE75: 80 | AF75: 16.486 | AG75: -16.486
B76: AMORCE DE VOILE | D76: T | E76: 0 | H76: 0 | J76: 0 | K76: ='BETON Qte'!K76 -> 85 | L76: 31.373 | M76: -31.373 | O76: 0 | R76: 0 | T76: 5.6413344 | V76: 37.0143344 | W76: -37.0143344 | AD76: 0 | AE76: 85 | AF76: 31.373 | AG76: -31.373
B77: DALLAGE (ep 15cm 35kg/m3) | D77: T | E77: 22.092 | H77: 22.092 | J77: 21.65016 | K77: ='BETON Qte'!K77 -> 98 | L77: 14.64 | M77: 7.01016 | O77: 0 | P77: 0 | R77: 0 | T77: 0.6281059649 | V77: 15.26810596 | W77: 6.823894035 | AD77: 21.65016 | AE77: 98 | AF77: 14.64 | AG77: 7.01016
B78: ACIER FONDATIONS ANNEXE 12 | D78: T | E78: 393.74 | H78: 393.74 | J78: 393.74 | K78: ='BETON Qte'!K78 -> 100 | L78: 69.028 | M78: 324.712 | O78: 0 | P78: 0 | R78: 0 | T78: 0 | V78: 69.028 | W78: 324.712 | AD78: 393.74 | AE78: 100 | AF78: 69.028 | AG78: 324.712
A79: MATX.400220.PP.DS.2.2 | B79: SUPERSTRUCTURE - GH5 | D79: T | E79: =SUM(E80:E86) -> 914.211 | F79: =SUM(F80:F86) -> 0 | G79: =SUM(G80:G86) -> 0 | H79: =SUM(H80:H86) -> 914.211 | J79: =SUM(J80:J86) -> 70.28712 | K79: =IFERROR(J79/H79,"") -> 0.07688282027 | L79: =SUM(L80:L86) -> 123.632 | M79: =SUM(M80:M86) -> -53.34488 | O79: =SUM(O80:O86) -> 0 | P79: 0 | Q79: =SUM(Q80:Q86) -> 0 | R79: =SUM(R80:R86) -> 0 | T79: =SUM(T80:T86) -> 1053.42146 | V79: =SUM(V80:V86) -> 1177.05346 | W79: =SUM(W80:W86) -> -262.8424603 | AD79: 70.28712 | AE79: 0.07688282027 | AF79: 123.632 | AG79: -53.34488
B80: POTEAUX | D80: T | E80: 0 | H80: =SUM(E80:G80) -> 0 | J80: =H80*K80/100 -> 0 | K80: ='BETON Qte'!K80 -> 12 | L80: =Q80+AF80 -> 16.738 | M80: =J80-L80 -> -16.738 | O80: =J80-AD80 -> 0 | R80: =O80-Q80 -> 0 | T80: 123.0119052 | V80: =L80+T80 -> 139.7499052 | W80: =H80-V80 -> -139.7499052 | AD80: 0 | AE80: 12 | AF80: 16.738 | AG80: -16.738
B81: VOILES | D81: T | E81: 0 | H81: 0 | J81: 0 | K81: ='BETON Qte'!K81 -> 18 | L81: 65.609 | M81: -65.609 | O81: 0 | R81: 0 | T81: 344.7875551 | V81: 410.3965551 | W81: -410.3965551 | AD81: 0 | AE81: 18 | AF81: 65.609 | AG81: -65.609
B82: ACROTETES ET RELEVES DE BALCONS EN BA | D82: T | E82: 0 | H82: 0 | J82: 0 | K82: ='BETON Qte'!K82 -> 0 | L82: 0 | M82: 0 | O82: 0 | R82: 0 | T82: 0 | V82: 0 | W82: 0 | AD82: 0 | AE82: 0 | AF82: 0 | AG82: 0
B83: POUTRES | D83: T | E83: 0 | H83: 0 | J83: 0 | K83: ='BETON Qte'!K83 -> 0 | L83: 0 | M83: 0 | O83: 0 | R83: 0 | T83: 0 | V83: 0 | W83: 0 | AD83: 0 | AE83: 0 | AF83: 0 | AG83: 0
B84: DALLES PLEINES | D84: T | E84: 878.589 | H84: 878.589 | J84: 70.28712 | K84: ='BETON Qte'!K84 -> 8 | L84: 41.285 | M84: 29.00212 | O84: 0 | P84: 0 | R84: 0 | T84: 550 | V84: 591.285 | W84: 287.304 | AD84: 70.28712 | AE84: 8 | AF84: 41.285 | AG84: 29.00212
B85: PLANCHERS POUTRELLES HOURDIS | D85: T | E85: 12.942 | H85: 12.942 | J85: 0 | K85: ='BETON Qte'!K85 -> 0 | L85: 0 | M85: 0 | O85: 0 | P85: 0 | R85: 0 | T85: 12.942 | V85: 12.942 | W85: 0 | AD85: 0 | AE85: 0 | AF85: 0 | AG85: 0
B86: INCIDENCE UTILISATION CP SUR LA STRUCTURE | D86: T | E86: 22.68 | H86: 22.68 | J86: 0 | K86: ='BETON Qte'!K86 -> 0 | L86: 0 | M86: 0 | O86: 0 | P86: 0 | R86: 0 | T86: 22.68 | V86: 22.68 | W86: 0 | AD86: 0 | AE86: 0 | AF86: 0 | AG86: 0
A87: MATX.400220.PP.DS.2.3 | B87: MACONNERIE & ENDUIT INFRA + SUPER - GH5 | D87: T | E87: =SUM(E88:E89) -> 6.52294 | F87: =SUM(F88:F89) -> 0 | G87: =SUM(G88:G89) -> 0 | H87: =SUM(H88:H89) -> 6.52294 | J87: =SUM(J88:J89) -> 0 | K87: =IFERROR(J87/H87,"") -> 0 | L87: =SUM(L88:L89) -> 0 | M87: =SUM(M88:M89) -> 0 | O87: =SUM(O88:O89) -> 0 | P87: 0 | Q87: =SUM(Q88:Q89) -> 0 | R87: =SUM(R88:R89) -> 0 | T87: =SUM(T88:T89) -> 6.52294 | V87: =SUM(V88:V89) -> 6.52294 | W87: =SUM(W88:W89) -> 0 | AD87: 0 | AE87: 0 | AF87: 0 | AG87: 0
B88: RAIDISSEURS VERTICAUX DANS MACONNERIE | D88: T | E88: 5.48962 | H88: =SUM(E88:G88) -> 5.48962 | J88: =H88*K88/100 -> 0 | K88: ='BETON Qte'!K88 -> 0 | L88: =Q88+AF88 -> 0 | M88: =J88-L88 -> 0 | O88: =J88-AD88 -> 0 | P88: 0 | R88: =O88-Q88 -> 0 | T88: 5.48962 | V88: =L88+T88 -> 5.48962 | W88: =H88-V88 -> 0 | AD88: 0 | AE88: 0 | AF88: 0 | AG88: 0
B89: LINTEAUX BA & PV CAISSON VR | D89: T | E89: 1.03332 | H89: 1.03332 | J89: 0 | K89: ='BETON Qte'!K89 -> 0 | L89: 0 | M89: 0 | O89: 0 | P89: 0 | R89: 0 | T89: 1.03332 | V89: 1.03332 | W89: 0 | AD89: 0 | AE89: 0 | AF89: 0 | AG89: 0
A90: MATX.400220.PP.DS.2.4 | B90: ESCALIERS - GH5 | D90: T | E90: =SUM(E91:E92) -> 0 | F90: =SUM(F91:F92) -> 0 | G90: =SUM(G91:G92) -> 0 | H90: =SUM(H91:H92) -> 0 | J90: =SUM(J91:J92) -> 0 | K90: =IFERROR(J90/H90,"") ->  | L90: =SUM(L91:L92) -> 0 | M90: =SUM(M91:M92) -> 0 | O90: =SUM(O91:O92) -> 0 | Q90: =SUM(Q91:Q92) -> 0 | R90: =SUM(R91:R92) -> 0 | T90: =SUM(T91:T92) -> 0 | V90: =SUM(V91:V92) -> 0 | W90: =SUM(W91:W92) -> 0 | AD90: 0 | AF90: 0 | AG90: 0
B91: ESCALIER 1/2 TOURNANT | D91: T | E91: 0 | H91: =SUM(E91:G91) -> 0 | J91: =H91*K91/100 -> 0 | K91: ='BETON Qte'!K91 -> 0 | L91: =Q91+AF91 -> 0 | M91: =J91-L91 -> 0 | O91: =J91-AD91 -> 0 | R91: =O91-Q91 -> 0 | T91: 0 | V91: =L91+T91 -> 0 | W91: =H91-V91 -> 0 | AD91: 0 | AE91: 0 | AF91: 0 | AG91: 0
B92: ESCALIER HELICOIDAL SECOURS | D92: T | E92: 0 | H92: =SUM(E92:G92) -> 0 | J92: =H92*K92/100 -> 0 | K92: ='BETON Qte'!K92 -> 0 | L92: =Q92+AF92 -> 0 | M92: =J92-L92 -> 0 | O92: =J92-AD92 -> 0 | R92: =O92-Q92 -> 0 | T92: 0 | V92: 0 | W92: 0 | AD92: 0 | AE92: 0 | AF92: 0 | AG92: 0
A93: MATX.400220.PP.DS.2.5 | B93: OUVRAGES DIVERS - GH5 | D93: T | E93: =SUM(E94:E108) -> 13.05 | F93: =SUM(F94:F108) -> 0 | G93: =SUM(G94:G108) -> 0 | H93: =SUM(H94:H108) -> 13.05 | J93: =SUM(J94:J108) -> 0 | K93: =IFERROR(J93/H93,"") -> 0 | L93: =SUM(L94:L108) -> 0 | M93: =SUM(M94:M108) -> 0 | O93: =SUM(O94:O108) -> 0 | P93: 0 | Q93: =SUM(Q94:Q108) -> 0 | R93: =SUM(R94:R108) -> 0 | T93: =SUM(T94:T108) -> 13.05 | V93: =SUM(V94:V108) -> 13.05 | W93: =SUM(W94:W108) -> 0 | AD93: 0 | AE93: 0 | AF93: 0 | AG93: 0
B94: APPUIS DE FENETRES | D94: T | E94: 1.023 | H94: =SUM(E94:G94) -> 1.023 | J94: =H94*K94/100 -> 0 | K94: ='BETON Qte'!K94 -> 0 | L94: =Q94+AF94 -> 0 | M94: =J94-L94 -> 0 | O94: =J94-AD94 -> 0 | P94: 0 | R94: =O94-Q94 -> 0 | T94: 1.023 | V94: =L94+T94 -> 1.023 | W94: =H94-V94 -> 0 | AD94: 0 | AE94: 0 | AF94: 0 | AG94: 0
B95: POSE ET SCELLEMENT DE CADRES ET FX CADRES | D95: T | E95: 0 | H95: 0 | J95: 0 | K95: ='BETON Qte'!K95 -> 0 | L95: 0 | M95: 0 | O95: 0 | R95: 0 | T95: 0 | V95: 0 | W95: 0 | AD95: 0 | AE95: 0 | AF95: 0 | AG95: 0
B96: POSE ET SCELLEMENT DE GC | D96: T | E96: 0 | H96: 0 | J96: 0 | K96: ='BETON Qte'!K96 -> 0 | L96: 0 | M96: 0 | O96: 0 | R96: 0 | T96: 0 | V96: 0 | W96: 0 | AD96: 0 | AE96: 0 | AF96: 0 | AG96: 0
B97: POSE ET SCELLEMENT DE PRECADRES / MENUISERIE | D97: T | E97: 0 | H97: 0 | J97: 0 | K97: ='BETON Qte'!K97 -> 0 | L97: 0 | M97: 0 | O97: 0 | R97: 0 | T97: 0 | V97: 0 | W97: 0 | AD97: 0 | AE97: 0 | AF97: 0 | AG97: 0
B98: SCELLEMENT RECEVEURS DE DOUCHE | D98: T | E98: 0 | H98: 0 | J98: 0 | K98: ='BETON Qte'!K98 -> 0 | L98: 0 | M98: 0 | O98: 0 | R98: 0 | T98: 0 | V98: 0 | W98: 0 | AD98: 0 | AE98: 0 | AF98: 0 | AG98: 0
B99: SOCLE PARABOLE | D99: T | E99: 0.16 | H99: 0.16 | J99: 0 | K99: ='BETON Qte'!K99 -> 0 | L99: 0 | M99: 0 | O99: 0 | P99: 0 | R99: 0 | T99: 0.16 | V99: 0.16 | W99: 0 | AD99: 0 | AE99: 0 | AF99: 0 | AG99: 0
B100: SOCLE TERRASSE | D100: T | E100: 3.92 | H100: 3.92 | J100: 0 | K100: ='BETON Qte'!K100 -> 0 | L100: 0 | M100: 0 | O100: 0 | P100: 0 | R100: 0 | T100: 3.92 | V100: 3.92 | W100: 0 | AD100: 0 | AE100: 0 | AF100: 0 | AG100: 0
B101: SOUCHES TERRASSES | D101: T | E101: 0.78 | H101: 0.78 | J101: 0 | K101: ='BETON Qte'!K101 -> 0 | L101: 0 | M101: 0 | O101: 0 | P101: 0 | R101: 0 | T101: 0.78 | V101: 0.78 | W101: 0 | AD101: 0 | AE101: 0 | AF101: 0 | AG101: 0
B102: TRAITEMENT DES JD | D102: T | E102: 0 | H102: 0 | J102: 0 | K102: ='BETON Qte'!K102 -> 0 | L102: 0 | M102: 0 | O102: 0 | R102: 0 | T102: 0 | V102: 0 | W102: 0 | AD102: 0 | AE102: 0 | AF102: 0 | AG102: 0
B103: PEMPLISSAGE JD PAR POLYSTYRENNE | D103: T | E103: 0 | H103: 0 | J103: 0 | K103: ='BETON Qte'!K103 -> 0 | L103: 0 | M103: 0 | O103: 0 | R103: 0 | T103: 0 | V103: 0 | W103: 0 | AD103: 0 | AE103: 0 | AF103: 0 | AG103: 0
B104: DALETTES EN BETON | D104: T | E104: 4.122 | H104: 4.122 | J104: 0 | K104: ='BETON Qte'!K104 -> 0 | L104: 0 | M104: 0 | O104: 0 | P104: 0 | R104: 0 | T104: 4.122 | V104: 4.122 | W104: 0 | AD104: 0 | AE104: 0 | AF104: 0 | AG104: 0
B105: TROUS DE SCELLEMENT & CALFEUTREMENT | D105: T | E105: 0 | H105: 0 | J105: 0 | K105: ='BETON Qte'!K105 -> 0 | L105: 0 | M105: 0 | O105: 0 | R105: 0 | T105: 0 | V105: 0 | W105: 0 | AD105: 0 | AE105: 0 | AF105: 0 | AG105: 0
B106: AMENAGEMENT DES LOCAUX TECHNIQUES | D106: T | E106: 0 | H106: 0 | J106: 0 | K106: ='BETON Qte'!K106 -> 0 | L106: 0 | M106: 0 | O106: 0 | R106: 0 | T106: 0 | V106: 0 | W106: 0 | AD106: 0 | AE106: 0 | AF106: 0 | AG106: 0
B107: COURS ANGLAISES VENTILLATION PARKING | D107: T | E107: 3.045 | H107: 3.045 | J107: 0 | K107: ='BETON Qte'!K107 -> 0 | L107: 0 | M107: 0 | O107: 0 | P107: 0 | R107: 0 | T107: 3.045 | V107: 3.045 | W107: 0 | AD107: 0 | AE107: 0 | AF107: 0 | AG107: 0
B108: BAC A SABLE | D108: T | E108: 0 | H108: 0 | J108: 0 | K108: ='BETON Qte'!K108 -> 0 | L108: 0 | M108: 0 | O108: 0 | R108: 0 | T108: 0 | V108: 0 | W108: 0 | AD108: 0 | AE108: 0 | AF108: 0 | AG108: 0
A109: MATX.400220.PP.DS.2.6 | B109: MACONNERIE & ENDUIT TERRASSE - GH5 | D109: T | E109: =SUM(E110:E112) -> 41.34969325 | F109: =SUM(F110:F112) -> 0 | G109: =SUM(G110:G112) -> 0 | H109: =SUM(H110:H112) -> 41.34969325 | J109: =SUM(J110:J112) -> 0 | K109: =IFERROR(J109/H109,"") -> 0 | L109: =SUM(L110:L112) -> 0 | M109: =SUM(M110:M112) -> 0 | O109: =SUM(O110:O112) -> 0 | P109: 0 | Q109: =SUM(Q110:Q112) -> 0 | R109: =SUM(R110:R112) -> 0 | T109: =SUM(T110:T112) -> 41.34969325 | V109: =SUM(V110:V112) -> 41.34969325 | W109: =SUM(W110:W112) -> 0 | AD109: 0 | AE109: 0 | AF109: 0 | AG109: 0
B110: AJUSTEMENT MAIN D'ŒUVRE | D110: T | E110: 0 | H110: =SUM(E110:G110) -> 0 | J110: =H110*K110/100 -> 0 | K110: ='BETON Qte'!K110 -> 0 | L110: =Q110+AF110 -> 0 | M110: =J110-L110 -> 0 | O110: =J110-AD110 -> 0 | R110: =O110-Q110 -> 0 | T110: 0 | V110: =L110+T110 -> 0 | W110: =H110-V110 -> 0 | AD110: 0 | AE110: 0 | AF110: 0 | AG110: 0
B111: AJUSTEMENT MAIN D'ŒUVRE | D111: T | E111: 0 | H111: =SUM(E111:G111) -> 0 | J111: =H111*K111/100 -> 0 | K111: ='BETON Qte'!K111 -> 0 | L111: =Q111+AF111 -> 0 | M111: =J111-L111 -> 0 | O111: =J111-AD111 -> 0 | R111: =O111-Q111 -> 0 | T111: 0 | V111: 0 | W111: 0 | AD111: 0 | AE111: 0 | AF111: 0 | AG111: 0
B112: AJOUT ACIER CONSOLE | D112: T | E112: 41.34969325 | H112: 41.34969325 | J112: 0 | K112: ='BETON Qte'!K112 -> 0 | L112: 0 | M112: 0 | O112: 0 | P112: 0 | R112: 0 | T112: 41.34969325 | V112: 41.34969325 | W112: 0 | AD112: 0 | AE112: 0 | AF112: 0 | AG112: 0
A119: Code OTP | B119: INDIRECTS | D119: T | E119: =SUM(E120:E122) -> 0 | F119: =SUM(F120:F122) -> 0 | G119: =SUM(G120:G122) -> 0 | H119: =SUM(H120:H122) -> 0 | J119: =SUM(J120:J122) -> 0 | K119: =IFERROR(J119/H119,"") ->  | L119: =SUM(L120:L122) -> 2.015 | M119: =SUM(M120:M122) -> -2.015 | O119: =SUM(O120:O122) -> 0 | P119: =IFERROR(O119/H119,"") ->  | Q119: =SUM(Q120:Q122) -> 0 | R119: =SUM(R120:R122) -> 0 | T119: =SUM(T120:T122) -> 0 | V119: =SUM(V120:V122) -> 0 | W119: =SUM(W120:W122) -> 0 | AD119: 0 | AF119: 2.015 | AG119: -2.015
A120: MATX.400220.IN.IC.02 | B120: INSTALLATION CHANTIER | D120: T | E120: 0 | H120: =SUM(E120:G120) -> 0 | J120: =H120*K120/100 -> 0 | K120: ='BETON Qte'!K180 -> 0 | L120: =Q120+AF120 -> 0 | M120: =J120-L120 -> 0 | O120: =J120-AD120 -> 0 | R120: =O120-Q120 -> 0 | AD120: 0 | AE120: 0 | AF120: 0 | AG120: 0
A121: MATX.400220.IN.IC.01 | B121: MONTAGE DE GRUES | D121: T | E121: 0 | H121: =SUM(E121:G121) -> 0 | J121: =H121*K121/100 -> 0 | K121: ='BETON Qte'!K181 -> 0 | L121: =Q121+AF121 -> 0 | M121: =J121-L121 -> 0 | O121: =J121-AD121 -> 0 | R121: =O121-Q121 -> 0 | AD121: 0 | AE121: 0 | AF121: 0 | AG121: 0
A122: MATX.400220.PP.AM.25 | B122: RESEAUX SOUS DALLAGE | D122: T | E122: 0 | H122: =SUM(E122:G122) -> 0 | J122: =H122*K122/100 -> 0 | K122: ='BETON Qte'!K182 -> 0 | L122: =Q122+AF122 -> 2.015 | M122: =J122-L122 -> -2.015 | O122: =J122-AD122 -> 0 | R122: =O122-Q122 -> 0 | AD122: 0 | AE122: 0 | AF122: 2.015 | AG122: -2.015

Sheet DETAILS
A2: =SYNTHESE!E6 -> LES FAUBOURGS D'ANFA
A3: =SYNTHESE!E7 -> CASABLANCA | G3: POINT A FIN AVRIL 2017
C5: BUDGET Référence | D5: Trsf. Budget | E5: T.S. | F5: X | G5: CUMUL A FIN DE MOIS | J5: X | AP5: RAD | AS5: CUMUL A FIN DE CHANTIER
A6: Code OTP | B6: Description OTP | C6: Total | G6: Avancement | H6: Dépenses | I6: Budget | K6: 09 | L6: 10 | M6: 11 | N6: 12 | O6: 01 | P6: 02 | Q6: 03 | R6: 04 | S6: 05 | T6: 06 | U6: 07 | V6: 08 | W6: 09 | X6: 10 | Y6: 11 | Z6: 12 | AA6: 01 | AB6: 02 | AC6: 03 | AD6: 04 | AE6: 05 | AF6: 06 | AG6: 07 | AH6: 08 | AI6: 09 | AJ6: 10 | AK6: 11 | AL6: 12 | AM6: 01 | AN6: 02 | AP6: Qtés | AQ6: P.U. | AR6: Montant | AS6: Dépenses | AT6: Ecart
G7: Budget | H7: Fin Avr 17 | I7: Restant | K7: 2016 | O7: 2017 | AA7: 2018 | AM7: 2019
A8: ......MATX.400220.PP.AM | B8: AUTRES MATERIAUX | C8: 15368191.59 | D8: -5208230.38 | E8: 5208230.38 | G8: 591197.19 | H8: 613571.08 | I8: -22373.89 | AP8: =+AP34+AP33+AP32+AP31+AP30+AP29+AP28+AP27+AP26+AP25+AP24+AP23+AP22+AP21+AP20+AP19+AP18+AP17+AP16+AP15+AP14+AP13+AP12+AP11+AP10+AP9 -> 21 | AQ8: 14784096.99 | AR8: 11967243.96 | AS8: 12580815.04 | AT8: 2787376.55
A9: .........MATX.400220.PP.AM.01 | B9: PLANCHERS HOURDIS | C9: 0 | D9: -3584887.98 | E9: 3584887.98 | G9: 0 | H9: 0 | I9: 0 | M9: 1 | AP9: =SUM(K9:AN9) -> 1 | AQ9: =IFERROR(IF(C9-H9<0,0,C9-H9),0) -> 0 | AR9: =IFERROR(AP9*AQ9,0) -> 0 | AS9: =H9+AR9 -> 0 | AT9: =C9-AS9 -> 0
A10: .........MATX.400220.PP.AM.02 | B10: MORTIER ENDUIT EXTERIEUR | C10: 1792617.6 | D10: 0 | E10: 0 | G10: 0 | H10: 0 | I10: 0 | M10: 1 | AP10: =SUM(K10:AN10) -> 1 | AQ10: =IFERROR(IF(C10-H10<0,0,C10-H10),0) -> 1792617.6 | AR10: =IFERROR(AP10*AQ10,0) -> 1792617.6 | AS10: =H10+AR10 -> 1792617.6 | AT10: =C10-AS10 -> 0
A11: .........MATX.400220.PP.AM.03 | B11: PV JOINT CREUX ENDUIT EXT | C11: 12037.6 | D11: 0 | E11: 0 | G11: 0 | H11: 0 | I11: 0 | M11: 1 | AP11: =SUM(K11:AN11) -> 1 | AQ11: =IFERROR(IF(C11-H11<0,0,C11-H11),0) -> 12037.6 | AR11: =IFERROR(AP11*AQ11,0) -> 12037.6 | AS11: =H11+AR11 -> 12037.6 | AT11: =C11-AS11 -> 0
A12: .........MATX.400220.PP.AM.04 | B12: MORTIER A HOURDER | C12: 1044611.75 | D12: 0 | E12: 0 | G12: 0 | H12: 0 | I12: 0 | AP12: =SUM(K12:AN12) -> 0 | AQ12: =IFERROR(IF(C12-H12<0,0,C12-H12),0) -> 1044611.75 | AR12: =IFERROR(AP12*AQ12,0) -> 0 | AS12: =H12+AR12 -> 0 | AT12: =C12-AS12 -> 1044611.75
A13: .........MATX.400220.PP.AM.05 | B13: MORTIER DIVERS | C13: 473040.71 | D13: 0 | E13: 0 | G13: 0 | H13: 0 | I13: 0 | M13: 1 | AP13: =SUM(K13:AN13) -> 1 | AQ13: =IFERROR(IF(C13-H13<0,0,C13-H13),0) -> 473040.71 | AR13: =IFERROR(AP13*AQ13,0) -> 473040.71 | AS13: =H13+AR13 -> 473040.71 | AT13: =C13-AS13 -> 0
A14: .........MATX.400220.PP.AM.06 | B14: POLYANE 100μ | C14: 29675.52 | D14: 0 | E14: 0 | G14: 28500.37 | H14: 36000 | I14: -7499.63 | M14: 1 | AP14: =SUM(K14:AN14) -> 1 | AQ14: =IFERROR(IF(C14-H14<0,0,C14-H14),0) -> 0 | AR14: =IFERROR(AP14*AQ14,0) -> 0 | AS14: =H14+AR14 -> 36000 | AT14: =C14-AS14 -> -6324.48
A15: .........MATX.400220.PP.AM.07 | B15: POLISTYRENNE | C15: 1848 | D15: 0 | E15: 0 | G15: 1847.82 | H15: 25000 | I15: -23152.18 | AP15: =SUM(K15:AN15) -> 0 | AQ15: =IFERROR(IF(C15-H15<0,0,C15-H15),0) -> 0 | AR15: =IFERROR(AP15*AQ15,0) -> 0 | AS15: =H15+AR15 -> 25000 | AT15: =C15-AS15 -> -23152
A16: .........MATX.400220.PP.AM.08 | B16: BRIQUES CREUSES 8T 100mm | C16: 304036.22 | D16: 0 | E16: 0 | G16: 0 | H16: 0 | I16: 0 | AP16: =SUM(K16:AN16) -> 0 | AQ16: =IFERROR(IF(C16-H16<0,0,C16-H16),0) -> 304036.22 | AR16: =IFERROR(AP16*AQ16,0) -> 0 | AS16: =H16+AR16 -> 0 | AT16: =C16-AS16 -> 304036.22
A17: .........MATX.400220.PP.AM.09 | B17: BRIQUES CREUSES 6T 70mm | C17: 1987049.05 | D17: 0 | E17: 0 | G17: 0 | H17: 0 | I17: 0 | M17: 1 | AP17: =SUM(K17:AN17) -> 1 | AQ17: =IFERROR(IF(C17-H17<0,0,C17-H17),0) -> 1987049.05 | AR17: =IFERROR(AP17*AQ17,0) -> 1987049.05 | AS17: =H17+AR17 -> 1987049.05 | AT17: =C17-AS17 -> 0
A18: .........MATX.400220.PP.AM.10 | B18: AGGLOS CREUX 20cm | C18: 201154.88 | D18: 0 | E18: 0 | G18: 0 | H18: 0 | I18: 0 | M18: 1 | AP18: =SUM(K18:AN18) -> 1 | AQ18: =IFERROR(IF(C18-H18<0,0,C18-H18),0) -> 201154.88 | AR18: =IFERROR(AP18*AQ18,0) -> 201154.88 | AS18: =H18+AR18 -> 201154.88 | AT18: =C18-AS18 -> 0
A19: .........MATX.400220.PP.AM.11 | B19: POSE MAÇONNERIE | C19: 2008300 | D19: 0 | E19: 0 | G19: 0 | H19: 0 | I19: 0 | M19: 1 | AP19: =SUM(K19:AN19) -> 1 | AQ19: =IFERROR(IF(C19-H19<0,0,C19-H19),0) -> 2008300 | AR19: =IFERROR(AP19*AQ19,0) -> 2008300 | AS19: =H19+AR19 -> 2008300 | AT19: =C19-AS19 -> 0
A20: .........MATX.400220.PP.AM.12 | B20: BAGUETTE D'ANGLE | C20: 120213.45 | D20: 0 | E20: 0 | G20: 0 | H20: 0 | I20: 0 | M20: 1 | AP20: =SUM(K20:AN20) -> 1 | AQ20: =IFERROR(IF(C20-H20<0,0,C20-H20),0) -> 120213.45 | AR20: =IFERROR(AP20*AQ20,0) -> 120213.45 | AS20: =H20+AR20 -> 120213.45 | AT20: =C20-AS20 -> 0
A21: .........MATX.400220.PP.AM.13 | B21: ENDUIT PLATRE (SOUS-SOL) | C21: 0 | D21: -795680.4 | E21: 795680.4 | G21: 0 | H21: 0 | I21: 0 | M21: 1 | AP21: =SUM(K21:AN21) -> 1 | AQ21: =IFERROR(IF(C21-H21<0,0,C21-H21),0) -> 0 | AR21: =IFERROR(AP21*AQ21,0) -> 0 | AS21: =H21+AR21 -> 0 | AT21: =C21-AS21 -> 0
A22: .........MATX.400220.PP.AM.14 | B22: ENDUIT PLATRE (SUPER) | C22: 0 | D22: -827662 | E22: 827662 | G22: 0 | H22: 0 | I22: 0 | M22: 1 | AP22: =SUM(K22:AN22) -> 1 | AQ22: =IFERROR(IF(C22-H22<0,0,C22-H22),0) -> 0 | AR22: =IFERROR(AP22*AQ22,0) -> 0 | AS22: =H22+AR22 -> 0 | AT22: =C22-AS22 -> 0
A23: .........MATX.400220.PP.AM.15 | B23: ENDUIT INTERIEUR | C23: 3706983.6 | D23: 0 | E23: 0 | G23: 0 | H23: 0 | I23: 0 | M23: 1 | AP23: =SUM(K23:AN23) -> 1 | AQ23: =IFERROR(IF(C23-H23<0,0,C23-H23),0) -> 3706983.6 | AR23: =IFERROR(AP23*AQ23,0) -> 3706983.6 | AS23: =H23+AR23 -> 3706983.6 | AT23: =C23-AS23 -> 0
A24: .........MATX.400220.PP.AM.16 | B24: ETANCHEITE MURS ENTERRES | C24: 639912 | D24: 0 | E24: 0 | G24: 0 | H24: 0 | I24: 0 | M24: 1 | AP24: =SUM(K24:AN24) -> 1 | AQ24: =IFERROR(IF(C24-H24<0,0,C24-H24),0) -> 639912 | AR24: =IFERROR(AP24*AQ24,0) -> 639912 | AS24: =H24+AR24 -> 639912 | AT24: =C24-AS24 -> 0
A25: .........MATX.400220.PP.AM.17 | B25: COUVRE JOINT ALU | C25: 60600 | D25: 0 | E25: 0 | G25: 0 | H25: 0 | I25: 0 | M25: 1 | AP25: =SUM(K25:AN25) -> 1 | AQ25: =IFERROR(IF(C25-H25<0,0,C25-H25),0) -> 60600 | AR25: =IFERROR(AP25*AQ25,0) -> 60600 | AS25: =H25+AR25 -> 60600 | AT25: =C25-AS25 -> 0
A26: .........MATX.400220.PP.AM.18 | B26: FINITION SHO INFRA | C26: 71870 | D26: 0 | E26: 0 | G26: 776.2 | H26: 760 | I26: 16.2 | M26: 1 | AP26: =SUM(K26:AN26) -> 1 | AQ26: =IFERROR(IF(C26-H26<0,0,C26-H26),0) -> 71110 | AR26: =IFERROR(AP26*AQ26,0) -> 71110 | AS26: =H26+AR26 -> 71870 | AT26: =C26-AS26 -> 0
A27: .........MATX.400220.PP.AM.19 | B27: FINITION SHO SUPER | C27: 466450 | D27: 0 | E27: 0 | G27: 0 | H27: 0 | I27: 0 | M27: 1 | AP27: =SUM(K27:AN27) -> 1 | AQ27: =IFERROR(IF(C27-H27<0,0,C27-H27),0) -> 466450 | AR27: =IFERROR(AP27*AQ27,0) -> 466450 | AS27: =H27+AR27 -> 466450 | AT27: =C27-AS27 -> 0
A28: .........MATX.400220.PP.AM.20 | B28: DIVERS FINITION | C28: 216720 | D28: 0 | E28: 0 | G28: 0 | H28: 0 | I28: 0 | M28: 1 | AP28: =SUM(K28:AN28) -> 1 | AQ28: =IFERROR(IF(C28-H28<0,0,C28-H28),0) -> 216720 | AR28: =IFERROR(AP28*AQ28,0) -> 216720 | AS28: =H28+AR28 -> 216720 | AT28: =C28-AS28 -> 0
A29: .........MATX.400220.PP.AM.21 | B29: GRAVIER 5/25 | C29: 2106.72 | D29: 0 | E29: 0 | G29: 0 | H29: 0 | I29: 0 | M29: 1 | AP29: =SUM(K29:AN29) -> 1 | AQ29: =IFERROR(IF(C29-H29<0,0,C29-H29),0) -> 2106.72 | AR29: =IFERROR(AP29*AQ29,0) -> 2106.72 | AS29: =H29+AR29 -> 2106.72 | AT29: =C29-AS29 -> 0
A30: .........MATX.400220.PP.AM.22 | B30: BAC A SABLE | C30: 4000 | D30: 0 | E30: 0 | G30: 0 | H30: 0 | I30: 0 | M30: 1 | AP30: =SUM(K30:AN30) -> 1 | AQ30: =IFERROR(IF(C30-H30<0,0,C30-H30),0) -> 4000 | AR30: =IFERROR(AP30*AQ30,0) -> 4000 | AS30: =H30+AR30 -> 4000 | AT30: =C30-AS30 -> 0
A31: .........MATX.400220.PP.AM.23 | B31: PROTECTION DALLAGE | C31: 50000 | D31: 0 | E31: 0 | G31: 0 | H31: 0 | I31: 0 | M31: 1 | AP31: =SUM(K31:AN31) -> 1 | AQ31: =IFERROR(IF(C31-H31<0,0,C31-H31),0) -> 50000 | AR31: =IFERROR(AP31*AQ31,0) -> 50000 | AS31: =H31+AR31 -> 50000 | AT31: =C31-AS31 -> 0
A32: .........MATX.400220.PP.AM.24 | B32: DIVERS ET NON VU | C32: 154948.35 | D32: 0 | E32: 0 | G32: 0 | H32: 0 | I32: 0 | M32: 1 | AP32: =SUM(K32:AN32) -> 1 | AQ32: =IFERROR(IF(C32-H32<0,0,C32-H32),0) -> 154948.35 | AR32: =IFERROR(AP32*AQ32,0) -> 154948.35 | AS32: =H32+AR32 -> 154948.35 | AT32: =C32-AS32 -> 0
A33: .........MATX.400220.PP.AM.25 | B33: RESEAU SOUS DALLAGE | C33: 779567.14 | D33: 0 | E33: 0 | G33: 156926.87 | H33: 145206.61 | I33: 11720.26 | AP33: =SUM(K33:AN33) -> 0 | AQ33: =IFERROR(IF(C33-H33<0,0,C33-H33),0) -> 634360.53 | AR33: =IFERROR(AP33*AQ33,0) -> 0 | AS33: =H33+AR33 -> 145206.61 | AT33: =C33-AS33 -> 634360.53
A34: .........MATX.400220.PP.AM.26 | B34: TERRASSEMENT COMPLEMENTAIRE | C34: 1240449 | D34: 0 | E34: 0 | G34: 403145.93 | H34: 406604.47 | I34: -3458.54 | AP34: =SUM(K34:AN34) -> 0 | AQ34: =IFERROR(IF(C34-H34<0,0,C34-H34),0) -> 833844.53 | AR34: =IFERROR(AP34*AQ34,0) -> 0 | AS34: =H34+AR34 -> 406604.47 | AT34: =C34-AS34 -> 833844.53
A35: ...MATX.400220.ST | B35: SOUS TRAITANCE | C35: 129009357.7 | D35: 5982303.68 | E35: -5982303.68 | G35: 138950 | H35: 4849409.79 | I35: -4710459.79 | AP35: =+AP70+AP44+AP36 -> 18 | AQ35: 137677947.9 | AR35: 90857279.36 | AS35: 95906689.15 | AT35: 46820668.53
A36: ......MATX.400220.ST.GO | B36: GROS OEUVRES | C36: 9247357.68 | D36: 5982303.68 | E36: -5982303.68 | G36: 138950 | H36: 4849409.79 | I36: -4710459.79 | AP36: =+AP42+AP41+AP37 -> 4 | AQ36: 5197947.89 | AR36: 7039279.36 | AS36: 12088689.15 | AT36: -1841331.47
A37: .........MATX.400220.ST.GO.TR | B37: TERRASSEMENT | C37: 3265057.68 | D37: 0 | E37: 0 | G37: 138950 | H37: 1858259.79 | I37: -1719309.79 | AP37: =SUM(K37:AN37) -> 0 | AQ37: =IFERROR(IF(C37-H37<0,0,C37-H37),0) -> 1406797.89 | AR37: =+AR40+AR39+AR38 -> 1056979.36 | AS37: =H37+AR37 -> 2915239.15 | AT37: =C37-AS37 -> 349818.53
A38: ............MATX.400220.ST.GO.TR.1 | B38: DAKO CONSTRUCTION | C38: 2596568 | D38: 0 | E38: 0 | G38: 0 | H38: 1719376.46 | I38: -1719376.46 | AP38: =SUM(K38:AN38) -> 0 | AQ38: =IFERROR(IF(C38-H38<0,0,C38-H38),0) -> 877191.54 | AR38: =IFERROR(AP38*AQ38,0) -> 0 | AS38: =H38+AR38 -> 1719376.46 | AT38: =C38-AS38 -> 877191.54
A39: ............MATX.400220.ST.GO.TR.2 | B39: PART PROPRE | C39: 140000 | D39: 140000 | E39: -140000 | G39: 138950 | H39: 138883.33 | I39: 66.67 | AP39: =SUM(K39:AN39) -> 0 | AQ39: =IFERROR(IF(C39-H39<0,0,C39-H39),0) -> 1116.67 | AR39: =IFERROR(AP39*AQ39,0) -> 0 | AS39: =H39+AR39 -> 138883.33 | AT39: =C39-AS39 -> 1116.67
A40: ............MATX.400220.ST.GO.TR.3 | B40: RAT | C40: 528489.68 | D40: -140000 | E40: 140000 | G40: 0 | H40: 0 | I40: 0 | R40: 1 | AD40: 1 | AP40: =SUM(K40:AN40) -> 2 | AQ40: =IFERROR(IF(C40-H40<0,0,C40-H40),0) -> 528489.68 | AR40: =IFERROR(AP40*AQ40,0) -> 1056979.36 | AS40: =H40+AR40 -> 1056979.36 | AT40: =C40-AS40 -> -528489.68
A41: .........MATX.400220.ST.GO.CC | B41: CCL | C41: 5982300 | D41: 5982303.68 | E41: -5982303.68 | G41: 0 | H41: 2991150 | I41: -2991150 | R41: 1 | AD41: 1 | AP41: =SUM(K41:AN41) -> 2 | AQ41: =IFERROR(IF(C41-H41<0,0,C41-H41),0) -> 2991150 | AR41: =IFERROR(AP41*AQ41,0) -> 5982300 | AS41: =H41+AR41 -> 8973450 | AT41: =C41-AS41 -> -2991150
A42: .........MATX.400220.ST.GO.MC | B42: MACONNERIE | C42: 1000000 | D42: 0 | E42: 0 | H42: 200000 | I42: -171939.79 | R42: 1 | AD42: 1 | AP42: =SUM(K42:AN42) -> 2 | AQ42: =IFERROR(IF(C42-H42<0,0,C42-H42),0) -> 800000 | AR42: =+AR43 -> 0 | AS42: =H42+AR42 -> 200000 | AT42: =C42-AS42 -> 800000
A43: ............MATX.400220.ST.GO.MC.1 | B43: CAMARA | C43: 1000000 | D43: 0 | E43: 0 | G43: 0 | H43: 200000 | I43: -171939.79 | AP43: =SUM(K43:AN43) -> 0 | AQ43: =IFERROR(IF(C43-H43<0,0,C43-H43),0) -> 800000 | AR43: =IFERROR(AP43*AQ43,0) -> 0 | AS43: =H43+AR43 -> 200000 | AT43: =C43-AS43 -> 800000
A44: ......MATX.400220.ST.CA | B44: CEA | C44: 84248000 | D44: 0 | E44: 0 | G44: 0 | H44: 0 | I44: 0 | AP44: =+AP68+AP65+AP63+AP61+AP56+AP54+AP45 -> 6 | AQ44: 94248000 | AR44: 60482000 | AS44: 60482000 | AT44: 33766000
A45: .........MATX.400220.ST.CA.ET | B45: ETANCHEITE | C45: 9853000 | D45: 0 | E45: 0 | G45: 0 | H45: 0 | I45: 0 | AP45: =SUM(K45:AN45) -> 0 | AQ45: =IFERROR(IF(C45-H45<0,0,C45-H45),0) -> 9853000 | AR45: =+AR51+AR46 -> 0 | AS45: =H45+AR45 -> 0 | AT45: =C45-AS45 -> 9853000
A46: ............MATX.400220.ST.CA.ET.1 | B46: MARCHE | C46: 5853000 | D46: 0 | E46: 0 | G46: 0 | H46: 0 | I46: 0 | AP46: =SUM(K46:AN46) -> 0 | AQ46: =IFERROR(IF(C46-H46<0,0,C46-H46),0) -> 5853000 | AR46: =IFERROR(AP46*AQ46,0) -> 0 | AS46: =H46+AR46 -> 0 | AT46: =C46-AS46 -> 5853000
A47: ...............MATX.400220.ST.CA.ET.1.1 | B47: BELFAQIR H5 | C47: 1451457 | D47: 500 | E47: 200 | G47: 400 | H47: 300 | I47: -450 | AP47: =SUM(K47:AN47) -> 0 | AQ47: =IFERROR(IF(C47-H47<0,0,C47-H47),0) -> 1451157 | AR47: =IFERROR(AP47*AQ47,0) -> 0 | AS47: =H47+AR47 -> 300 | AT47: =C47-AS47 -> 1451157
A48: ...............MATX.400220.ST.CA.ET.1.2 | B48: BELFAQIR H6 | C48: 1000000 | D48: 0 | I48: 0 | N48: 1 | AP48: =SUM(K48:AN48) -> 1 | AQ48: =IFERROR(IF(C48-H48<0,0,C48-H48),0) -> 1000000 | AR48: =IFERROR(AP48*AQ48,0) -> 1000000 | AS48: =H48+AR48 -> 1000000 | AT48: =C48-AS48 -> 0
A49: ...............MATX.400220.ST.CA.ET.1.3 | B49: BELFAQIR DEF | C49: 2401543 | D49: 0 | E49: 0 | G49: 0 | H49: 0 | I49: 0 | N49: 1 | AP49: =SUM(K49:AN49) -> 1 | AQ49: =IFERROR(IF(C49-H49<0,0,C49-H49),0) -> 2401543 | AR49: =IFERROR(AP49*AQ49,0) -> 2401543 | AS49: =H49+AR49 -> 2401543 | AT49: =C49-AS49 -> 0
A50: ...............MATX.400220.ST.CA.ET.1.4 | B50: BELFAQIR R8 | C50: 1000000 | D50: 0 | E50: 0 | G50: 0 | H50: 0 | I50: 0 | AP50: =SUM(K50:AN50) -> 0 | AQ50: =IFERROR(IF(C50-H50<0,0,C50-H50),0) -> 1000000 | AR50: =IFERROR(AP50*AQ50,0) -> 0 | AS50: =H50+AR50 -> 0 | AT50: =C50-AS50 -> 1000000
A51: ............MATX.400220.ST.CA.ET.2 | B51: MARCHE | C51: 4000000 | D51: 0 | E51: 0 | G51: 0 | H51: 0 | I51: 0 | AP51: =SUM(K51:AN51) -> 0 | AQ51: =IFERROR(IF(C51-H51<0,0,C51-H51),0) -> 4000000 | AR51: =IFERROR(AP51*AQ51,0) -> 0 | AS51: =H51+AR51 -> 0 | AT51: =C51-AS51 -> 4000000
A52: ...............MATX.400220.ST.CA.ET.2.1 | B52: LOCABATI D6 | C52: 3000000 | D52: 0 | I52: 0 | AP52: =SUM(K52:AN52) -> 0 | AQ52: =IFERROR(IF(C52-H52<0,0,C52-H52),0) -> 3000000 | AR52: =IFERROR(AP52*AQ52,0) -> 0 | AS52: =H52+AR52 -> 0 | AT52: =C52-AS52 -> 3000000
A53: ...............MATX.400220.ST.CA.ET.2.2 | B53: LOCABATI R2 | C53: 1000000 | D53: 0 | E53: 0 | G53: 0 | H53: 0 | I53: 0 | R53: 1 | AD53: 1 | AP53: =SUM(K53:AN53) -> 2 | AQ53: =IFERROR(IF(C53-H53<0,0,C53-H53),0) -> 1000000 | AR53: =IFERROR(AP53*AQ53,0) -> 2000000 | AS53: =H53+AR53 -> 2000000 | AT53: =C53-AS53 -> -1000000
A54: .........MATX.400220.ST.CA.MA | B54: MENUISERIE ALUMINIUM | C54: 12000000 | D54: 0 | E54: 0 | G54: 0 | H54: 0 | I54: 0 | AP54: =SUM(K54:AN54) -> 0 | AQ54: =IFERROR(IF(C54-H54<0,0,C54-H54),0) -> 12000000 | AR54: =+AR55 -> 24000000 | AS54: =H54+AR54 -> 24000000 | AT54: =C54-AS54 -> -12000000
A55: ............MATX.400220.ST.CA.MA.1 | B55: MARCHE | C55: 12000000 | D55: 0 | E55: 0 | G55: 0 | H55: 0 | I55: 0 | R55: 1 | AD55: 1 | AP55: =SUM(K55:AN55) -> 2 | AQ55: =IFERROR(IF(C55-H55<0,0,C55-H55),0) -> 12000000 | AR55: =IFERROR(AP55*AQ55,0) -> 24000000 | AS55: =H55+AR55 -> 24000000 | AT55: =C55-AS55 -> -12000000
A56: .........MATX.400220.ST.CA.MB | B56: MENUISERIE BOIS | C56: 19991000 | D56: 0 | E56: 0 | G56: 0 | H56: 0 | I56: 0 | AP56: =SUM(K56:AN56) -> 0 | AQ56: =IFERROR(IF(C56-H56<0,0,C56-H56),0) -> 19991000 | AR56: =+AR60+AR57 -> 6000000 | AS56: =H56+AR56 -> 6000000 | AT56: =C56-AS56 -> 13991000
A57: ............MATX.400220.ST.CA.MB.1 | B57: MARCHE | C57: 3000000 | D57: 0 | E57: 0 | G57: 0 | H57: 0 | I57: 0 | R57: 1 | AD57: 1 | AP57: =SUM(K57:AN57) -> 2 | AQ57: =IFERROR(IF(C57-H57<0,0,C57-H57),0) -> 3000000 | AR57: =IFERROR(AP57*AQ57,0) -> 6000000 | AS57: =H57+AR57 -> 6000000 | AT57: =C57-AS57 -> -3000000
A58: ............MATX.400220.ST.CA.MB.1.1 | B58: BATIGLOBE B3-B4 | C58: 2000000 | D58: 0 | I58: 0 | AP58: =SUM(K58:AN58) -> 0 | AQ58: =IFERROR(IF(C58-H58<0,0,C58-H58),0) -> 2000000 | AR58: =IFERROR(AP58*AQ58,0) -> 0 | AS58: =H58+AR58 -> 0 | AT58: =C58-AS58 -> 2000000
A59: ............MATX.400220.ST.CA.MB.1.2 | B59: BATIGLOBE B6 | C59: 1000000 | D59: 0 | E59: 0 | G59: 0 | H59: 0 | I59: 0 | R59: 1 | AD59: 1 | AP59: =SUM(K59:AN59) -> 2 | AQ59: =IFERROR(IF(C59-H59<0,0,C59-H59),0) -> 1000000 | AR59: =IFERROR(AP59*AQ59,0) -> 2000000 | AS59: =H59+AR59 -> 2000000 | AT59: =C59-AS59 -> -1000000
A60: ............MATX.400220.ST.CA.MB.2 | B60: MARCHE | C60: 16991000 | D60: 0 | E60: 0 | G60: 0 | H60: 0 | I60: 0 | AP60: =SUM(K60:AN60) -> 0 | AQ60: =IFERROR(IF(C60-H60<0,0,C60-H60),0) -> 16991000 | AR60: =IFERROR(AP60*AQ60,0) -> 0 | AS60: =H60+AR60 -> 0 | AT60: =C60-AS60 -> 16991000
A61: .........MATX.400220.ST.CA.RV | B61: REVETEMENTS | C61: 32798000 | D61: 0 | E61: 0 | G61: 0 | H61: 0 | I61: 0 | R61: 1 | AD61: 1 | AP61: =SUM(K61:AN61) -> 2 | AQ61: =IFERROR(IF(C61-H61<0,0,C61-H61),0) -> 32798000 | AR61: =+AR62 -> 0 | AS61: =H61+AR61 -> 0 | AT61: =C61-AS61 -> 32798000
A62: ............MATX.400220.ST.CA.RV.1 | B62: MARCHE | C62: 32798000 | D62: 0 | E62: 0 | G62: 0 | H62: 0 | I62: 0 | AP62: =SUM(K62:AN62) -> 0 | AQ62: =IFERROR(IF(C62-H62<0,0,C62-H62),0) -> 32798000 | AR62: =IFERROR(AP62*AQ62,0) -> 0 | AS62: =H62+AR62 -> 0 | AT62: =C62-AS62 -> 32798000
A63: .........MATX.400220.ST.CA.FP | B63: FAUX-PLAFOND | C63: 4365000 | D63: 0 | E63: 0 | G63: 0 | H63: 0 | I63: 0 | R63: 1 | AD63: 1 | AP63: =SUM(K63:AN63) -> 2 | AQ63: =IFERROR(IF(C63-H63<0,0,C63-H63),0) -> 4365000 | AR63: =+AR64 -> 0 | AS63: =H63+AR63 -> 0 | AT63: =C63-AS63 -> 4365000
A64: ............MATX.400220.ST.CA.FP.1 | B64: MARCHE | C64: 4365000 | D64: 0 | E64: 0 | G64: 0 | H64: 0 | I64: 0 | AP64: =SUM(K64:AN64) -> 0 | AQ64: =IFERROR(IF(C64-H64<0,0,C64-H64),0) -> 4365000 | AR64: =IFERROR(AP64*AQ64,0) -> 0 | AS64: =H64+AR64 -> 0 | AT64: =C64-AS64 -> 4365000
A65: .........MATX.400220.ST.CA.PN | B65: PEINTURES | C65: 7910000 | D65: 0 | E65: 0 | G65: 0 | H65: 0 | I65: 0 | R65: 1 | AD65: 1 | AP65: =SUM(K65:AN65) -> 2 | AQ65: =IFERROR(IF(C65-H65<0,0,C65-H65),0) -> 7910000 | AR65: =+AR67+AR66 -> 15820000 | AS65: =H65+AR65 -> 15820000 | AT65: =C65-AS65 -> -7910000
A66: ............MATX.400220.ST.CA.PN.1 | B66: MARCHE | C66: 6910000 | D66: 0 | E66: 0 | G66: 0 | H66: 0 | I66: 0 | R66: 1 | AD66: 1 | AP66: =SUM(K66:AN66) -> 2 | AQ66: =IFERROR(IF(C66-H66<0,0,C66-H66),0) -> 6910000 | AR66: =IFERROR(AP66*AQ66,0) -> 13820000 | AS66: =H66+AR66 -> 13820000 | AT66: =C66-AS66 -> -6910000
A67: ............MATX.400220.ST.CA.PN.2 | B67: BAHSSI | C67: 1000000 | D67: 0 | E67: 0 | G67: 0 | H67: 0 | I67: 0 | R67: 1 | AD67: 1 | AP67: =SUM(K67:AN67) -> 2 | AQ67: =IFERROR(IF(C67-H67<0,0,C67-H67),0) -> 1000000 | AR67: =IFERROR(AP67*AQ67,0) -> 2000000 | AS67: =H67+AR67 -> 2000000 | AT67: =C67-AS67 -> -1000000
A68: .........MATX.400220.ST.CA.CS | B68: CUISINE | C68: 7331000 | D68: 0 | E68: 0 | G68: 0 | H68: 0 | I68: 0 | AP68: =SUM(K68:AN68) -> 0 | AQ68: =IFERROR(IF(C68-H68<0,0,C68-H68),0) -> 7331000 | AR68: =+AR69 -> 14662000 | AS68: =H68+AR68 -> 14662000 | AT68: =C68-AS68 -> -7331000
A69: ............MATX.400220.ST.CA.CS.1 | B69: MARCHE | C69: 7331000 | D69: 0 | E69: 0 | G69: 0 | H69: 0 | I69: 0 | R69: 1 | AD69: 1 | AP69: =SUM(K69:AN69) -> 2 | AQ69: =IFERROR(IF(C69-H69<0,0,C69-H69),0) -> 7331000 | AR69: =IFERROR(AP69*AQ69,0) -> 14662000 | AS69: =H69+AR69 -> 14662000 | AT69: =C69-AS69 -> -7331000
A70: ......MATX.400220.ST.CE | B70: CET | C70: 35514000 | D70: 0 | E70: 0 | G70: 0 | H70: 0 | I70: 0 | AP70: =+AP83+AP81+AP78+AP75+AP73+AP71 -> 8 | AQ70: 38232000 | AR70: 23336000 | AS70: 23336000 | AT70: 14896000
A71: .........MATX.400220.ST.CE.CH | B71: CHEMINEE | C71: 336000 | D71: 0 | E71: 0 | G71: 0 | H71: 0 | I71: 0 | R71: 1 | AD71: 1 | AP71: =SUM(K71:AN71) -> 2 | AQ71: =IFERROR(IF(C71-H71<0,0,C71-H71),0) -> 336000 | AR71: =+AR72 -> 672000 | AS71: =H71+AR71 -> 672000 | AT71: =C71-AS71 -> -336000
A72: ............MATX.400220.ST.CE.CH.1 | B72: MARCHE | C72: 336000 | D72: 0 | E72: 0 | G72: 0 | H72: 0 | I72: 0 | R72: 1 | AD72: 1 | AP72: =SUM(K72:AN72) -> 2 | AQ72: =IFERROR(IF(C72-H72<0,0,C72-H72),0) -> 336000 | AR72: =IFERROR(AP72*AQ72,0) -> 672000 | AS72: =H72+AR72 -> 672000 | AT72: =C72-AS72 -> -336000
A73: .........MATX.400220.ST.CE.DF | B73: CVC DESENFUMAGE | C73: 9346000 | D73: 0 | E73: 0 | G73: 0 | H73: 0 | I73: 0 | R73: 1 | AD73: 1 | AP73: =SUM(K73:AN73) -> 2 | AQ73: =IFERROR(IF(C73-H73<0,0,C73-H73),0) -> 9346000 | AR73: =+AR74 -> 0 | AS73: =H73+AR73 -> 0 | AT73: =C73-AS73 -> 9346000
A74: ............MATX.400220.ST.CE.DF.1 | B74: EGE | C74: 9346000 | D74: 0 | E74: 0 | G74: 0 | H74: 0 | I74: 0 | AP74: =SUM(K74:AN74) -> 0 | AQ74: =IFERROR(IF(C74-H74<0,0,C74-H74),0) -> 9346000 | AR74: =IFERROR(AP74*AQ74,0) -> 0 | AS74: =H74+AR74 -> 0 | AT74: =C74-AS74 -> 9346000
A75: .........MATX.400220.ST.CE.PB | B75: PLOMBERIE & PI | C75: 13967000 | D75: 0 | E75: 0 | G75: 0 | H75: 0 | I75: 0 | R75: 1 | AD75: 1 | AP75: =SUM(K75:AN75) -> 2 | AQ75: =IFERROR(IF(C75-H75<0,0,C75-H75),0) -> 13967000 | AR75: =+AR77+AR76 -> 15334000 | AS75: =H75+AR75 -> 15334000 | AT75: =C75-AS75 -> -1367000
A76: ............MATX.400220.ST.CE.PB.1 | B76: EGE | C76: 6300000 | D76: -7667000 | E76: 7667000 | G76: 0 | H76: 0 | I76: 0 | AP76: =SUM(K76:AN76) -> 0 | AQ76: =IFERROR(IF(C76-H76<0,0,C76-H76),0) -> 6300000 | AR76: =IFERROR(AP76*AQ76,0) -> 0 | AS76: =H76+AR76 -> 0 | AT76: =C76-AS76 -> 6300000
A77: ............MATX.400220.ST.CE.PB.2 | B77: RAT | C77: 7667000 | D77: 7667000 | E77: -7667000 | G77: 0 | H77: 0 | I77: 0 | R77: 1 | AD77: 1 | AP77: =SUM(K77:AN77) -> 2 | AQ77: =IFERROR(IF(C77-H77<0,0,C77-H77),0) -> 7667000 | AR77: =IFERROR(AP77*AQ77,0) -> 15334000 | AS77: =H77+AR77 -> 15334000 | AT77: =C77-AS77 -> -7667000
A78: .........MATX.400220.ST.CE.CR | B78: COURANTS FORTS & FAIBLES | C78: 9147000 | D78: 0 | E78: 0 | G78: 0 | H78: 0 | I78: 0 | AP78: =SUM(K78:AN78) -> 0 | AQ78: =IFERROR(IF(C78-H78<0,0,C78-H78),0) -> 9147000 | AR78: =+AR80+AR79 -> 1894000 | AS78: =H78+AR78 -> 1894000 | AT78: =C78-AS78 -> 7253000
A79: ............MATX.400220.ST.CE.CR.1 | B79: LOUFELEC | C79: 8200000 | D79: -947000 | E79: 0 | G79: 0 | H79: 0 | I79: 0 | AP79: =SUM(K79:AN79) -> 0 | AQ79: =IFERROR(IF(C79-H79<0,0,C79-H79),0) -> 8200000 | AR79: =IFERROR(AP79*AQ79,0) -> 0 | AS79: =H79+AR79 -> 0 | AT79: =C79-AS79 -> 8200000
A80: ............MATX.400220.ST.CE.CR.2 | B80: RAT | C80: 947000 | D80: 947000 | E80: 0 | G80: 0 | H80: 0 | I80: 0 | R80: 1 | AD80: 1 | AP80: =SUM(K80:AN80) -> 2 | AQ80: =IFERROR(IF(C80-H80<0,0,C80-H80),0) -> 947000 | AR80: =IFERROR(AP80*AQ80,0) -> 1894000 | AS80: =H80+AR80 -> 1894000 | AT80: =C80-AS80 -> -947000
A81: .........MATX.400220.ST.CE.AS | B81: ASCENSEURS | C81: 2718000 | D81: 0 | E81: 0 | G81: 0 | H81: 0 | I81: 0 | R81: 1 | AD81: 1 | AP81: =SUM(K81:AN81) -> 2 | AQ81: =IFERROR(IF(C81-H81<0,0,C81-H81),0) -> 2718000 | AR81: =+AR82 -> 0 | AS81: =H81+AR81 -> 0 | AT81: =C81-AS81 -> 2718000
A82: ............MATX.400220.ST.CE.AS.1 | B82: MARCHE | C82: 2718000 | D82: 0 | E82: 0 | G82: 0 | H82: 0 | I82: 0 | AP82: =SUM(K82:AN82) -> 0 | AQ82: =IFERROR(IF(C82-H82<0,0,C82-H82),0) -> 2718000 | AR82: =IFERROR(AP82*AQ82,0) -> 0 | AS82: =H82+AR82 -> 0 | AT82: =C82-AS82 -> 2718000
A83: .........MATX.400220.ST.CE.AZ | B83: AZT | C83: 2718000 | D83: 0 | E83: 0 | G83: 0 | H83: 0 | I83: 0 | AP83: =SUM(K83:AN83) -> 0 | AQ83: =IFERROR(IF(C83-H83<0,0,C83-H83),0) -> 2718000 | AR83: =+AR84 -> 5436000 | AS83: =H83+AR83 -> 5436000 | AT83: =C83-AS83 -> -2718000
A84: ............MATX.400220.ST.CE.AZ.1 | B84: MARCHE | C84: 2718000 | D84: 0 | E84: 0 | G84: 0 | H84: 0 | I84: 0 | R84: 1 | AD84: 1 | AP84: =SUM(K84:AN84) -> 2 | AQ84: =IFERROR(IF(C84-H84<0,0,C84-H84),0) -> 2718000 | AR84: =IFERROR(AP84*AQ84,0) -> 5436000 | AS84: =H84+AR84 -> 5436000 | AT84: =C84-AS84 -> -2718000
A85: ...MATX.400220.IN | B85: INDIRECTS | C85: 50698623.03 | D85: 0 | E85: 0 | G85: 7823941.43 | H85: 8332240.45 | I85: -508299.02 | R85: 1 | AD85: 1 | AP85: =+AP297+AP291+AP288+AP285+AP265+AP242+AP215+AP205+AP175+AP142+AP89+AP86 -> 1051 | AQ85: 51968969.74 | AR85: 187048621.6 | AS85: 195358882.3 | AT85: -144220386.8
A86: ......MATX.400220.IN.IC | B86: INSTALLATION DE CHANTIER | C86: 2377968 | D86: 0 | E86: 0 | G86: 769014.52 | H86: 768922.85 | I86: 91.67 | AP86: =+AP88+AP87 -> 4 | AQ86: 1609045.15 | AR86: 3218090.3 | AS86: 3987013.15 | AT86: -1609045.15
A87: .........MATX.400220.IN.IC.01 | B87: MONTAGE / DEMONTAGE GRUES | C87: 1669313 | D87: 0 | E87: 0 | G87: 260412.83 | H87: 259619.18 | I87: 793.65 | R87: 1 | AD87: 1 | AP87: =SUM(K87:AN87) -> 2 | AQ87: =IFERROR(IF(C87-H87<0,0,C87-H87),0) -> 1409693.82 | AR87: =IFERROR(AP87*AQ87,0) -> 2819387.64 | AS87: =H87+AR87 -> 3079006.82 | AT87: =C87-AS87 -> -1409693.82
A88: .........MATX.400220.IN.IC.02 | B88: INSTALLATION DE CHANTIER | C88: 708655 | D88: 0 | E88: 0 | G88: 508601.69 | H88: 509303.67 | I88: -701.98 | R88: 1 | AD88: 1 | AP88: =SUM(K88:AN88) -> 2 | AQ88: =IFERROR(IF(C88-H88<0,0,C88-H88),0) -> 199351.33 | AR88: =IFERROR(AP88*AQ88,0) -> 398702.66 | AS88: =H88+AR88 -> 908006.33 | AT88: =C88-AS88 -> -199351.33
A89: ......MATX.400220.IN.LM | B89: LOCATION MATERIEL | C89: 4451136.27 | D89: 0 | E89: 0 | G89: 1699627.9 | H89: 1681325.07 | I89: 18302.83 | AP89: =+AP141+AP140+AP139+AP138+AP137+AP136+AP135+AP134+AP133+AP132+AP131+AP130+AP129+AP128+AP127+AP126+AP125+AP124+AP123+AP122+AP121+AP120+AP119+AP118+AP117+AP116+AP115+AP114+AP113+AP112+AP111+AP110+AP109+AP108+AP107+AP106+AP105+AP104+AP103+AP102+AP101+AP100+AP99+AP98+AP97+AP96+AP95+AP94+AP93+AP92+AP91+AP90 -> 526 | AQ89: 11541656.2 | AR89: 100570292.5 | AS89: 102251617.6 | AT89: -97800481.28
A90: .........MATX.400220.IN.LM.01 | B90: GRUE G12 TR4 | C90: 1072500 | D90: 0 | E90: 0 | G90: 301694.25 | H90: 300320 | I90: 1374.25 | R90: 1 | AD90: 1 | AP90: =SUM(K90:AN90) -> 2 | AQ90: =IFERROR(IF(C90-H90<0,0,C90-H90),0) -> 772180 | AR90: =IFERROR(AP90*AQ90,0) -> 1544360 | AS90: =H90+AR90 -> 1844680 | AT90: =C90-AS90 -> -772180
A91: .........MATX.400220.IN.LM.02 | B91: GRUE G13 TR4 | C91: 1072500 | D91: 0 | E91: 0 | G91: 271664.25 | H91: 267320 | I91: 4344.25 | AP91: =SUM(K91:AN91) -> 0 | AQ91: =IFERROR(IF(C91-H91<0,0,C91-H91),0) -> 805180 | AR91: =IFERROR(AP91*AQ91,0) -> 0 | AS91: =H91+AR91 -> 267320 | AT91: =C91-AS91 -> 805180
A92: .........MATX.400220.IN.LM.03 | B92: GTMR | C92: 200000 | D92: 0 | E92: 0 | G92: 160000 | H92: 160000 | I92: 0 | AP92: =SUM(K92:AN92) -> 0 | AQ92: =IFERROR(IF(C92-H92<0,0,C92-H92),0) -> 40000 | AR92: =IFERROR(AP92*AQ92,0) -> 0 | AS92: =H92+AR92 -> 160000 | AT92: =C92-AS92 -> 40000
A93: .........MATX.400220.IN.LM.04 | B93: GRUE G14 TR4 | C93: 1072500 | D93: 0 | E93: 0 | G93: 272415 | H93: 267298.67 | I93: 5116.33 | P93: 1 | AB93: 1 | AN93: 1 | AP93: =SUM(K93:AN93) -> 3 | AQ93: =IFERROR(IF(C93-H93<0,0,C93-H93),0) -> 805201.33 | AR93: =IFERROR(AP93*AQ93,0) -> 2415603.99 | AS93: =H93+AR93 -> 2682902.66 | AT93: =C93-AS93 -> -1610402.66
A94: .........MATX.400220.IN.LM.05 | B94: GRUE G15 TR4 | C94: 1425000 | D94: 0 | E94: 0 | G94: 0 | H94: 0 | I94: 0 | P94: 1 | AB94: 1 | AN94: 1 | AP94: =SUM(K94:AN94) -> 3 | AQ94: =IFERROR(IF(C94-H94<0,0,C94-H94),0) -> 1425000 | AR94: =IFERROR(AP94*AQ94,0) -> 4275000 | AS94: =H94+AR94 -> 4275000 | AT94: =C94-AS94 -> -2850000
A95: .........MATX.400220.IN.LM.06 | B95: INTERFERANCE GRUE A TOUR | C95: 325000 | D95: 0 | E95: 0 | G95: 0 | H95: 0 | I95: 0 | P95: 1 | AB95: 1 | AN95: 1 | AP95: =SUM(K95:AN95) -> 3 | AQ95: =IFERROR(IF(C95-H95<0,0,C95-H95),0) -> 325000 | AR95: =IFERROR(AP95*AQ95,0) -> 975000 | AS95: =H95+AR95 -> 975000 | AT95: =C95-AS95 -> -650000
A96: .........MATX.400220.IN.LM.07 | B96: TRUELLE MECANIQUE | C96: 12500 | D96: 0 | E96: 0 | G96: 1600 | H96: 1583.33 | I96: 16.67 | P96: 1 | AB96: 1 | AN96: 1 | AP96: =SUM(K96:AN96) -> 3 | AQ96: =IFERROR(IF(C96-H96<0,0,C96-H96),0) -> 10916.67 | AR96: =IFERROR(AP96*AQ96,0) -> 32750.01 | AS96: =H96+AR96 -> 34333.34 | AT96: =C96-AS96 -> -21833.34
A97: .........MATX.400220.IN.LM.08 | B97: SCIE A SOL | C97: 20000 | D97: 0 | E97: 0 | G97: 2500 | H97: 2500 | I97: 0 | AP97: =SUM(K97:AN97) -> 0 | AQ97: =IFERROR(IF(C97-H97<0,0,C97-H97),0) -> 17500 | AR97: =IFERROR(AP97*AQ97,0) -> 0 | AS97: =H97+AR97 -> 2500 | AT97: =C97-AS97 -> 17500
A98: .........MATX.400220.IN.LM.09 | B98: FOURCHE A PALETTES | C98: 10800 | D98: 0 | E98: 0 | G98: 2406.24 | H98: 2409 | I98: -2.76 | AP98: =SUM(K98:AN98) -> 0 | AQ98: =IFERROR(IF(C98-H98<0,0,C98-H98),0) -> 8391 | AR98: =IFERROR(AP98*AQ98,0) -> 0 | AS98: =H98+AR98 -> 2409 | AT98: =C98-AS98 -> 8391
A99: .........MATX.400220.IN.LM.10 | B99: CHARIOT ELEVATEUR | C99: 556500 | D99: 0 | E99: 0 | G99: 89262.6 | H99: 88746.67 | I99: 515.93 | M99: 1 | N99: 1 | O99: 1 | P99: 1 | Q99: 1 | R99: 1 | S99: 1 | T99: 1 | AA99: 1 | AB99: 1 | AC99: 1 | AD99: 1 | AE99: 1 | AF99: 1 | AM99: 1 | AN99: 1 | AP99: =SUM(K99:AN99) -> 16 | AQ99: =IFERROR(IF(C99-H99<0,0,C99-H99),0) -> 467753.33 | AR99: =IFERROR(AP99*AQ99,0) -> 7484053.28 | AS99: =H99+AR99 -> 7572799.95 | AT99: =C99-AS99 -> -7016299.95
A100: .........MATX.400220.IN.LM.11 | B100: BENNE A BETON | C100: 67200 | D100: 0 | E100: 0 | G100: 14434.56 | H100: 14516.66 | I100: -82.1 | M100: 1 | N100: 1 | O100: 1 | AA100: 1 | AM100: 1 | AP100: =SUM(K100:AN100) -> 5 | AQ100: =IFERROR(IF(C100-H100<0,0,C100-H100),0) -> 52683.34 | AR100: =IFERROR(AP100*AQ100,0) -> 263416.7 | AS100: =H100+AR100 -> 277933.36 | AT100: =C100-AS100 -> -210733.36
A101: .........MATX.400220.IN.LM.12 | B101: BENNE A GRAVOIS | C101: 56000 | D101: 0 | E101: 0 | G101: 25160.8 | H101: 25160 | I101: 0.8 | M101: 1 | N101: 1 | O101: 1 | P101: 1 | Q101: 1 | R101: 1 | AA101: 1 | AB101: 1 | AC101: 1 | AD101: 1 | AM101: 1 | AN101: 1 | AP101: =SUM(K101:AN101) -> 12 | AQ101: =IFERROR(IF(C101-H101<0,0,C101-H101),0) -> 30840 | AR101: =IFERROR(AP101*AQ101,0) -> 370080 | AS101: =H101+AR101 -> 395240 | AT101: =C101-AS101 -> -339240
A102: .........MATX.400220.IN.LM.13 | B102: POMPE IMMERGE | C102: 26000 | D102: 0 | E102: 0 | G102: 4069 | H102: 4071.67 | I102: -2.67 | AP102: =SUM(K102:AN102) -> 0 | AQ102: =IFERROR(IF(C102-H102<0,0,C102-H102),0) -> 21928.33 | AR102: =IFERROR(AP102*AQ102,0) -> 0 | AS102: =H102+AR102 -> 4071.67 | AT102: =C102-AS102 -> 21928.33
A103: .........MATX.400220.IN.LM.14 | B103: NIVEAU MESURE "THEODILITE" | C103: 67200 | D103: 0 | E103: 0 | G103: 0 | H103: 0 | I103: 0 | M103: 1 | N103: 1 | O103: 1 | P103: 1 | Q103: 1 | R103: 1 | S103: 1 | AA103: 1 | AB103: 1 | AC103: 1 | AD103: 1 | AE103: 1 | AM103: 1 | AN103: 1 | AP103: =SUM(K103:AN103) -> 14 | AQ103: =IFERROR(IF(C103-H103<0,0,C103-H103),0) -> 67200 | AR103: =IFERROR(AP103*AQ103,0) -> 940800 | AS103: =H103+AR103 -> 940800 | AT103: =C103-AS103 -> -873600
A104: .........MATX.400220.IN.LM.15 | B104: NIVEAU MESURE "NIVEAU LASER" | C104: 38400 | D104: 0 | E104: 0 | G104: 1512.96 | H104: 1516.66 | I104: -3.7 | M104: 2 | N104: 2 | O104: 2 | P104: 2 | Q104: 2 | R104: 2 | S104: 2 | T104: 2 | AA104: 2 | AB104: 2 | AC104: 2 | AD104: 2 | AE104: 2 | AF104: 2 | AM104: 2 | AN104: 2 | AP104: =SUM(K104:AN104) -> 32 | AQ104: =IFERROR(IF(C104-H104<0,0,C104-H104),0) -> 36883.34 | AR104: =IFERROR(AP104*AQ104,0) -> 1180266.88 | AS104: =H104+AR104 -> 1181783.54 | AT104: =C104-AS104 -> -1143383.54
A105: .........MATX.400220.IN.LM.16 | B105: COMPRESSEUR | C105: 420000 | D105: 0 | E105: 0 | G105: 31500 | H105: 31500 | I105: 0 | AP105: =SUM(K105:AN105) -> 0 | AQ105: =IFERROR(IF(C105-H105<0,0,C105-H105),0) -> 388500 | AR105: =IFERROR(AP105*AQ105,0) -> 0 | AS105: =H105+AR105 -> 31500 | AT105: =C105-AS105 -> 388500
A106: .........MATX.400220.IN.LM.17 | B106: CONVERTISSEUR | C106: 300000 | D106: 0 | E106: 0 | G106: 74850 | H106: 74693.85 | I106: 156.15 | AP106: =SUM(K106:AN106) -> 0 | AQ106: =IFERROR(IF(C106-H106<0,0,C106-H106),0) -> 225306.15 | AR106: =IFERROR(AP106*AQ106,0) -> 0 | AS106: =H106+AR106 -> 74693.85 | AT106: =C106-AS106 -> 225306.15
A107: .........MATX.400220.IN.LM.18 | B107: ECHAFAUDAGE FACADE | C107: 1649000 | D107: 0 | E107: 0 | G107: 0 | H107: 0 | I107: 0 | AP107: =SUM(K107:AN107) -> 0 | AQ107: =IFERROR(IF(C107-H107<0,0,C107-H107),0) -> 1649000 | AR107: =IFERROR(AP107*AQ107,0) -> 0 | AS107: =H107+AR107 -> 0 | AT107: =C107-AS107 -> 1649000
A108: .........MATX.400220.IN.LM.19 | B108: GARDE CORPS A PINCE | C108: 364800 | D108: 0 | E108: 0 | G108: 0 | H108: 0 | I108: 0 | M108: 8 | N108: 8 | O108: 8 | P108: 8 | Q108: 8 | R108: 8 | S108: 8 | T108: 8 | AA108: 8 | AB108: 8 | AC108: 8 | AD108: 8 | AE108: 8 | AF108: 8 | AM108: 8 | AN108: 8 | AP108: =SUM(K108:AN108) -> 128 | AQ108: =IFERROR(IF(C108-H108<0,0,C108-H108),0) -> 364800 | AR108: =IFERROR(AP108*AQ108,0) -> 46694400 | AS108: =H108+AR108 -> 46694400 | AT108: =C108-AS108 -> -46329600
A109: .........MATX.400220.IN.LM.20 | B109: PLATEAU AUTOCOINCANT | C109: 246400 | D109: 0 | E109: 0 | G109: 0 | H109: 0 | I109: 0 | M109: 1 | N109: 1 | O109: 1 | P109: 1 | Q109: 1 | R109: 1 | S109: 1 | T109: 1 | AA109: 1 | AB109: 1 | AC109: 1 | AD109: 1 | AE109: 1 | AF109: 1 | AM109: 1 | AN109: 1 | AP109: =SUM(K109:AN109) -> 16 | AQ109: =IFERROR(IF(C109-H109<0,0,C109-H109),0) -> 246400 | AR109: =IFERROR(AP109*AQ109,0) -> 3942400 | AS109: =H109+AR109 -> 3942400 | AT109: =C109-AS109 -> -3696000
A110: .........MATX.400220.IN.LM.21 | B110: CITERNE A GASOIL | C110: 24000 | D110: 0 | E110: 0 | G110: 0 | H110: 0 | I110: 0 | M110: 3 | N110: 3 | O110: 3 | P110: 3 | Q110: 3 | R110: 3 | S110: 3 | T110: 3 | AA110: 3 | AB110: 3 | AC110: 3 | AD110: 3 | AE110: 3 | AF110: 3 | AM110: 3 | AN110: 3 | AP110: =SUM(K110:AN110) -> 48 | AQ110: =IFERROR(IF(C110-H110<0,0,C110-H110),0) -> 24000 | AR110: =IFERROR(AP110*AQ110,0) -> 1152000 | AS110: =H110+AR110 -> 1152000 | AT110: =C110-AS110 -> -1128000
A111: .........MATX.400220.IN.LM.22 | B111: FOURGON AC PTV | C111: 110600 | D111: 0 | E111: 0 | G111: 0 | H111: 0 | I111: 0 | AP111: =SUM(K111:AN111) -> 0 | AQ111: =IFERROR(IF(C111-H111<0,0,C111-H111),0) -> 110600 | AR111: =IFERROR(AP111*AQ111,0) -> 0 | AS111: =H111+AR111 -> 0 | AT111: =C111-AS111 -> 110600
A112: .........MATX.400220.IN.LM.23 | B112: CONTAINER MAGASIN | C112: 77250 | D112: 0 | E112: 0 | G112: 0 | H112: 0 | I112: 0 | M112: 1 | N112: 1 | O112: 1 | AA112: 1 | AM112: 1 | AP112: =SUM(K112:AN112) -> 5 | AQ112: =IFERROR(IF(C112-H112<0,0,C112-H112),0) -> 77250 | AR112: =IFERROR(AP112*AQ112,0) -> 386250 | AS112: =H112+AR112 -> 386250 | AT112: =C112-AS112 -> -309000
A113: .........MATX.400220.IN.LM.24 | B113: ATELIER ELECTROMECANIQUE | C113: 72000 | D113: 0 | E113: 0 | G113: 0 | H113: 0 | I113: 0 | AP113: =SUM(K113:AN113) -> 0 | AQ113: =IFERROR(IF(C113-H113<0,0,C113-H113),0) -> 72000 | AR113: =IFERROR(AP113*AQ113,0) -> 0 | AS113: =H113+AR113 -> 0 | AT113: =C113-AS113 -> 72000
A114: .........MATX.400220.IN.LM.26 | B114: BARAQUE CC | C114: 126000 | D114: 0 | E114: 0 | G114: 9198 | H114: 9200.01 | I114: -2.01 | M114: 1 | N114: 1 | O114: 1 | P114: 1 | Q114: 1 | R114: 1 | AA114: 1 | AB114: 1 | AC114: 1 | AD114: 1 | AM114: 1 | AN114: 1 | AP114: =SUM(K114:AN114) -> 12 | AQ114: =IFERROR(IF(C114-H114<0,0,C114-H114),0) -> 116799.99 | AR114: =IFERROR(AP114*AQ114,0) -> 1401599.88 | AS114: =H114+AR114 -> 1410799.89 | AT114: =C114-AS114 -> -1284799.89
A115: .........MATX.400220.IN.LM.27 | B115: SANITAIRE CHANTIER | C115: 168300 | D115: 0 | E115: 0 | G115: 9593.1 | H115: 9600 | I115: -6.9 | AP115: =SUM(K115:AN115) -> 0 | AQ115: =IFERROR(IF(C115-H115<0,0,C115-H115),0) -> 158700 | AR115: =IFERROR(AP115*AQ115,0) -> 0 | AS115: =H115+AR115 -> 9600 | AT115: =C115-AS115 -> 158700
A116: .........MATX.400220.IN.LM.28 | B116: BUREAU DE CHANTIER | C116: 269178 | D116: 0 | E116: 0 | G116: 55935.19 | H116: 55530.19 | I116: 405 | M116: 1 | AP116: =SUM(K116:AN116) -> 1 | AQ116: =IFERROR(IF(C116-H116<0,0,C116-H116),0) -> 213647.81 | AR116: =IFERROR(AP116*AQ116,0) -> 213647.81 | AS116: =H116+AR116 -> 269178 | AT116: =C116-AS116 -> 0
A117: .........MATX.400220.IN.LM.29 | B117: MOBILIER VESTIAIRE + REFECTOIRE | C117: 576000 | D117: 0 | E117: 0 | G117: 0 | H117: 0 | I117: 0 | M117: 1 | N117: 1 | O117: 1 | P117: 1 | Q117: 1 | R117: 1 | S117: 1 | T117: 1 | AA117: 1 | AB117: 1 | AC117: 1 | AD117: 1 | AE117: 1 | AF117: 1 | AM117: 1 | AN117: 1 | AP117: =SUM(K117:AN117) -> 16 | AQ117: =IFERROR(IF(C117-H117<0,0,C117-H117),0) -> 576000 | AR117: =IFERROR(AP117*AQ117,0) -> 9216000 | AS117: =H117+AR117 -> 9216000 | AT117: =C117-AS117 -> -8640000
A118: .........MATX.400220.IN.LM.30 | B118: GUERITE GARDIENS | C118: 20250 | D118: 0 | E118: 0 | G118: 0 | H118: 0 | I118: 0 | AP118: =SUM(K118:AN118) -> 0 | AQ118: =IFERROR(IF(C118-H118<0,0,C118-H118),0) -> 20250 | AR118: =IFERROR(AP118*AQ118,0) -> 0 | AS118: =H118+AR118 -> 0 | AT118: =C118-AS118 -> 20250
A119: .........MATX.400220.IN.LM.31 | B119: INFIRMERIE: BATIMENT SEUL | C119: 33600 | D119: 0 | E119: 0 | G119: 0 | H119: 0 | I119: 0 | AP119: =SUM(K119:AN119) -> 0 | AQ119: =IFERROR(IF(C119-H119<0,0,C119-H119),0) -> 33600 | AR119: =IFERROR(AP119*AQ119,0) -> 0 | AS119: =H119+AR119 -> 0 | AT119: =C119-AS119 -> 33600
A120: .........MATX.400220.IN.LM.32 | B120: GOULOTTE POUR GRAVOIS | C120: 52000 | D120: 0 | E120: 0 | G120: 0 | H120: 0 | I120: 0 | M120: 1 | N120: 1 | O120: 1 | P120: 1 | Q120: 1 | R120: 1 | S120: 1 | T120: 1 | AA120: 1 | AB120: 1 | AC120: 1 | AD120: 1 | AE120: 1 | AF120: 1 | AM120: 1 | AN120: 1 | AP120: =SUM(K120:AN120) -> 16 | AQ120: =IFERROR(IF(C120-H120<0,0,C120-H120),0) -> 52000 | AR120: =IFERROR(AP120*AQ120,0) -> 832000 | AS120: =H120+AR120 -> 832000 | AT120: =C120-AS120 -> -780000
A121: .........MATX.400220.IN.LM.33 | B121: SUPRESSEUR | C121: 48000 | D121: 0 | E121: 0 | G121: 1699.2 | H121: 1706.67 | I121: -7.47 | M121: 1 | AP121: =SUM(K121:AN121) -> 1 | AQ121: =IFERROR(IF(C121-H121<0,0,C121-H121),0) -> 46293.33 | AR121: =IFERROR(AP121*AQ121,0) -> 46293.33 | AS121: =H121+AR121 -> 48000 | AT121: =C121-AS121 -> 0
A122: .........MATX.400220.IN.LM.34 | B122: CITERNE A EAU | C122: 29430 | D122: 0 | E122: 0 | G122: 2489.78 | H122: 2508 | I122: -18.22 | M122: 1 | N122: 1 | O122: 1 | AA122: 1 | AM122: 1 | AP122: =SUM(K122:AN122) -> 5 | AQ122: =IFERROR(IF(C122-H122<0,0,C122-H122),0) -> 26922 | AR122: =IFERROR(AP122*AQ122,0) -> 134610 | AS122: =H122+AR122 -> 137118 | AT122: =C122-AS122 -> -107688
A123: .........MATX.400220.IN.LM.35 | B123: TABLEAU GENERAL BASSE TENSION | C123: 238500 | D123: 0 | E123: 0 | G123: 0 | H123: 0 | I123: 0 | P123: 1 | AB123: 1 | AN123: 1 | AP123: =SUM(K123:AN123) -> 3 | AQ123: =IFERROR(IF(C123-H123<0,0,C123-H123),0) -> 238500 | AR123: =IFERROR(AP123*AQ123,0) -> 715500 | AS123: =H123+AR123 -> 715500 | AT123: =C123-AS123 -> -477000
A124: .........MATX.400220.IN.LM.36 | B124: ARMOIRE AP160 | C124: 211200 | D124: 0 | E124: 0 | G124: 7708.8 | H124: 6812 | I124: 896.8 | AP124: =SUM(K124:AN124) -> 0 | AQ124: =IFERROR(IF(C124-H124<0,0,C124-H124),0) -> 204388 | AR124: =IFERROR(AP124*AQ124,0) -> 0 | AS124: =H124+AR124 -> 6812 | AT124: =C124-AS124 -> 204388
A125: .........MATX.400220.IN.LM.37 | B125: ARMOIRE PIED DE GRUE | C125: 66000 | D125: 0 | E125: 0 | G125: 0 | H125: 0 | I125: 0 | M125: 1 | N125: 1 | O125: 1 | P125: 1 | Q125: 1 | AA125: 1 | AB125: 1 | AC125: 1 | AM125: 1 | AN125: 1 | AP125: =SUM(K125:AN125) -> 10 | AQ125: =IFERROR(IF(C125-H125<0,0,C125-H125),0) -> 66000 | AR125: =IFERROR(AP125*AQ125,0) -> 660000 | AS125: =H125+AR125 -> 660000 | AT125: =C125-AS125 -> -594000
A126: .........MATX.400220.IN.LM.38 | B126: ARMOIRE I40 | C126: 359040 | D126: 0 | E126: 0 | G126: 8365.63 | H126: 8375.33 | I126: -9.7 | AP126: =SUM(K126:AN126) -> 0 | AQ126: =IFERROR(IF(C126-H126<0,0,C126-H126),0) -> 350664.67 | AR126: =IFERROR(AP126*AQ126,0) -> 0 | AS126: =H126+AR126 -> 8375.33 | AT126: =C126-AS126 -> 350664.67
A127: .........MATX.400220.IN.LM.39 | B127: ARMOIRE I40 BT | C127: 5500 | D127: 0 | E127: 0 | G127: 2116.4 | H127: 2112 | I127: 4.4 | M127: 1 | N127: 1 | O127: 2 | P127: 1 | Q127: 1 | R127: 1 | AA127: 2 | AB127: 1 | AC127: 1 | AD127: 1 | AM127: 2 | AN127: 1 | AP127: =SUM(K127:AN127) -> 15 | AQ127: =IFERROR(IF(C127-H127<0,0,C127-H127),0) -> 3388 | AR127: =IFERROR(AP127*AQ127,0) -> 50820 | AS127: =H127+AR127 -> 52932 | AT127: =C127-AS127 -> -47432
A128: .........MATX.400220.IN.LM.40 | B128: PROJECTEUR 800W | C128: 60000 | D128: 0 | E128: 0 | G128: 0 | H128: 0 | I128: 0 | AP128: =SUM(K128:AN128) -> 0 | AQ128: =IFERROR(IF(C128-H128<0,0,C128-H128),0) -> 60000 | AR128: =IFERROR(AP128*AQ128,0) -> 0 | AS128: =H128+AR128 -> 0 | AT128: =C128-AS128 -> 60000
A129: .........MATX.400220.IN.LM.41 | B129: PROJECTEUR 2000W | C129: 150000 | D129: 0 | E129: 0 | G129: 26070 | H129: 26100 | I129: -30 | M129: 1 | N129: 1 | O129: 2 | P129: 1 | Q129: 1 | R129: 1 | AA129: 2 | AB129: 1 | AC129: 1 | AD129: 1 | AM129: 2 | AN129: 1 | AP129: =SUM(K129:AN129) -> 15 | AQ129: =IFERROR(IF(C129-H129<0,0,C129-H129),0) -> 123900 | AR129: =IFERROR(AP129*AQ129,0) -> 1858500 | AS129: =H129+AR129 -> 1884600 | AT129: =C129-AS129 -> -1734600
A130: .........MATX.400220.IN.LM.42 | B130: TRANSPORT MATERIEL | C130: 242700 | D130: 0 | E130: 0 | G130: 92226 | H130: 87131 | I130: 5095 | M130: 1 | N130: 1 | O130: 1 | P130: 1 | Q130: 1 | R130: 1 | S130: 1 | T130: 1 | AA130: 1 | AB130: 1 | AC130: 1 | AD130: 1 | AE130: 1 | AF130: 1 | AM130: 1 | AN130: 1 | AP130: =SUM(K130:AN130) -> 16 | AQ130: =IFERROR(IF(C130-H130<0,0,C130-H130),0) -> 155569 | AR130: =IFERROR(AP130*AQ130,0) -> 2489104 | AS130: =H130+AR130 -> 2576235 | AT130: =C130-AS130 -> -2333535
A131: .........MATX.400220.IN.LM.43 | B131: POSTE A SOUDER | C131: 19620 | D131: 0 | E131: 0 | G131: 2999.9 | H131: 3000 | I131: -0.1 | M131: 1 | N131: 1 | O131: 1 | P131: 1 | Q131: 1 | R131: 1 | S131: 1 | T131: 1 | AA131: 1 | AB131: 1 | AC131: 1 | AD131: 1 | AE131: 1 | AF131: 1 | AM131: 1 | AN131: 1 | AP131: =SUM(K131:AN131) -> 16 | AQ131: =IFERROR(IF(C131-H131<0,0,C131-H131),0) -> 16620 | AR131: =IFERROR(AP131*AQ131,0) -> 265920 | AS131: =H131+AR131 -> 268920 | AT131: =C131-AS131 -> -249300
A132: .........MATX.400220.IN.LM.44 | B132: RECETTES TRANCHE 4 | C132: -8771845 | D132: 0 | E132: 0 | G132: 0 | H132: 0 | I132: 0 | L132: =+L101 -> 0 | M132: 1 | N132: 1 | O132: 1 | P132: 1 | Q132: 1 | R132: 1 | S132: 0 | T132: 0 | U132: 0 | AA132: =+AA101 -> 1 | AB132: 1 | AC132: 1 | AD132: 1 | AE132: 0 | AF132: 0 | AG132: 0 | AM132: =+AM101 -> 1 | AN132: 1 | AP132: =SUM(K132:AN132) -> 12 | AQ132: =IFERROR(IF(C132-H132<0,0,C132-H132),0) -> 0 | AR132: =IFERROR(AP132*AQ132,0) -> 0 | AS132: =H132+AR132 -> 0 | AT132: =C132-AS132 -> -8771845
A133: .........MATX.400220.IN.LM.45 | B133: VL - DIRECTEUR TRAVAUX | C133: 45783.27 | D133: 0 | E133: 0 | G133: 23660.79 | H133: 23660.03 | I133: 0.76 | AP133: =SUM(K133:AN133) -> 0 | AQ133: =IFERROR(IF(C133-H133<0,0,C133-H133),0) -> 22123.24 | AR133: =IFERROR(AP133*AQ133,0) -> 0 | AS133: =H133+AR133 -> 23660.03 | AT133: =C133-AS133 -> 22123.24
A134: .........MATX.400220.IN.LM.46 | B134: VL - GESTIONNAIRE PRINCIPAL | C134: 88290 | D134: 0 | E134: 0 | G134: 26822.5 | H134: 26805 | I134: 17.5 | M134: 1 | N134: 1 | O134: 1 | P134: 1 | Q134: 1 | AA134: 1 | AB134: 1 | AC134: 1 | AM134: 1 | AN134: 1 | AP134: =SUM(K134:AN134) -> 10 | AQ134: =IFERROR(IF(C134-H134<0,0,C134-H134),0) -> 61485 | AR134: =IFERROR(AP134*AQ134,0) -> 614850 | AS134: =H134+AR134 -> 641655 | AT134: =C134-AS134 -> -553365
A135: .........MATX.400220.IN.LM.47 | B135: VL - AZIZ HOUANI | C135: 68670 | D135: 0 | E135: 0 | G135: 16240.46 | H135: 16130 | I135: 110.46 | AP135: =SUM(K135:AN135) -> 0 | AQ135: =IFERROR(IF(C135-H135<0,0,C135-H135),0) -> 52540 | AR135: =IFERROR(AP135*AQ135,0) -> 0 | AS135: =H135+AR135 -> 16130 | AT135: =C135-AS135 -> 52540
A136: .........MATX.400220.IN.LM.48 | B136: VL - CHKAIMA | C136: 73100 | D136: 0 | E136: 0 | G136: 29897.9 | H136: 29875 | I136: 22.9 | M136: 1 | N136: 1 | AP136: =SUM(K136:AN136) -> 2 | AQ136: =IFERROR(IF(C136-H136<0,0,C136-H136),0) -> 43225 | AR136: =IFERROR(AP136*AQ136,0) -> 86450 | AS136: =H136+AR136 -> 116325 | AT136: =C136-AS136 -> -43225
A137: .........MATX.400220.IN.LM.49 | B137: VL - EZZAKRAOUI | C137: 168000 | D137: 0 | E137: 0 | G137: 52852.8 | H137: 52833.33 | I137: 19.47 | M137: 5 | AP137: =SUM(K137:AN137) -> 5 | AQ137: =IFERROR(IF(C137-H137<0,0,C137-H137),0) -> 115166.67 | AR137: =IFERROR(AP137*AQ137,0) -> 575833.35 | AS137: =H137+AR137 -> 628666.68 | AT137: =C137-AS137 -> -460666.68
A138: .........MATX.400220.IN.LM.50 | B138: VL - METHODE A.FOUGHALI | C138: 51170 | D138: 0 | E138: 0 | G138: 19321.79 | H138: 19026.67 | I138: 295.12 | N138: 5 | O138: 5 | P138: 5 | Q138: 5 | AA138: 5 | AB138: 5 | AC138: 5 | AM138: 5 | AN138: 5 | AP138: =SUM(K138:AN138) -> 45 | AQ138: =IFERROR(IF(C138-H138<0,0,C138-H138),0) -> 32143.33 | AR138: =IFERROR(AP138*AQ138,0) -> 1446449.85 | AS138: =H138+AR138 -> 1465476.52 | AT138: =C138-AS138 -> -1414306.52
A139: .........MATX.400220.IN.LM.51 | B139: VL - CTX GO | C139: 280000 | D139: 0 | E139: 0 | G139: 59360 | H139: 59283.33 | I139: 76.67 | S139: 10 | AE139: 10 | AP139: =SUM(K139:AN139) -> 20 | AQ139: =IFERROR(IF(C139-H139<0,0,C139-H139),0) -> 220716.67 | AR139: =IFERROR(AP139*AQ139,0) -> 4414333.4 | AS139: =H139+AR139 -> 4473616.73 | AT139: =C139-AS139 -> -4193616.73
A140: .........MATX.400220.IN.LM.52 | B140: VL - CONDUCTEUR CET TR4 | C140: 238000 | D140: 0 | E140: 0 | G140: 0 | H140: 0 | I140: 0 | M140: 1 | N140: 1 | O140: 1 | P140: 1 | AA140: 1 | AB140: 1 | AM140: 1 | AN140: 1 | AP140: =SUM(K140:AN140) -> 8 | AQ140: =IFERROR(IF(C140-H140<0,0,C140-H140),0) -> 238000 | AR140: =IFERROR(AP140*AQ140,0) -> 1904000 | AS140: =H140+AR140 -> 1904000 | AT140: =C140-AS140 -> -1666000
A141: .........MATX.400220.IN.LM.53 | B141: VL - CONDUCTEUR CEA TR4 | C141: 248500 | D141: 0 | E141: 0 | G141: 0 | H141: 0 | I141: 0 | M141: 1 | N141: 1 | O141: 1 | P141: 1 | AA141: 1 | AB141: 1 | AM141: 1 | AN141: 1 | AP141: =SUM(K141:AN141) -> 8 | AQ141: =IFERROR(IF(C141-H141<0,0,C141-H141),0) -> 248500 | AR141: =IFERROR(AP141*AQ141,0) -> 1988000 | AS141: =H141+AR141 -> 1988000 | AT141: =C141-AS141 -> -1739500
A142: ......MATX.400220.IN.AC | B142: ACHATS | C142: 2553105 | D142: 0 | E142: 0 | G142: 327292.55 | H142: 427896.76 | I142: -100604.21 | M142: 1 | N142: 1 | O142: 1 | P142: 1 | Q142: 1 | R142: 1 | S142: 1 | T142: 1 | AA142: 1 | AB142: 1 | AC142: 1 | AD142: 1 | AE142: 1 | AF142: 1 | AM142: 1 | AN142: 1 | AP142: =+AP174+AP173+AP172+AP171+AP170+AP169+AP168+AP167+AP166+AP165+AP164+AP163+AP162+AP161+AP160+AP159+AP158+AP157+AP156+AP155+AP154+AP153+AP152+AP151+AP150+AP149+AP148+AP147+AP146+AP145+AP144+AP143 -> 238 | AQ142: 2170098.24 | AR142: 6905394.4 | AS142: 7333291.16 | AT142: -4780186.16
A143: .........MATX.400220.IN.AC.01 | B143: PIED DE SCELLEMENT | C143: 139992 | D143: 0 | E143: 0 | G143: 0 | H143: 0 | I143: 0 | AP143: =SUM(K143:AN143) -> 0 | AQ143: =IFERROR(IF(C143-H143<0,0,C143-H143),0) -> 139992 | AR143: =IFERROR(AP143*AQ143,0) -> 0 | AS143: =H143+AR143 -> 0 | AT143: =C143-AS143 -> 139992
A144: .........MATX.400220.IN.AC.02 | B144: DISQUE POUR SCIE | C144: 11200 | D144: 0 | E144: 0 | G144: 0 | H144: 0 | I144: 0 | N144: 1 | O144: 1 | P144: 1 | Q144: 1 | R144: 1 | S144: 1 | T144: 1 | AA144: 1 | AB144: 1 | AC144: 1 | AD144: 1 | AE144: 1 | AF144: 1 | AM144: 1 | AN144: 1 | AP144: =SUM(K144:AN144) -> 15 | AQ144: =IFERROR(IF(C144-H144<0,0,C144-H144),0) -> 11200 | AR144: =IFERROR(AP144*AQ144,0) -> 168000 | AS144: =H144+AR144 -> 168000 | AT144: =C144-AS144 -> -156800
A145: .........MATX.400220.IN.AC.03 | B145: MARTEAU PIQUEUR | C145: 20160 | D145: 0 | E145: 0 | G145: 0 | H145: 0 | I145: 0 | AP145: =SUM(K145:AN145) -> 0 | AQ145: =IFERROR(IF(C145-H145<0,0,C145-H145),0) -> 20160 | AR145: =IFERROR(AP145*AQ145,0) -> 0 | AS145: =H145+AR145 -> 0 | AT145: =C145-AS145 -> 20160
A146: .........MATX.400220.IN.AC.04 | B146: BRISE BETON | C146: 23296 | D146: 0 | E146: 0 | G146: 0 | H146: 0 | I146: 0 | M146: 1 | N146: 1 | O146: 2 | P146: 1 | AA146: 2 | AB146: 1 | AM146: 2 | AN146: 1 | AP146: =SUM(K146:AN146) -> 11 | AQ146: =IFERROR(IF(C146-H146<0,0,C146-H146),0) -> 23296 | AR146: =IFERROR(AP146*AQ146,0) -> 256256 | AS146: =H146+AR146 -> 256256 | AT146: =C146-AS146 -> -232960
A147: .........MATX.400220.IN.AC.05 | B147: MARTEAU PERFORATEUR | C147: 44800 | D147: 0 | E147: 0 | G147: 32780.16 | H147: 32780.2 | I147: -0.04 | M147: 1 | N147: 1 | O147: 2 | AA147: 2 | AM147: 2 | AP147: =SUM(K147:AN147) -> 8 | AQ147: =IFERROR(IF(C147-H147<0,0,C147-H147),0) -> 12019.8 | AR147: =IFERROR(AP147*AQ147,0) -> 96158.4 | AS147: =H147+AR147 -> 128938.6 | AT147: =C147-AS147 -> -84138.6
A148: .........MATX.400220.IN.AC.06 | B148: ELINGUES 2 BRINS | C148: 44400 | D148: 0 | E148: 0 | G148: 4404.48 | H148: 4980 | I148: -575.52 | M148: 1 | N148: 1 | O148: 2 | P148: 1 | Q148: 1 | R148: 1 | S148: 1 | T148: 1 | AA148: 2 | AB148: 1 | AC148: 1 | AD148: 1 | AE148: 1 | AF148: 1 | AM148: 2 | AN148: 1 | AP148: =SUM(K148:AN148) -> 19 | AQ148: =IFERROR(IF(C148-H148<0,0,C148-H148),0) -> 39420 | AR148: =IFERROR(AP148*AQ148,0) -> 748980 | AS148: =H148+AR148 -> 753960 | AT148: =C148-AS148 -> -709560
A149: .........MATX.400220.IN.AC.07 | B149: TRANSPALETTE | C149: 13888 | D149: 0 | E149: 0 | G149: 0 | H149: 0 | I149: 0 | AP149: =SUM(K149:AN149) -> 0 | AQ149: =IFERROR(IF(C149-H149<0,0,C149-H149),0) -> 13888 | AR149: =IFERROR(AP149*AQ149,0) -> 0 | AS149: =H149+AR149 -> 0 | AT149: =C149-AS149 -> 13888
A150: .........MATX.400220.IN.AC.08 | B150: TUYAU POUR BENNE 3ML | C150: 11984 | D150: 0 | E150: 0 | G150: 0 | H150: 0 | I150: 0 | O150: 1 | AA150: 1 | AM150: 1 | AP150: =SUM(K150:AN150) -> 3 | AQ150: =IFERROR(IF(C150-H150<0,0,C150-H150),0) -> 11984 | AR150: =IFERROR(AP150*AQ150,0) -> 35952 | AS150: =H150+AR150 -> 35952 | AT150: =C150-AS150 -> -23968
A151: .........MATX.400220.IN.AC.09 | B151: TUYAU REFOULEMENT | C151: 26800 | D151: 0 | E151: 0 | G151: 0 | H151: 0 | I151: 0 | AP151: =SUM(K151:AN151) -> 0 | AQ151: =IFERROR(IF(C151-H151<0,0,C151-H151),0) -> 26800 | AR151: =IFERROR(AP151*AQ151,0) -> 0 | AS151: =H151+AR151 -> 0 | AT151: =C151-AS151 -> 26800
A152: .........MATX.400220.IN.AC.10 | B152: TUYAU FLEXIBLE | C152: 18000 | D152: 0 | E152: 0 | G152: 10188 | H152: 10188 | I152: 0 | O152: 1 | AA152: 1 | AM152: 1 | AP152: =SUM(K152:AN152) -> 3 | AQ152: =IFERROR(IF(C152-H152<0,0,C152-H152),0) -> 7812 | AR152: =IFERROR(AP152*AQ152,0) -> 23436 | AS152: =H152+AR152 -> 33624 | AT152: =C152-AS152 -> -15624
A153: .........MATX.400220.IN.AC.11 | B153: AIGUILLES VIBRANTES NSN 370 | C153: 45720 | D153: 0 | E153: 0 | G153: 23097.74 | H153: 23100 | I153: -2.26 | K153: 1 | M153: 1 | N153: 1 | O153: 1 | P153: 1 | Q153: 1 | R153: 1 | AA153: 1 | AB153: 1 | AC153: 1 | AD153: 1 | AM153: 1 | AN153: 1 | AP153: =SUM(K153:AN153) -> 13 | AQ153: =IFERROR(IF(C153-H153<0,0,C153-H153),0) -> 22620 | AR153: =IFERROR(AP153*AQ153,0) -> 294060 | AS153: =H153+AR153 -> 317160 | AT153: =C153-AS153 -> -271440
A154: .........MATX.400220.IN.AC.12 | B154: AIGUILLES VIBRANTES NSN 560 | C154: 69840 | D154: 0 | E154: 0 | G154: 62800.13 | H154: 103300 | I154: -40499.87 | K154: 1 | M154: 1 | N154: 1 | O154: 1 | P154: 1 | Q154: 1 | R154: 1 | S154: 1 | T154: 1 | AA154: 1 | AB154: 1 | AC154: 1 | AD154: 1 | AE154: 1 | AF154: 1 | AM154: 1 | AN154: 1 | AP154: =SUM(K154:AN154) -> 17 | AQ154: =IFERROR(IF(C154-H154<0,0,C154-H154),0) -> 0 | AR154: =IFERROR(AP154*AQ154,0) -> 0 | AS154: =H154+AR154 -> 103300 | AT154: =C154-AS154 -> -33460
A155: .........MATX.400220.IN.AC.13 | B155: ATELIER ARMATURES | C155: 15000 | D155: 0 | E155: 0 | G155: 975 | H155: 0 | I155: 975 | N155: 1 | AP155: =SUM(K155:AN155) -> 1 | AQ155: =IFERROR(IF(C155-H155<0,0,C155-H155),0) -> 15000 | AR155: =IFERROR(AP155*AQ155,0) -> 15000 | AS155: =H155+AR155 -> 15000 | AT155: =C155-AS155 -> 0
A156: .........MATX.400220.IN.AC.14 | B156: BOIS GARDES CORPS | C156: 13648 | D156: 0 | E156: 0 | G156: 0 | H156: 0 | I156: 0 | N156: 1 | AP156: =SUM(K156:AN156) -> 1 | AQ156: =IFERROR(IF(C156-H156<0,0,C156-H156),0) -> 13648 | AR156: =IFERROR(AP156*AQ156,0) -> 13648 | AS156: =H156+AR156 -> 13648 | AT156: =C156-AS156 -> 0
A157: .........MATX.400220.IN.AC.15 | B157: LISSE METALIQUES | C157: 141968 | D157: 0 | E157: 0 | G157: 0 | H157: 0 | I157: 0 | AP157: =SUM(K157:AN157) -> 0 | AQ157: =IFERROR(IF(C157-H157<0,0,C157-H157),0) -> 141968 | AR157: =IFERROR(AP157*AQ157,0) -> 0 | AS157: =H157+AR157 -> 0 | AT157: =C157-AS157 -> 141968
A158: .........MATX.400220.IN.AC.16 | B158: BOIS POUR FERMETURE TREMIES | C158: 50000 | D158: 0 | E158: 0 | G158: 0 | H158: 0 | I158: 0 | M158: 1 | N158: 1 | O158: 1 | P158: 1 | Q158: 1 | R158: 1 | S158: 1 | AA158: 1 | AB158: 1 | AC158: 1 | AD158: 1 | AE158: 1 | AM158: 1 | AN158: 1 | AP158: =SUM(K158:AN158) -> 14 | AQ158: =IFERROR(IF(C158-H158<0,0,C158-H158),0) -> 50000 | AR158: =IFERROR(AP158*AQ158,0) -> 700000 | AS158: =H158+AR158 -> 700000 | AT158: =C158-AS158 -> -650000
A159: .........MATX.400220.IN.AC.17 | B159: CONTREPLAQUE POUR FERMETURE TRE | C159: 35000 | D159: 0 | E159: 0 | G159: 0 | H159: 0 | I159: 0 | M159: 6 | N159: 6 | O159: 6 | P159: 6 | Q159: 8 | R159: 10 | S159: 10 | T159: 8 | AA159: 6 | AB159: 6 | AC159: 8 | AD159: 10 | AE159: 10 | AF159: 8 | AM159: 6 | AN159: 6 | AP159: =SUM(K159:AN159) -> 120 | AQ159: =IFERROR(IF(C159-H159<0,0,C159-H159),0) -> 35000 | AR159: =IFERROR(AP159*AQ159,0) -> 4200000 | AS159: =H159+AR159 -> 4200000 | AT159: =C159-AS159 -> -4165000
A160: .........MATX.400220.IN.AC.18 | B160: NETTOYEUR VAPEUR | C160: 55584 | D160: 0 | E160: 0 | G160: 0 | H160: 0 | I160: 0 | AP160: =SUM(K160:AN160) -> 0 | AQ160: =IFERROR(IF(C160-H160<0,0,C160-H160),0) -> 55584 | AR160: =IFERROR(AP160*AQ160,0) -> 0 | AS160: =H160+AR160 -> 0 | AT160: =C160-AS160 -> 55584
A161: .........MATX.400220.IN.AC.19 | B161: COMBINE ROBOT | C161: 68592 | D161: 0 | E161: 0 | G161: 0 | H161: 0 | I161: 0 | AP161: =SUM(K161:AN161) -> 0 | AQ161: =IFERROR(IF(C161-H161<0,0,C161-H161),0) -> 68592 | AR161: =IFERROR(AP161*AQ161,0) -> 0 | AS161: =H161+AR161 -> 0 | AT161: =C161-AS161 -> 68592
A162: .........MATX.400220.IN.AC.20 | B162: CLIMATISEUR WINDOW UNIT AC114 | C162: 30072 | D162: 0 | E162: 0 | G162: 0 | H162: 0 | I162: 0 | K162: 1 | M162: 1 | N162: 1 | O162: 1 | P162: 1 | Q162: 1 | AA162: 1 | AB162: 1 | AC162: 1 | AM162: 1 | AN162: 1 | AP162: =SUM(K162:AN162) -> 11 | AQ162: =IFERROR(IF(C162-H162<0,0,C162-H162),0) -> 30072 | AR162: =IFERROR(AP162*AQ162,0) -> 330792 | AS162: =H162+AR162 -> 330792 | AT162: =C162-AS162 -> -300720
A163: .........MATX.400220.IN.AC.21 | B163: IMPRIMANTE LASERJET A4/A3 | C163: 23112 | D163: 0 | E163: 0 | G163: 0 | H163: 0 | I163: 0 | M163: 1 | AP163: =SUM(K163:AN163) -> 1 | AQ163: =IFERROR(IF(C163-H163<0,0,C163-H163),0) -> 23112 | AR163: =IFERROR(AP163*AQ163,0) -> 23112 | AS163: =H163+AR163 -> 23112 | AT163: =C163-AS163 -> 0
A164: .........MATX.400220.IN.AC.22 | B164: PHOTOCOPIEUSE (20000 COPIES/MOIS) | C164: 76992 | D164: 0 | E164: 0 | G164: 0 | H164: 0 | I164: 0 | AP164: =SUM(K164:AN164) -> 0 | AQ164: =IFERROR(IF(C164-H164<0,0,C164-H164),0) -> 76992 | AR164: =IFERROR(AP164*AQ164,0) -> 0 | AS164: =H164+AR164 -> 0 | AT164: =C164-AS164 -> 76992
A165: .........MATX.400220.IN.AC.23 | B165: RADIO CHANTIER PORTABLE | C165: 16320 | D165: 0 | E165: 0 | G165: 16156.8 | H165: 27750 | I165: -11593.2 | N165: 1 | AP165: =SUM(K165:AN165) -> 1 | AQ165: =IFERROR(IF(C165-H165<0,0,C165-H165),0) -> 0 | AR165: =IFERROR(AP165*AQ165,0) -> 0 | AS165: =H165+AR165 -> 27750 | AT165: =C165-AS165 -> -11430
A166: .........MATX.400220.IN.AC.24 | B166: LOGT GARDIENS | C166: 15000 | D166: 0 | E166: 0 | G166: 0 | H166: 0 | I166: 0 | AP166: =SUM(K166:AN166) -> 0 | AQ166: =IFERROR(IF(C166-H166<0,0,C166-H166),0) -> 15000 | AR166: =IFERROR(AP166*AQ166,0) -> 0 | AS166: =H166+AR166 -> 0 | AT166: =C166-AS166 -> 15000
A167: .........MATX.400220.IN.AC.25 | B167: INFIRMERIE | C167: 12240 | D167: 0 | E167: 0 | G167: 0 | H167: 0 | I167: 0 | AP167: =SUM(K167:AN167) -> 0 | AQ167: =IFERROR(IF(C167-H167<0,0,C167-H167),0) -> 12240 | AR167: =IFERROR(AP167*AQ167,0) -> 0 | AS167: =H167+AR167 -> 0 | AT167: =C167-AS167 -> 12240
A168: .........MATX.400220.IN.AC.26 | B168: TUYAU D'EAU ACIER GALVA | C168: 50400 | D168: 0 | E168: 0 | G168: 0 | H168: 0 | I168: 0 | AP168: =SUM(K168:AN168) -> 0 | AQ168: =IFERROR(IF(C168-H168<0,0,C168-H168),0) -> 50400 | AR168: =IFERROR(AP168*AQ168,0) -> 0 | AS168: =H168+AR168 -> 0 | AT168: =C168-AS168 -> 50400
A169: .........MATX.400220.IN.AC.27 | B169: TUYAU D'EAU PENAFLEX | C169: 60312 | D169: 0 | E169: 0 | G169: 0 | H169: 0 | I169: 0 | AP169: =SUM(K169:AN169) -> 0 | AQ169: =IFERROR(IF(C169-H169<0,0,C169-H169),0) -> 60312 | AR169: =IFERROR(AP169*AQ169,0) -> 0 | AS169: =H169+AR169 -> 0 | AT169: =C169-AS169 -> 60312
A170: .........MATX.400220.IN.AC.28 | B170: CABLE PRIMAIRE ALU | C170: 79992 | D170: 0 | E170: 0 | G170: 0 | H170: 0 | I170: 0 | AP170: =SUM(K170:AN170) -> 0 | AQ170: =IFERROR(IF(C170-H170<0,0,C170-H170),0) -> 79992 | AR170: =IFERROR(AP170*AQ170,0) -> 0 | AS170: =H170+AR170 -> 0 | AT170: =C170-AS170 -> 79992
A171: .........MATX.400220.IN.AC.29 | B171: CABLE SECONDAIRE | C171: 45000 | D171: 0 | E171: 0 | G171: 0 | H171: 0 | I171: 0 | AP171: =SUM(K171:AN171) -> 0 | AQ171: =IFERROR(IF(C171-H171<0,0,C171-H171),0) -> 45000 | AR171: =IFERROR(AP171*AQ171,0) -> 0 | AS171: =H171+AR171 -> 0 | AT171: =C171-AS171 -> 45000
A172: .........MATX.400220.IN.AC.30 | B172: CABLE TERTAIRE | C172: 79800 | D172: 0 | E172: 0 | G172: 0 | H172: 0 | I172: 0 | AP172: =SUM(K172:AN172) -> 0 | AQ172: =IFERROR(IF(C172-H172<0,0,C172-H172),0) -> 79800 | AR172: =IFERROR(AP172*AQ172,0) -> 0 | AS172: =H172+AR172 -> 0 | AT172: =C172-AS172 -> 79800
A173: .........MATX.400220.IN.AC.31 | B173: GUIRLANDES ET RALLONGES | C173: 168000 | D173: 0 | E173: 0 | G173: 3360 | H173: 3024 | I173: 336 | AP173: =SUM(K173:AN173) -> 0 | AQ173: =IFERROR(IF(C173-H173<0,0,C173-H173),0) -> 164976 | AR173: =IFERROR(AP173*AQ173,0) -> 0 | AS173: =H173+AR173 -> 3024 | AT173: =C173-AS173 -> 164976
A174: .........MATX.400220.IN.AC.32 | B174: PETIT OUTILLAGE | C174: 1045993 | D174: 0 | E174: 0 | G174: 173530.24 | H174: 222774.56 | I174: -49244.32 | AP174: =SUM(K174:AN174) -> 0 | AQ174: =IFERROR(IF(C174-H174<0,0,C174-H174),0) -> 823218.44 | AR174: =IFERROR(AP174*AQ174,0) -> 0 | AS174: =H174+AR174 -> 222774.56 | AT174: =C174-AS174 -> 823218.44
A175: ......MATX.400220.IN.MI | B175: MAIN D'OEUVRE INDIRECTE | C175: 4974500 | D175: 0 | E175: 0 | G175: 772983.03 | H175: 759752.99 | I175: 13230.04 | AP175: =+AP204+AP203+AP202+AP201+AP200+AP199+AP198+AP197+AP196+AP195+AP194+AP193+AP192+AP191+AP190+AP189+AP188+AP187+AP186+AP185+AP184+AP183+AP182+AP181+AP180+AP179+AP178+AP177+AP176 -> 223 | AQ175: 4214747.01 | AR175: 42960447.24 | AS175: 43720200.23 | AT175: -38745700.23
A176: .........MATX.400220.IN.MI.01 | B176: GRUTIER G12 | C176: 108750 | D176: 0 | E176: 0 | G176: 22620 | H176: 20728.61 | I176: 1891.39 | AP176: =SUM(K176:AN176) -> 0 | AQ176: =IFERROR(IF(C176-H176<0,0,C176-H176),0) -> 88021.39 | AR176: =IFERROR(AP176*AQ176,0) -> 0 | AS176: =H176+AR176 -> 20728.61 | AT176: =C176-AS176 -> 88021.39
A177: .........MATX.400220.IN.MI.02 | B177: GRUTIER G13 | C177: 108750 | D177: 0 | E177: 0 | G177: 16965 | H177: 16354.12 | I177: 610.88 | AP177: =SUM(K177:AN177) -> 0 | AQ177: =IFERROR(IF(C177-H177<0,0,C177-H177),0) -> 92395.88 | AR177: =IFERROR(AP177*AQ177,0) -> 0 | AS177: =H177+AR177 -> 16354.12 | AT177: =C177-AS177 -> 92395.88
A178: .........MATX.400220.IN.MI.03 | B178: GRUTIER GTMR | C178: 36250 | D178: 0 | E178: 0 | G178: 22692.5 | H178: 21079.83 | I178: 1612.67 | AP178: =SUM(K178:AN178) -> 0 | AQ178: =IFERROR(IF(C178-H178<0,0,C178-H178),0) -> 15170.17 | AR178: =IFERROR(AP178*AQ178,0) -> 0 | AS178: =H178+AR178 -> 21079.83 | AT178: =C178-AS178 -> 15170.17
A179: .........MATX.400220.IN.MI.04 | B179: GRUTIER G14 | C179: 108750 | D179: 0 | E179: 0 | G179: 21097.5 | H179: 18741.11 | I179: 2356.39 | M179: 1 | N179: 2 | O179: 2 | P179: 1 | Q179: 1 | AA179: 2 | AB179: 1 | AC179: 1 | AM179: 2 | AN179: 1 | AP179: =SUM(K179:AN179) -> 14 | AQ179: =IFERROR(IF(C179-H179<0,0,C179-H179),0) -> 90008.89 | AR179: =IFERROR(AP179*AQ179,0) -> 1260124.46 | AS179: =H179+AR179 -> 1278865.57 | AT179: =C179-AS179 -> -1170115.57
A180: .........MATX.400220.IN.MI.05 | B180: GRUTIER G15 | C180: 108750 | D180: 0 | E180: 0 | G180: 14355 | H180: 13952.14 | I180: 402.86 | M180: 1 | N180: 3 | AP180: =SUM(K180:AN180) -> 4 | AQ180: =IFERROR(IF(C180-H180<0,0,C180-H180),0) -> 94797.86 | AR180: =IFERROR(AP180*AQ180,0) -> 379191.44 | AS180: =H180+AR180 -> 393143.58 | AT180: =C180-AS180 -> -284393.58
A181: .........MATX.400220.IN.MI.06 | B181: REMPLACANT GRUTIER | C181: 116000 | D181: 0 | E181: 0 | G181: 0 | H181: 0 | I181: 0 | M181: 1 | N181: 1 | O181: 2 | P181: 1 | AA181: 2 | AB181: 1 | AM181: 2 | AN181: 1 | AP181: =SUM(K181:AN181) -> 11 | AQ181: =IFERROR(IF(C181-H181<0,0,C181-H181),0) -> 116000 | AR181: =IFERROR(AP181*AQ181,0) -> 1276000 | AS181: =H181+AR181 -> 1276000 | AT181: =C181-AS181 -> -1160000
A182: .........MATX.400220.IN.MI.07 | B182: AIDE IMPLANTATION | C182: 20500 | D182: 0 | E182: 0 | G182: 20448.75 | H182: 13952.81 | I182: 6495.94 | M182: 1 | N182: 2 | O182: 2 | P182: 1 | Q182: 1 | R182: 1 | S182: 1 | T182: 1 | AA182: 2 | AB182: 1 | AC182: 1 | AD182: 1 | AE182: 1 | AF182: 1 | AM182: 2 | AN182: 1 | AP182: =SUM(K182:AN182) -> 20 | AQ182: =IFERROR(IF(C182-H182<0,0,C182-H182),0) -> 6547.19 | AR182: =IFERROR(AP182*AQ182,0) -> 130943.8 | AS182: =H182+AR182 -> 144896.61 | AT182: =C182-AS182 -> -124396.61
A183: .........MATX.400220.IN.MI.08 | B183: AIDE TRAÇAGE | C183: 348500 | D183: 0 | E183: 0 | G183: 106083.4 | H183: 105191.82 | I183: 891.58 | M183: 1 | N183: 2 | O183: 2 | P183: 1 | Q183: 1 | R183: 1 | S183: 1 | T183: 1 | U183: 1 | V183: 1 | AA183: 2 | AB183: 1 | AC183: 1 | AD183: 1 | AE183: 1 | AF183: 1 | AG183: 1 | AH183: 1 | AM183: 2 | AN183: 1 | AP183: =SUM(K183:AN183) -> 24 | AQ183: =IFERROR(IF(C183-H183<0,0,C183-H183),0) -> 243308.18 | AR183: =IFERROR(AP183*AQ183,0) -> 5839396.32 | AS183: =H183+AR183 -> 5944588.14 | AT183: =C183-AS183 -> -5596088.14
A184: .........MATX.400220.IN.MI.09 | B184: NETTOYAGE EN COURS DE CHANTIER | C184: 307500 | D184: 0 | E184: 0 | G184: 37299.75 | H184: 32578.67 | I184: 4721.08 | M184: 1 | N184: 1 | O184: 2 | P184: 1 | Q184: 1 | R184: 1 | S184: 1 | T184: 1 | AA184: 2 | AB184: 1 | AC184: 1 | AD184: 1 | AE184: 1 | AF184: 1 | AM184: 2 | AN184: 1 | AP184: =SUM(K184:AN184) -> 19 | AQ184: =IFERROR(IF(C184-H184<0,0,C184-H184),0) -> 274921.33 | AR184: =IFERROR(AP184*AQ184,0) -> 5223505.27 | AS184: =H184+AR184 -> 5256083.94 | AT184: =C184-AS184 -> -4948583.94
A185: .........MATX.400220.IN.MI.10 | B185: NETTOYAGE DURANT CES | C185: 948125 | D185: 0 | E185: 0 | G185: 0 | H185: 0 | I185: 0 | M185: 1 | N185: 1 | O185: 2 | P185: 1 | Q185: 1 | R185: 1 | AA185: 2 | AB185: 1 | AC185: 1 | AD185: 1 | AM185: 2 | AN185: 1 | AP185: =SUM(K185:AN185) -> 15 | AQ185: =IFERROR(IF(C185-H185<0,0,C185-H185),0) -> 948125 | AR185: =IFERROR(AP185*AQ185,0) -> 14221875 | AS185: =H185+AR185 -> 14221875 | AT185: =C185-AS185 -> -13273750
A186: .........MATX.400220.IN.MI.11 | B186: NETTOYAGE FIN DE CHANTIER | C186: 112500 | D186: 0 | E186: 0 | G186: 0 | H186: 0 | I186: 0 | M186: 1 | N186: 1 | O186: 2 | P186: 1 | Q186: 1 | R186: 1 | S186: 1 | T186: 1 | U186: 1 | AA186: 2 | AB186: 1 | AC186: 1 | AD186: 1 | AE186: 1 | AF186: 1 | AG186: 1 | AM186: 2 | AN186: 1 | AP186: =SUM(K186:AN186) -> 21 | AQ186: =IFERROR(IF(C186-H186<0,0,C186-H186),0) -> 112500 | AR186: =IFERROR(AP186*AQ186,0) -> 2362500 | AS186: =H186+AR186 -> 2362500 | AT186: =C186-AS186 -> -2250000
A187: .........MATX.400220.IN.MI.12 | B187: AIDE SECURITE | C187: 348500 | D187: 0 | E187: 0 | G187: 13800.6 | H187: 15518.84 | I187: -1718.24 | M187: 1 | N187: 1 | O187: 2 | P187: 1 | Q187: 1 | R187: 1 | S187: 1 | T187: 1 | AA187: 2 | AB187: 1 | AC187: 1 | AD187: 1 | AE187: 1 | AF187: 1 | AM187: 2 | AN187: 1 | AP187: =SUM(K187:AN187) -> 19 | AQ187: =IFERROR(IF(C187-H187<0,0,C187-H187),0) -> 332981.16 | AR187: =IFERROR(AP187*AQ187,0) -> 6326642.04 | AS187: =H187+AR187 -> 6342160.88 | AT187: =C187-AS187 -> -5993660.88
A188: .........MATX.400220.IN.MI.13 | B188: MO DECHARGEMENT | C188: 205000 | D188: 0 | E188: 0 | G188: 69085 | H188: 68957.11 | I188: 127.89 | M188: 1 | N188: 1 | O188: 2 | P188: 1 | Q188: 1 | R188: 1 | AA188: 2 | AB188: 1 | AC188: 1 | AD188: 1 | AM188: 2 | AN188: 1 | AP188: =SUM(K188:AN188) -> 15 | AQ188: =IFERROR(IF(C188-H188<0,0,C188-H188),0) -> 136042.89 | AR188: =IFERROR(AP188*AQ188,0) -> 2040643.35 | AS188: =H188+AR188 -> 2109600.46 | AT188: =C188-AS188 -> -1904600.46
A189: .........MATX.400220.IN.MI.14 | B189: POINTEAU | C189: 63765 | D189: 0 | E189: 0 | G189: 13454.42 | H189: 13927.04 | I189: -472.62 | M189: 1 | N189: 2 | O189: 2 | P189: 1 | Q189: 1 | R189: 1 | S189: 1 | T189: 1 | AA189: 2 | AB189: 1 | AC189: 1 | AD189: 1 | AE189: 1 | AF189: 1 | AM189: 2 | AN189: 1 | AP189: =SUM(K189:AN189) -> 20 | AQ189: =IFERROR(IF(C189-H189<0,0,C189-H189),0) -> 49837.96 | AR189: =IFERROR(AP189*AQ189,0) -> 996759.2 | AS189: =H189+AR189 -> 1010686.24 | AT189: =C189-AS189 -> -946921.24
A190: .........MATX.400220.IN.MI.15 | B190: SOUDEUR | C190: 68670 | D190: 0 | E190: 0 | G190: 15327.14 | H190: 16345.91 | I190: -1018.77 | M190: 1 | N190: 1 | O190: 2 | P190: 2 | Q190: 2 | R190: 2 | S190: 1 | AA190: 2 | AB190: 2 | AC190: 2 | AD190: 2 | AE190: 1 | AM190: 2 | AN190: 2 | AP190: =SUM(K190:AN190) -> 24 | AQ190: =IFERROR(IF(C190-H190<0,0,C190-H190),0) -> 52324.09 | AR190: =IFERROR(AP190*AQ190,0) -> 1255778.16 | AS190: =H190+AR190 -> 1272124.07 | AT190: =C190-AS190 -> -1203454.07
A191: .........MATX.400220.IN.MI.16 | B191: CONDUCT CHARIOT ELEV. | C191: 181250 | D191: 0 | E191: 0 | G191: 36250 | H191: 36250 | I191: 0 | AP191: =SUM(K191:AN191) -> 0 | AQ191: =IFERROR(IF(C191-H191<0,0,C191-H191),0) -> 145000 | AR191: =IFERROR(AP191*AQ191,0) -> 0 | AS191: =H191+AR191 -> 36250 | AT191: =C191-AS191 -> 145000
A192: .........MATX.400220.IN.MI.17 | B192: CHAUFFEUR CAMIONNETTE | C192: 69310 | D192: 0 | E192: 0 | G192: 20883.1 | H192: 20887.54 | I192: -4.44 | AP192: =SUM(K192:AN192) -> 0 | AQ192: =IFERROR(IF(C192-H192<0,0,C192-H192),0) -> 48422.46 | AR192: =IFERROR(AP192*AQ192,0) -> 0 | AS192: =H192+AR192 -> 20887.54 | AT192: =C192-AS192 -> 48422.46
A193: .........MATX.400220.IN.MI.18 | B193: MAGASINIER | C193: 181485 | D193: 0 | E193: 0 | G193: 53828.45 | H193: 53826.59 | I193: 1.86 | O193: 1 | AA193: 1 | AM193: 1 | AP193: =SUM(K193:AN193) -> 3 | AQ193: =IFERROR(IF(C193-H193<0,0,C193-H193),0) -> 127658.41 | AR193: =IFERROR(AP193*AQ193,0) -> 382975.23 | AS193: =H193+AR193 -> 436801.82 | AT193: =C193-AS193 -> -255316.82
A194: .........MATX.400220.IN.MI.19 | B194: AIDE MAGASINIER | C194: 125000 | D194: 0 | E194: 0 | G194: 9400 | H194: 9416.47 | I194: -16.47 | AP194: =SUM(K194:AN194) -> 0 | AQ194: =IFERROR(IF(C194-H194<0,0,C194-H194),0) -> 115583.53 | AR194: =IFERROR(AP194*AQ194,0) -> 0 | AS194: =H194+AR194 -> 9416.47 | AT194: =C194-AS194 -> 115583.53
A195: .........MATX.400220.IN.MI.20 | B195: CONDUCTEUR DUMPER | C195: 53955 | D195: 0 | E195: 0 | G195: 40369.13 | H195: 40201.43 | I195: 167.7 | AP195: =SUM(K195:AN195) -> 0 | AQ195: =IFERROR(IF(C195-H195<0,0,C195-H195),0) -> 13753.57 | AR195: =IFERROR(AP195*AQ195,0) -> 0 | AS195: =H195+AR195 -> 40201.43 | AT195: =C195-AS195 -> 13753.57
A196: .........MATX.400220.IN.MI.21 | B196: MENUISIER | C196: 125000 | D196: 0 | E196: 0 | G196: 38750 | H196: 37006.31 | I196: 1743.69 | O196: 1 | AA196: 1 | AM196: 1 | AP196: =SUM(K196:AN196) -> 3 | AQ196: =IFERROR(IF(C196-H196<0,0,C196-H196),0) -> 87993.69 | AR196: =IFERROR(AP196*AQ196,0) -> 263981.07 | AS196: =H196+AR196 -> 300987.38 | AT196: =C196-AS196 -> -175987.38
A197: .........MATX.400220.IN.MI.22 | B197: AIDE MENUISIER | C197: 82000 | D197: 0 | E197: 0 | G197: 0 | H197: 0 | I197: 0 | O197: 1 | AA197: 1 | AM197: 1 | AP197: =SUM(K197:AN197) -> 3 | AQ197: =IFERROR(IF(C197-H197<0,0,C197-H197),0) -> 82000 | AR197: =IFERROR(AP197*AQ197,0) -> 246000 | AS197: =H197+AR197 -> 246000 | AT197: =C197-AS197 -> -164000
A198: .........MATX.400220.IN.MI.23 | B198: M.O ENTRETIEN BUREAU | C198: 50895 | D198: 0 | E198: 0 | G198: 8189.01 | H198: 8106.79 | I198: 82.22 | AP198: =SUM(K198:AN198) -> 0 | AQ198: =IFERROR(IF(C198-H198<0,0,C198-H198),0) -> 42788.21 | AR198: =IFERROR(AP198*AQ198,0) -> 0 | AS198: =H198+AR198 -> 8106.79 | AT198: =C198-AS198 -> 42788.21
A199: .........MATX.400220.IN.MI.24 | B199: M.O ENTRETIEN VESTIAIRE - SANITAIRE | C199: 98100 | D199: 0 | E199: 0 | G199: 25604.1 | H199: 25647.2 | I199: -43.1 | AP199: =SUM(K199:AN199) -> 0 | AQ199: =IFERROR(IF(C199-H199<0,0,C199-H199),0) -> 72452.8 | AR199: =IFERROR(AP199*AQ199,0) -> 0 | AS199: =H199+AR199 -> 25647.2 | AT199: =C199-AS199 -> 72452.8
A200: .........MATX.400220.IN.MI.25 | B200: INFIRMIER | C200: 58860 | D200: 0 | E200: 0 | G200: 15539.04 | H200: 15346.14 | I200: 192.9 | AP200: =SUM(K200:AN200) -> 0 | AQ200: =IFERROR(IF(C200-H200<0,0,C200-H200),0) -> 43513.86 | AR200: =IFERROR(AP200*AQ200,0) -> 0 | AS200: =H200+AR200 -> 15346.14 | AT200: =C200-AS200 -> 43513.86
A201: .........MATX.400220.IN.MI.26 | B201: PLOMBIER | C201: 75000 | D201: 0 | E201: 0 | G201: 0 | H201: 0 | I201: 0 | O201: 1 | AA201: 1 | AM201: 1 | AP201: =SUM(K201:AN201) -> 3 | AQ201: =IFERROR(IF(C201-H201<0,0,C201-H201),0) -> 75000 | AR201: =IFERROR(AP201*AQ201,0) -> 225000 | AS201: =H201+AR201 -> 225000 | AT201: =C201-AS201 -> -150000
A202: .........MATX.400220.IN.MI.27 | B202: ELECTRICIEN | C202: 58860 | D202: 0 | E202: 0 | G202: 16439.6 | H202: 16430.7 | I202: 8.9 | O202: 1 | AA202: 1 | AM202: 1 | AP202: =SUM(K202:AN202) -> 3 | AQ202: =IFERROR(IF(C202-H202<0,0,C202-H202),0) -> 42429.3 | AR202: =IFERROR(AP202*AQ202,0) -> 127287.9 | AS202: =H202+AR202 -> 143718.6 | AT202: =C202-AS202 -> -84858.6
... 96 more rows

Sheet RECAP IND
A1: BYMARO
B3: RECAPITULATIF INDIRECTS | F3: =SYNTHESE!D4 -> POINT 50%
A5: Affaire N° | B5: 400213 | F5: Date: | G5: =SYNTHESE!D7 -> 2017-03-06
A6: Chantier | B6: =SYNTHESE!E6 -> LES FAUBOURGS D'ANFA | F6: Rédacteur : | G6: 0
A7: Tx change obj. | B7: =SYNTHESE!N4 -> 1 € = 10,85dh
B9: OBJECTIF | C9: +/- | D9: TS | E9: BUDGET CONFORME | F9: POINT 50 % | G9: ECARTS
A11: DESIGNATIONS | B11: Montant | C11: Montant | D11: Montant | E11: Montant | F11: Montant | G11: DH | H11: %
A12: INSTALLATION DE CHANTIER | B12: 2377968 | C12: 0 | D12: 0 | E12: =SUM(B12:D12) -> 2377968 | F12: 3922625.88 | G12: =E12-F12 -> -1544657.88 | H12: =G12/E12 -> -0.6495705073
A13: LOCATION MATERIEL | B13: 4451136.27 | C13: 0 | D13: 0 | E13: 4451136.27 | F13: 62032331.36 | G13: -57581195.09 | H13: -12.93629123
A14: ACHATS | B14: 2553105 | C14: 0 | D14: 0 | E14: 2553105 | F14: 115463214.7 | G14: -112910109.7 | H14: -44.22462442
A15: MAIN D'OEUVRE INDIRECTE | B15: 4974500 | C15: 0 | D15: 0 | E15: 4974500 | F15: 22811670.06 | G15: -17837170.06 | H15: -3.58572119
A16: MAITRISE | B16: 3365795.5 | C16: 0 | D16: 0 | E16: 3365795.5 | F16: 4529893.97 | G16: -1164098.47 | H16: -0.3458613187
A17: FRAIS DE FONCTIONNEMENT | B17: 3876530 | C17: 0 | D17: 0 | E17: 3876530 | F17: 5187719.43 | G17: -1311189.43 | H17: -0.3382379164
A18: COFFRAGE | B18: 12964870.76 | C18: 0 | D18: 0 | E18: 12964870.76 | F18: 1725854.84 | G18: 11239015.92 | H18: 0.866882218
A19: ENCADREMENT | B19: 10126417.5 | C19: 0 | D19: 0 | E19: 10126417.5 | F19: 1779297.62 | G19: 8347119.88 | H19: 0.8242915009
A20: ETUDES | B20: 290000 | C20: 0 | D20: 0 | E20: 290000 | F20: 524000 | G20: -234000 | H20: -0.8068965517
A21: MISSION & HEBERGEMENT | B21: 762300 | C21: 0 | D21: 0 | E21: 762300 | F21: 160554.12 | G21: 601745.88 | H21: 0.7893819756
A22: DEPENSES ANNEXES | B22: 4956000 | C22: 0 | D22: 0 | E22: 4956000 | F22: 232160.51 | G22: 4723839.49 | H22: 0.9531556679
A23: RECETTES DIVERSES | B23: 386964.58 | C23: 0 | D23: 44069.33 | E23: 431033.91 | F23: 386964.58 | G23: 44069.33 | H23: 0.1022409815
A24: TOTAL INDIRECTS | B24: =SUM(B12:B23) -> 51085587.61 | C24: 0 | D24: 44069.33 | E24: =SUM(B24:D24) -> 51129656.94 | F24: =SUM(F12:F23) -> 218756287.1 | G24: -167626630.2 | H24: -3.27846186

Sheet Transfert
A1: BYMARO
A3: SYNTHESE TRANSFERTS DE BUDGETS
A5: Affaire N° | B5: 400213 | U5: =SYNTHESE!D7 -> 2017-03-06
A6: Chantier | B6: =SYNTHESE!E6 -> LES FAUBOURGS D'ANFA | U6: LBA/KHA
A7: Tx change obj. | B7: =SYNTHESE!N4 -> 1 € = 10,85dh
D8: 1 | E8: 1 | F8: 1 | G8: 2 | H8: 3 | I8: 4 | J8: 5 | K8: 6 | L8: 7 | M8: =+L8+1 -> 8 | N8: =+M8+1 -> 9 | O8: =+N8+1 -> 10 | P8: 11 | Q8: 12 | R8: 13 | S8: 14 | T8: 15
C9: Budget | D9: MOD | E9: MORTIER A HOURDER | F9: CIMENT/GRAVETTE | G9: PASSERELLE PRECONTRAINTE | H9: BETON | I9: CCL | J9: PLATEAU AUTOCOINCANT | K9: INFORMATIQUE | L9: LOCAT PHOTOCOPIEUR | M9: COFFRAGES | N9: INSTALLATION ELECTRIQUE | O9: CTX Plomberie | P9: REVETEMENT CEA | Q9: ETANCHIETE | R9: POSTE MACONNERIE | S9: MENUISERIE EXTERIEURE RAT | T9: MENUISERIE EXTERIEURE RAT | U9: Budget Conforme
A10: MOD | C10: 30028182.23 | U10: =SUM(C10:T10) -> 30028182.23
A11: BETON | C11: 18719141.82 | U11: =SUM(C11:T11) -> 18719141.82
A12: ACIER | C12: 22502671.49 | U12: =SUM(C12:T12) -> 22502671.49
A13: AUTRES MATERIAUX | C13: 15368191.59 | U13: =SUM(C13:T13) -> 15368191.59
A14: TOTAL PRODUCT° PROPRE | C14: =SUM(C10:C13) -> 86618187.12 | D14: =SUM(D10:D13) -> 0 | E14: 0 | F14: 0 | G14: 0 | H14: 0 | I14: 0 | J14: 0 | K14: 0 | L14: 0 | M14: 0 | N14: 0 | O14: 0 | P14: 0 | Q14: 0 | R14: 0 | S14: 0 | T14: 0 | U14: 86618187.12
A15: ST GROS OEUVRES | C15: 9247357.68 | U15: =SUM(C15:T15) -> 9247357.68
A16: TERRASSEMENT | C16: 3265057.68 | U16: 3265057.68
A17: CCL | C17: 5982300 | U17: 5982300
A18: ST CEA | C18: 84248000 | U18: 84248000
A19: ETANCHEITE | C19: 3853000 | U19: 3853000
A20: MENUISERIE ALUMINIUM | C20: 12000000 | U20: 12000000
A21: MENUISERIE BOIS | C21: 16991000 | U21: 16991000
A22: REVETEMENTS | C22: 32798000 | U22: 32798000
A23: FAUX-PLAFOND | C23: 4365000 | U23: 4365000
A24: PEINTURES | C24: 6910000 | U24: 6910000
A25: CUISINE | C25: 7331000 | U25: 7331000
A26: ST CET | C26: 35514000 | U26: 35514000
A27: CHEMINEE | C27: 336000 | U27: 336000
A28: CVC DESENFUMAGE | C28: 9346000 | U28: 9346000
A29: PLOMBERIE & PI | C29: 13967000 | U29: 13967000
A30: COURANTS FORTS & FAIBLES | C30: 9147000 | U30: 9147000
A31: ASCENSEURS | C31: 2718000 | U31: 2718000
A32: TOTAL SOUS TRAITANCE | C32: =C15+C18+C26 -> 129009357.7 | D32: =D15+D18+D26 -> 0 | E32: 0 | F32: 0 | G32: 0 | H32: 0 | I32: 0 | J32: 0 | K32: 0 | L32: 0 | M32: 0 | N32: 0 | O32: 0 | P32: 0 | Q32: 0 | R32: 0 | S32: 0 | T32: 0 | U32: =U15+U18+U26 -> 129009357.7
A33: INSTALLATION DE CHANTIER | C33: 2377968 | U33: =SUM(C33:T33) -> 2377968
A34: LOCATION MATERIEL | C34: 4451136.27 | U34: 4451136.27
A35: ACHATS | C35: 2553105 | U35: 2553105
A36: MAIN D'OEUVRE INDIRECTE | C36: 4974500 | U36: 4974500
A37: MAITRISE | C37: 3365795.5 | U37: 3365795.5
A38: FRAIS DE FONCTIONNEMENT | C38: 3876530 | U38: 3876530
A39: COFFRAGE | C39: 12964870.76 | U39: 12964870.76
A40: ENCADREMENT | C40: 10126417.5 | U40: 10126417.5
A41: ETUDES | C41: 290000 | U41: 290000
A42: MISSION & HEBERGEMENT | C42: 762300 | U42: 762300
A43: DEPENSES ANNEXES | C43: 4956000 | U43: 4956000
A44: RECETTES DIVERSES | C44: 386964.58 | U44: 386964.58
A45: TOTAL LES INDIRECTS | C45: =SUM(C33:C44) -> 51085587.61 | D45: =SUM(D33:D44) -> 0 | E45: 0 | F45: 0 | G45: 0 | H45: 0 | I45: 0 | J45: 0 | K45: 0 | L45: 0 | M45: 0 | N45: 0 | O45: 0 | P45: 0 | Q45: 0 | R45: 0 | S45: 0 | T45: 0 | U45: 51085587.61
A46: TOTAL PRODUCTION PROPRE | C46: =C$14+C45+C32 -> 266713132.4 | D46: =D$14+D45+D32 -> 0 | E46: 0 | F46: 0 | G46: 0 | H46: 0 | I46: 0 | J46: 0 | K46: 0 | L46: 0 | M46: 0 | N46: 0 | O46: 0 | P46: 0 | Q46: 0 | R46: 0 | S46: 0 | T46: 0 | U46: =U$14+U45+U32 -> 266713132.4
A48: TOTAL DCH | C48: =+C46 -> 266713132.4 | D48: =+D46 -> 0 | E48: 0 | F48: 0 | G48: 0 | H48: 0 | I48: 0 | J48: 0 | K48: 0 | L48: 0 | M48: 0 | N48: 0 | O48: =+O46 -> 0 | P48: 0 | Q48: 0 | R48: 0 | S48: 0 | T48: 0 | U48: =+U46 -> 266713132.4
U49: =SUM(INDIRECT(ADDRESS(ROW(),3)):INDIRECT(ADDRESS(ROW(),COLUMN()-1,))) -> 0
A50: RISQUES TECHNIQUES IDENTIFIES | C50: 0
A51: REVISION | C51: 0
A52: TOTAL Frais Annexes | C52: =SUM(INDIRECT(ADDRESS(ROW()-3,COLUMN())):INDIRECT(ADDRESS(ROW()-1,COLUMN(),))) -> 0 | D52: =SUM(INDIRECT(ADDRESS(ROW()-3,COLUMN())):INDIRECT(ADDRESS(ROW()-1,COLUMN(),))) -> 0 | E52: =SUM(INDIRECT(ADDRESS(ROW()-3,COLUMN())):INDIRECT(ADDRESS(ROW()-1,COLUMN(),))) -> 0 | F52: =SUM(INDIRECT(ADDRESS(ROW()-3,COLUMN())):INDIRECT(ADDRESS(ROW()-1,COLUMN(),))) -> 0 | G52: =SUM(INDIRECT(ADDRESS(ROW()-3,COLUMN())):INDIRECT(ADDRESS(ROW()-1,COLUMN(),))) -> 0 | H52: =SUM(INDIRECT(ADDRESS(ROW()-3,COLUMN())):INDIRECT(ADDRESS(ROW()-1,COLUMN(),))) -> 0 | I52: =SUM(INDIRECT(ADDRESS(ROW()-3,COLUMN())):INDIRECT(ADDRESS(ROW()-1,COLUMN(),))) -> 0 | J52: =SUM(INDIRECT(ADDRESS(ROW()-3,COLUMN())):INDIRECT(ADDRESS(ROW()-1,COLUMN(),))) -> 0 | K52: =SUM(INDIRECT(ADDRESS(ROW()-3,COLUMN())):INDIRECT(ADDRESS(ROW()-1,COLUMN(),))) -> 0 | L52: =SUM(INDIRECT(ADDRESS(ROW()-3,COLUMN())):INDIRECT(ADDRESS(ROW()-1,COLUMN(),))) -> 0 | M52: =SUM(INDIRECT(ADDRESS(ROW()-3,COLUMN())):INDIRECT(ADDRESS(ROW()-1,COLUMN(),))) -> 0 | N52: =SUM(INDIRECT(ADDRESS(ROW()-3,COLUMN())):INDIRECT(ADDRESS(ROW()-1,COLUMN(),))) -> 0 | O52: =SUM(INDIRECT(ADDRESS(ROW()-3,COLUMN())):INDIRECT(ADDRESS(ROW()-1,COLUMN(),))) -> 0 | P52: =SUM(INDIRECT(ADDRESS(ROW()-3,COLUMN())):INDIRECT(ADDRESS(ROW()-1,COLUMN(),))) -> 0 | Q52: =SUM(INDIRECT(ADDRESS(ROW()-3,COLUMN())):INDIRECT(ADDRESS(ROW()-1,COLUMN(),))) -> 0 | R52: =SUM(INDIRECT(ADDRESS(ROW()-3,COLUMN())):INDIRECT(ADDRESS(ROW()-1,COLUMN(),))) -> 0 | S52: =SUM(INDIRECT(ADDRESS(ROW()-3,COLUMN())):INDIRECT(ADDRESS(ROW()-1,COLUMN(),))) -> 0 | T52: =SUM(INDIRECT(ADDRESS(ROW()-3,COLUMN())):INDIRECT(ADDRESS(ROW()-1,COLUMN(),))) -> 0 | U52: =SUM(INDIRECT(ADDRESS(ROW()-3,COLUMN())):INDIRECT(ADDRESS(ROW()-1,COLUMN(),))) -> 0
A53: DEPENSES GLOBALES | C53: =+C52+C48 -> 266713132.4 | D53: =+D52+D48 -> 0 | E53: 0 | F53: 0 | G53: 0 | H53: 0 | I53: 0 | J53: 0 | K53: 0 | L53: 0 | M53: 0 | N53: 0 | O53: 0 | P53: 0 | Q53: 0 | R53: 0 | S53: 0 | T53: 0 | U53: 266713132.4

Sheet Ecart PP
B3: =SYNTHESE!D4 -> POINT 50% | E3: BYMARO
B6: =SYNTHESE!D7 -> 2017-03-06 | E6: =SYNTHESE!E6 -> LES FAUBOURGS D'ANFA
E7: =SYNTHESE!E7 -> CASABLANCA
B10: - ECART -
B11: DIRECT DE PART PROPRE
B12: EN KMAD
C14: Rappel des budgets
D15: Budget Conforme | H15: =PROPER(SYNTHESE!D4) -> Point 50% | L15: Ecart de budgets
D16: =DCH!K20/1000 -> 86618.18712 | H16: =DCH!M20/1000 -> 169202.5078 | L16: =D16-H16 -> -82584.32072 | M16: =L16/D16 -> -0.953429337
C18: Détails des écarts
C20: MOD
H22: Quantité | J22: P.U | K22: DIRHAMS
D23: Budget Conforme | H23: 828935.8181 | J23: 36.22497855 | K23: =H23*J23 -> 30028182.23
D24: =PROPER(SYNTHESE!D4) -> Point 50% | H24: 268808.7804 | J24: 105.5137065 | K24: =H24*J24 -> 28363010.76
D25: Ecart | H25: =H23-H24 -> 560127.0377 | J25: =J23-J24 -> -69.28872797 | K25: =K23-K24 -> 1665171.465
H27: % | K27: Montant
D28: +/- sur P.U | H28: =K28/K25 -> -11.18528563 | K28: =H24*J25 -> -18625418.46
D29: +/- sur Qtés | H29: =H25/H23 -> 0.6757182227 | K29: =H25*J23 -> 20290589.92
D31: Perte de 5025 Hrs due au gros béton
D32: Perte de 1300 Hrs sur fondations (maconnerie + voltex)
C36: BETON
H38: Quantité | J38: P.U | K38: DIRHAMS
D39: Objectif Conforme | H39: 13751.581 | J39: 1361.235615 | K39: =H39*J39 -> 18719141.82
D40: =PROPER(SYNTHESE!D4) -> Point 50% | H40: 13521.56178 | J40: 7328.657601 | K40: =H40*J40 -> 99094896.48
D41: Ecart | H41: =H39-H40 -> 230.0192248 | J41: =J39-J40 -> -5967.421986 | K41: =K39-K40 -> -80375754.67
H43: % | K43: Montant
D44: +/- sur P.U | H44: =K44/K41 -> 1.003895582 | K44: =H40*J41 -> -80688865.03
D45: +/- sur Qtés | H45: =H41/H39 -> 0.01672674762 | K45: =H41*J39 -> 313110.3608
C52: ACIER
H54: Quantité | J54: P.U | K54: DIRHAMS
D55: Objectif Conforme | H55: 1756.261149 | J55: 12812.8277 | K55: =H55*J55 -> 22502671.49
D56: =PROPER(SYNTHESE!D4) -> Point 50% | H56: 1541.667042 | J56: 18723.04914 | K56: =H56*J56 -> 28864707.79
D57: Ecart | H57: =H55-H56 -> 214.594107 | J57: =J55-J56 -> -5910.221447 | K57: =K55-K56 -> -6362036.297
H59: % | K59: Montant
D60: +/- sur P.U | H60: =K60/K57 -> 1.43218196 | K60: =H56*J57 -> -9111593.615
D61: +/- sur Qtés | H61: =H57/H55 -> 0.1221880397 | K61: =H57*J55 -> 2749557.318
C68: AUTRES MATERIAUX | K68: 2488.29878
D69: -Gain / Brique creuse
D70: -PV HYDROFUGE
D71: - Perte sur Mortier à hourder

Sheet Ecart Indirects
B3: =SYNTHESE!D4 -> POINT 50% | E3: BYMARO
B6: =SYNTHESE!D7 -> 2017-03-06 | E6: =SYNTHESE!E6 -> LES FAUBOURGS D'ANFA
E7: =SYNTHESE!E7 -> CASABLANCA
B10: - ECART -
B11: LES DEPENSES INDIRECTS EN KMAD
C14: Rappel des budgets
D15: Budget Conforme | H15: =PROPER(SYNTHESE!D4) -> Point 50% | L15: Ecart de budgets
D16: =DCH!K41/1000 -> 51129.65694 | H16: =DCH!M41/1000 -> 218756.2871 | L16: =D16-H16 -> -167626.6302 | M16: =L16/D16 -> -3.27846186
C19: Détails des écarts
C21: =DCH!B29 -> INSTALLATION DE CHANTIER | L21: =DCH!P29/1000 -> -1544.65788 | M21: ='RECAP IND'!H12 -> -0.6495705073
C23: Gain sur Installation baraque chantier
C27: =DCH!B30 -> LOCATION MATERIEL | L27: =DCH!P30/1000 -> -57581.19509 | M27: ='RECAP IND'!H14 -> -44.22462442
C28: Gain sur PU location de matériel
C29: ( Nouveau Baréme appliqué)
C33: =DCH!B31 -> ACHATS | L33: =DCH!P31/1000 -> -112910.1097 | M33: ='RECAP IND'!H15 -> -3.58572119
C34: Gain / Achat cable secondaire
C35: Gain / tuyaux flexible
C36: Gain / Pieces de rechange
C40: =DCH!B32 -> MAIN D'OEUVRE INDIRECTE | L40: =DCH!P32/1000 -> -17837.17006 | M40: ='RECAP IND'!H16 -> -0.3458613187
C41: Ecart / PU Menuisier
C42: Ecart / Topographe non prevu à l objectif
C43: Perte / MOD nettoyage
C47: =DCH!B33 -> MAITRISE | L47: =DCH!P33/1000 -> -1164.09847 | M47: ='RECAP IND'!H17 -> -0.3382379164
C48: Ecart / PU Maitres Batisseur Outache
C49: Gain sur durée Assistant chantier
C50: Gain / PU Chef de chantier
C54: =DCH!B34 -> FRAIS DE FONCTIONNEMENT | L54: =DCH!P34/1000 -> -1311.18943 | M54: ='RECAP IND'!H18 -> 0.866882218
C55: Les Principaux ecarts :
C56: Perte / Location photocopieur
C57: Gain/ constat huissier
C61: =DCH!B35 -> COFFRAGE | L61: =DCH!P35/1000 -> 11239.01592 | M61: ='RECAP IND'!H19 -> 0.8242915009
C62: RAS
C66: =DCH!B36 -> ENCADREMENT | L66: =DCH!P36/1000 -> 8347.11988 | M66: ='RECAP IND'!H20 -> -0.8068965517
C67: Les principaux ecarts
D68: Gain 2 mois de Planning Resp Projet
D69: Perte / Controleur Financier ( reajustement planning )
D70: Gain / Responsable CEA prevu à l objectif
D71: Perte / ING Methode (reajustement planning)
D72: Perte / Responsable GO (reajustement planning)
D73: Perte / PU Conducteur Travaux GO
D74: Gain / Design manager prevu à l objectif
D75: Perte /Responsable de production ( reajustement planning)
C79: =DCH!B37 -> ETUDES | L79: =DCH!P37/1000 -> -234 | M79: ='RECAP IND'!H21 -> 0.7893819756
D81: Remplacement du BE Arnaud Decerisy par Tisseyre+ Associés
D82: Gain sur Compagne de sondage geotechnique

Sheet Ecart STGO
B3: =SYNTHESE!D4 -> POINT 50% | E3: BYMARO
B6: =SYNTHESE!D7 -> 2017-03-06 | E6: =SYNTHESE!E6 -> LES FAUBOURGS D'ANFA
E7: =SYNTHESE!E7 -> CASABLANCA
B10: - ECART -
B11: SOUS TRAITANT GROS ŒUVRES EN KMAD
C14: Rappel des budgets
D15: Budget Conforme | H15: =PROPER(SYNTHESE!D4) -> Point 50% | L15: Ecart de budgets
D16: =DCH!K23/1000 -> 9247.35768 | H16: =DCH!M23/1000 -> 10595.01888 | L16: =D16-H16 -> -1347.6612 | M16: =L16/D16 -> -0.1457347327
C19: Détails des écarts
C22: -VRD (Ajout Transformateur 630 KVA sur L2 ) | L22: -160.02789
C26: -VRD / CLOTURES DIVERSES | L26: 300
C30: -MARCHE CCL Stressing Systems Maroc | L30: -200

Sheet Ecart STCEA
B3: =SYNTHESE!D4 -> POINT 50% | E3: BYMARO
B6: =SYNTHESE!D7 -> 2017-03-06 | E6: =SYNTHESE!E6 -> LES FAUBOURGS D'ANFA
E7: =SYNTHESE!E7 -> CASABLANCA
B10: - ECART -
B11: SOUS TRAITANT CEA EN KMAD
C14: Rappel des budgets
D15: Budget Conforme | H15: =PROPER(SYNTHESE!D4) -> Point 50% | L15: Ecart de budgets
D16: =DCH!K24/1000 -> 84248 | H16: =DCH!M24/1000 -> 16991 | L16: =D16-H16 -> 67257 | M16: =L16/D16 -> 0.7983216219
C19: Détails des écarts
D22: -ETANCHIEITE / FOURNITURES | L22: 500
D27: -CLOS COUVERT-MENUISERIE RAT | L27: 205.813
D34: -REVETEMENTS SOL / RAT | L34: 967.82306

Sheet Ecart STCET
B3: =SYNTHESE!D4 -> POINT 50% | E3: BYMARO
B6: =SYNTHESE!D7 -> 2017-03-06 | E6: =SYNTHESE!E6 -> LES FAUBOURGS D'ANFA
E7: =SYNTHESE!E7 -> CASABLANCA
B10: - ECART -
B11: SOUS TRAITANT CET EN KMAD
C14: Rappel des budgets
D15: Budget Conforme | H15: =PROPER(SYNTHESE!D4) -> Point 50% | L15: Ecart de budgets
D16: =DCH!K25/1000 -> 35514 | H16: =DCH!M25/1000 -> 55299.58 | L16: =D16-H16 -> -19785.58 | M16: =L16/D16 -> -0.5571205722
C19: Détails des écarts
D21: Clim CVC | L21: 844.32209 | M21: 0.01168004352
D23: -INSTALLATION PAR ST | L23: 544.43846
D27: -FOURNITURE HITACHI | L27: 101.64878
D30: -VMC PP | L30: 191.85713
D33: Plomberie | L33: 987.59399 | M33: 0.01366201468
D35: -FOURNITURE | L35: 1586.37676
D38: -MOD/PLOMBIER | L38: -348.0425
D41: -FRAIS DE CHANTIER | L41: -201.05144
D44: -FRAIS DE SERVICE | L44: -49.68883
D48: Electricité | L48: 447 | M48: 0.006183634797
D50: FOURNITURE CFO | L50: 365.98996
D53: FOURNITURE CFA | L53: 354

Sheet Risques
A1: TABLEAU DE GESTION DES RISQUES
B2: EN KDHS
A3: N° | B3: RISQUES POTENTIELS | D3: ORIGINE DU RISQUE | J3: EVALUATION DU RIQUE | N3: IMPACT COUT | R3: MAITRISE DU RISQUE (Trx) | U3: PROVISIONS | W3: COMMENTAIRES
D4: Client | E4: S/T ou Partenaires | F4: Force Majeure | G4: Raisons internes | H4: Autres | J4: Probabilité d'occurrence | K4: Gravité | L4: Score Niveau | N4: Montant | O4: Probabilité d'occurrence | P4: Montant retenu | R4: Taux | S4: Impact | U4: Montant retenu
A5: 1 | B5: CET : Passage du monophasé en triphasé sur Bâtiments L1 & L2 pour les | L5: =+J5*K5 -> 0 | N5: 250 | O5: 0 | P5: =+N5*O5 -> 0
A6: 2 | B6: Gros béton sous fondation SS2 coulé en pleine fouille | L6: =+J6*K6 -> 0 | N6: 592 | O6: 0.4
A7: 3 | B7: Protection extérieure des portes cabine ascenseur | N7: 120 | O7: 0.7 | P7: =+N7*O7 -> 84
A8: 4 | B8: Prolongation encadrement 1 mois de plus | N8: 500 | O8: 0.5
A9: 5 | B9: Substitution du lot peinture | N9: 1200 | O9: 1 | P9: 1200 | W9: Offre Faramaoui retenue à l'objectif
A10: 6 | B10: Prescriptions CCTP non chifrées | N10: 880 | O10: 0.4
A11: 7 | B11: Mise en œuvre béton sable lavé | N11: nc | W11: Formulation béton transmise à Socotec
A12: 8 | B12: Rajout placards gaines palières | N12: 400 | O12: 1 | P12: =+N12*O12 -> 400
A13: 9 | B13: BECS supplémentaires conforme aux prescriptions BY immo et CCTP | N13: 100 | O13: 0 | P13: 0
A14: 10 | B14: Reprise peintures après reception client | N14: 600 | O14: 0.5 | P14: 300
B15: TOTAL | P15: =SUM(P5:P14) -> 1984
A17: NOTA :
A18: Les colonnes "Maîtrise des risques (Trx)" se rapportent à l'atténuation de l'impact du risque (par rapport à l'appréciation qui en a été faite) quand il existe ou qu'il a été possible de mettre en place, par les équipes travaux, d' un plan d'action pour en diminuer les effets.

Sheet OPP
A1: TABLEAU DE GESTION DES OPPORTUNITES
B2: EN KDHS
A3: N° | B3: OPPORTUNITES POTENTIELLES | D3: ORIGINE DE L'OPPORTUNITE | I3: EVALUATION DE L'OPPORTUNITE | M3: IMPACT COUT | P3: PROFIT PREVISIONNEL | R3: COMMENTAIRES
D4: Client | E4: S/T ou Partenaires | F4: Performance technique | G4: Autres | I4: Probabilité d'occurrence | J4: Profit | K4: Score Niveau | M4: Montant | N4: Probabilité d'occurrence | P4: Montant retenu
A5: 1 | B5: Gain sur PU location diverses | M5: 1550 | N5: 0.6 | P5: =+M5*N5 -> 930 | R5: cis nouveaux PU location materiel
A6: 2 | B6: Refacturation L3 | M6: 280 | N6: 1 | P6: =+M6*N6 -> 280
A7: 3 | B7: Cuisine : Gain sur marques électroménagers | M7: 700 | N7: 0.35 | R7: RAT cuisine 700 Kdh libére
A8: 4 | B8: Gain etude geotechniques | M8: 195 | N8: 0.9 | P8: =+M8*N8 -> 175.5
A9: 5
A10: 5
A11: 7 | B11: Gain anticipé de 5% sur la fourniture Plomberie | K11: =+I11*J11 -> 0 | M11: 518 | N11: 1 | P11: =+N11*M11 -> 518
A12: 8 | B12: Gain / consultation CEA | K12: 0 | M12: 3950 | N12: 0.85 | P12: 3357.5 | R12: Lots ciblés : Menuiserie ext + Fermeture / Menuiserie Int / Revêtement sol / Etanchiété /Cuisine /faux plafond
A13: 9 | B13: Non respect des hauteurs contractuelles de sous faux plafond dans les logements | K13: 0 | P13: 0 | R13: Non chiffré
A14: 10 | B14: Gain sur VRD | K14: 0 | M14: 300 | N14: 0.6 | P14: 180 | R14: Non chiffré
B15: TOTAL | P15: =SUM(P5:P14) -> 5441

Sheet PAM
B3: =SYNTHESE!D4 -> POINT 50% | E3: BYMARO
B6: 2017-03-06 | E6: =SYNTHESE!E6 -> LES FAUBOURGS D'ANFA
E7: =SYNTHESE!E7 -> CASABLANCA
B11: PLAN D'AMELIORATION DE LA MARGE
H14: Objectif | I14: Point 20% | J14: Point 50% | K14: Point 80% | L14: ETAT
C16: - | D16: Produit financier | H16: 250 | I16: 300 | J16: 150 | K16: 0 | L16: Objectif fait++
C18: - | D18: Gain sur révision de Prix | H18: 650 | I18: 650 | J18: 0 | K18: 0
C20: - | D20: Gain sur Prorata Sous traitant | H20: 300 | I20: 300 | J20: 0 | K20: 0
C22: - | D22: Gain sur négociation Fourniture matériel Electrical | H22: 500 | I22: 700 | J22: 0 | K22: 0
C24: - | D24: Gain sur négociation matériel méchanical (BECS , VRV) | H24: 300 | I24: 500 | J24: 0 | K24: 0
C26: - | D26: Gain sur négociations ST VRD | H26: 500 | I26: 500 | J26: 0 | K26: 0
C28: - | D28: Gain sur le coffrage | H28: 250 | I28: 800 | J28: 0 | K28: 0
C30: - | D30: Gain sur Achat Matériels | H30: 150 | I30: 0 | J30: 0 | K30: 0
C32: - | D32: Négociation CEA | H32: 0 | I32: 2200 | J32: 0 | K32: 0
C34: - | D34: Autres Matériaux | H34: 0 | I34: 500 | J34: 0 | K34: 0
C35: - | D35: Optimisation Frais chantier/Service avec mise en place du Lean management | I35: 1500
F38: Soit un TOTAL : | H38: =SUM(H16:H35) -> 2900 | I38: =SUM(I16:I35) -> 7950 | J38: =SUM(J16:J35) -> 150 | K38: 0 | L38: MAD
